Transaction Date,Local Authority Department,Beneficiary,Purpose of Expenditure,Amount (excluding VAT),Non Recoverable VAT,Merchant Category
 20-01-2023,Adults,Safespaces (Cornholme) Ltd,Purchase - Equipment Furniture And Materials,500.00,0.00,COMMERCIAL SUPPLIER 
 01-01-2023,Adults,Homestead Care Service,Home Care - Private Contractors Payment,501.84,0.00,COMMERCIAL SUPPLIER 
 05-01-2023,Adults,Prestige Care & Support Ltd,Home Care - Private Contractors Payment,501.84,0.00,COMMERCIAL SUPPLIER 
 09-01-2023,Adults,Home Sweet Home Care Ltd,Home Care - Private Contractors Payment,501.84,0.00,COMMERCIAL SUPPLIER 
 01-01-2023,Adults,Homestead Care Service,Home Care - Private Contractors Payment,502.50,0.00,COMMERCIAL SUPPLIER 
 09-01-2023,Adults,Home Sweet Home Care Ltd,Home Care - Private Contractors Payment,502.82,0.00,COMMERCIAL SUPPLIER 
 04-01-2023,Adults,Matrix SCM Ltd,Agency Staff,503.59,0.00,COMMERCIAL SUPPLIER 
 01-01-2023,Adults,Homestead Care Service,Home Care - Private Contractors Payment,505.78,0.00,COMMERCIAL SUPPLIER 
 01-01-2023,Adults,Homestead Care Service,Home Care - Private Contractors Payment,506.10,0.00,COMMERCIAL SUPPLIER 
 06-01-2023,Adults,Anytime Care 2020_a,Home Care - Private Contractors Payment,506.10,0.00,COMMERCIAL SUPPLIER 
 01-01-2023,Adults,Homestead Care Service,Home Care - Private Contractors Payment,506.43,0.00,COMMERCIAL SUPPLIER 
 25-01-2023,Adults,Matrix SCM Ltd,Agency Staff,506.70,0.00,COMMERCIAL SUPPLIER 
 17-01-2023,Adults,Lodge Group Care UK Ltd,Home Care - Private Contractors Payment,507.09,0.00,COMMERCIAL SUPPLIER 
 18-01-2023,Adults,London Care Plc_a,Home Care - Private Contractors Payment,508.07,0.00,COMMERCIAL SUPPLIER 
 11-01-2023,Adults,Matrix SCM Ltd,Agency Staff,508.41,0.00,COMMERCIAL SUPPLIER 
 11-01-2023,Adults,Matrix SCM Ltd,Agency Staff,510.99,0.00,COMMERCIAL SUPPLIER 
 25-01-2023,Adults,Matrix SCM Ltd,Agency Staff,510.99,0.00,COMMERCIAL SUPPLIER 
 03-01-2023,Adults,KJD Care Limited,Home Care - Private Contractors Payment,511.68,0.00,INDIVIDUALS 
 09-01-2023,Adults,Home Sweet Home Care Ltd,Home Care - Private Contractors Payment,511.68,0.00,COMMERCIAL SUPPLIER 
 09-01-2023,Adults,Home Sweet Home Care Ltd,Home Care - Private Contractors Payment,511.68,0.00,COMMERCIAL SUPPLIER 
 01-01-2023,Adults,Homestead Care Service,Home Care - Private Contractors Payment,512.34,0.00,COMMERCIAL SUPPLIER 
 09-01-2023,Adults,Home Support Services (Havering & Essex) Ltd,Home Care - Private Contractors Payment,512.66,0.00,COMMERCIAL SUPPLIER 
 02-01-2023,Adults,Tapestry_a.,Daycare - Private Contractors Payment,513.00,0.00,COMMERCIAL SUPPLIER 
 30-01-2023,Adults,Tapestry_a.,Daycare - Private Contractors Payment,513.00,0.00,COMMERCIAL SUPPLIER 
 04-01-2023,Adults,Matrix SCM Ltd,Agency Staff,513.16,0.00,COMMERCIAL SUPPLIER 
 09-01-2023,Adults,Home Sweet Home Care Ltd,Home Care - Private Contractors Payment,513.65,0.00,COMMERCIAL SUPPLIER 
 09-01-2023,Adults,Home Sweet Home Care Ltd,Home Care - Private Contractors Payment,513.65,0.00,COMMERCIAL SUPPLIER 
 09-01-2023,Adults,Home Support Services (Havering & Essex) Ltd,Home Care - Private Contractors Payment,513.65,0.00,COMMERCIAL SUPPLIER 
 09-01-2023,Adults,Home Support Services (Havering & Essex) Ltd,Home Care - Private Contractors Payment,513.65,0.00,COMMERCIAL SUPPLIER 
 05-01-2023,Adults,Prestige Care & Support Ltd,Home Care - Private Contractors Payment,513.98,0.00,COMMERCIAL SUPPLIER 
 13-01-2023,Adults,Topaz Care and Support Co Ltd,Supported Other Accommodation - Private Contractors Payment,514.08,0.00,COMMERCIAL SUPPLIER 
 09-01-2023,Adults,Home Sweet Home Care Ltd,Home Care - Private Contractors Payment,514.30,0.00,COMMERCIAL SUPPLIER 
 05-01-2023,Adults,Prestige Care & Support Ltd,Home Care - Private Contractors Payment,514.63,0.00,COMMERCIAL SUPPLIER 
 04-01-2023,Adults,Matrix SCM Ltd,Agency Staff,514.64,0.00,COMMERCIAL SUPPLIER 
 09-01-2023,Adults,Home Sweet Home Care Ltd,Home Care - Private Contractors Payment,515.62,0.00,COMMERCIAL SUPPLIER 
 11-01-2023,Adults,Mayflower Travel,Client Transport,516.00,0.00,COMMERCIAL SUPPLIER 
 11-01-2023,Adults,Matrix SCM Ltd,Agency Staff,516.60,0.00,COMMERCIAL SUPPLIER 
 04-01-2023,Adults,Matrix SCM Ltd,Agency Staff,517.20,0.00,COMMERCIAL SUPPLIER 
 18-01-2023,Adults,Matrix SCM Ltd,Agency Staff,517.20,0.00,COMMERCIAL SUPPLIER 
 25-01-2023,Adults,Matrix SCM Ltd,Agency Staff,517.20,0.00,COMMERCIAL SUPPLIER 
 10-01-2023,Adults,Care-Away Ltd T/A Care Support,Home Care - Private Contractors Payment,520.00,0.00,COMMERCIAL SUPPLIER 
 31-01-2023,Adults,The Camden Society,Daycare - Private Contractors Payment,520.00,0.00,NON COMMERCIAL SUPPLIER 
 18-01-2023,Adults,London Care Plc_a,Home Care - Private Contractors Payment,520.86,0.00,COMMERCIAL SUPPLIER 
 09-01-2023,Adults,Home Sweet Home Care Ltd,Home Care - Private Contractors Payment,521.52,0.00,COMMERCIAL SUPPLIER 
 13-01-2023,Adults,Hospiva Care & Associates Agency Ltd_a,Home Care - Private Contractors Payment,521.52,0.00,COMMERCIAL SUPPLIER 
 13-01-2023,Adults,Cera Care Operations Ltd,Home Care - Private Contractors Payment,521.52,0.00,COMMERCIAL SUPPLIER 
 17-01-2023,Adults,Lodge Group Care UK Ltd,Home Care - Private Contractors Payment,521.85,0.00,COMMERCIAL SUPPLIER 
 01-01-2023,Adults,Homestead Care Service,Home Care - Private Contractors Payment,522.18,0.00,COMMERCIAL SUPPLIER 
 09-01-2023,Adults,Home Sweet Home Care Ltd,Home Care - Private Contractors Payment,522.18,0.00,COMMERCIAL SUPPLIER 
 23-01-2023,Adults,Prior Care Ltd_a,Home Care - Private Contractors Payment,522.18,0.00,COMMERCIAL SUPPLIER 
 17-01-2023,Adults,Lodge Group Care UK Ltd,Home Care - Private Contractors Payment,523.49,0.00,COMMERCIAL SUPPLIER 
 23-01-2023,Adults,Prior Care Ltd_a,Home Care - Private Contractors Payment,524.14,0.00,COMMERCIAL SUPPLIER 
 09-01-2023,Adults,Home Sweet Home Care Ltd,Home Care - Private Contractors Payment,524.47,0.00,COMMERCIAL SUPPLIER 
 01-01-2023,Adults,Homestead Care Service,Home Care - Private Contractors Payment,524.80,0.00,COMMERCIAL SUPPLIER 
 04-01-2023,Adults,Matrix SCM Ltd,Agency Staff,525.00,0.00,COMMERCIAL SUPPLIER 
 05-01-2023,Adults,Prestige Care & Support Ltd,Home Care - Private Contractors Payment,528.74,0.00,COMMERCIAL SUPPLIER 
 13-01-2023,Adults,Cera Care Operations Ltd,Home Care - Private Contractors Payment,528.74,0.00,COMMERCIAL SUPPLIER 
 11-01-2023,Adults,Matrix SCM Ltd,Agency Staff,528.84,0.00,COMMERCIAL SUPPLIER 
 20-01-2023,Adults,Quality Healthcare Solutions Ltd t/a Kare Plus Romford,Home Care - Private Contractors Payment,529.06,0.00,COMMERCIAL SUPPLIER 
 09-01-2023,Adults,Home Support Services (Havering & Essex) Ltd,Home Care - Private Contractors Payment,529.72,0.00,COMMERCIAL SUPPLIER 
 23-01-2023,Adults,Prior Care Ltd_a,Home Care - Private Contractors Payment,531.03,0.00,COMMERCIAL SUPPLIER 
 01-01-2023,Adults,Homestead Care Service,Home Care - Private Contractors Payment,531.36,0.00,COMMERCIAL SUPPLIER 
 09-01-2023,Adults,Home Sweet Home Care Ltd,Home Care - Private Contractors Payment,531.36,0.00,COMMERCIAL SUPPLIER 
 01-01-2023,Adults,Homestead Care Service,Home Care - Private Contractors Payment,532.02,0.00,COMMERCIAL SUPPLIER 
 01-01-2023,Adults,Homestead Care Service,Home Care - Private Contractors Payment,532.34,0.00,COMMERCIAL SUPPLIER 
 06-01-2023,Adults,Care-Away Ltd T/A Care Support,Home Care - Private Contractors Payment,532.48,0.00,COMMERCIAL SUPPLIER 
 06-01-2023,Adults,Anytime Care 2020_a,Home Care - Private Contractors Payment,533.00,0.00,COMMERCIAL SUPPLIER 
 11-01-2023,Adults,Matrix SCM Ltd,Agency Staff,534.52,0.00,COMMERCIAL SUPPLIER 
 23-01-2023,Adults,Prior Care Ltd_a,Home Care - Private Contractors Payment,535.62,0.00,COMMERCIAL SUPPLIER 
 31-01-2023,Adults,Cera Care Operations Ltd,Home Care - Private Contractors Payment,536.28,0.00,COMMERCIAL SUPPLIER 
 13-01-2023,Adults,Cera Care Operations Ltd,Home Care - Private Contractors Payment,537.59,0.00,COMMERCIAL SUPPLIER 
 11-01-2023,Adults,Matrix SCM Ltd,Agency Staff,537.64,0.00,COMMERCIAL SUPPLIER 
 20-01-2023,Adults,Quality Healthcare Solutions Ltd t/a Kare Plus Romford,Home Care - Private Contractors Payment,539.23,0.00,COMMERCIAL SUPPLIER 
 09-01-2023,Adults,Home Sweet Home Care Ltd,Home Care - Private Contractors Payment,541.20,0.00,COMMERCIAL SUPPLIER 
 09-01-2023,Adults,Home Support Services (Havering & Essex) Ltd,Home Care - Private Contractors Payment,541.20,0.00,COMMERCIAL SUPPLIER 
 09-01-2023,Adults,Home Support Services (Havering & Essex) Ltd,Home Care - Private Contractors Payment,541.20,0.00,COMMERCIAL SUPPLIER 
 09-01-2023,Adults,Home Support Services (Havering & Essex) Ltd,Home Care - Private Contractors Payment,541.20,0.00,COMMERCIAL SUPPLIER 
 13-01-2023,Adults,Cera Care Operations Ltd,Home Care - Private Contractors Payment,541.20,0.00,COMMERCIAL SUPPLIER 
 13-01-2023,Adults,Cera Care Operations Ltd,Home Care - Private Contractors Payment,541.20,0.00,COMMERCIAL SUPPLIER 
 13-01-2023,Adults,Morepower Ltd t/a Aqs Homecare,Home Care - Private Contractors Payment,541.20,0.00,COMMERCIAL SUPPLIER 
 17-01-2023,Adults,Lodge Group Care UK Ltd,Home Care - Private Contractors Payment,541.20,0.00,COMMERCIAL SUPPLIER 
 17-01-2023,Adults,Lodge Group Care UK Ltd,Home Care - Private Contractors Payment,541.20,0.00,COMMERCIAL SUPPLIER 
 09-01-2023,Adults,Home Sweet Home Care Ltd,Home Care - Private Contractors Payment,541.53,0.00,COMMERCIAL SUPPLIER 
 13-01-2023,Adults,Morepower Ltd t/a Aqs Homecare,Home Care - Private Contractors Payment,541.53,0.00,COMMERCIAL SUPPLIER 
 06-01-2023,Adults,Anytime Care 2020_a,Home Care - Private Contractors Payment,543.17,0.00,COMMERCIAL SUPPLIER 
 13-01-2023,Adults,Affinia Healthcare Ltd_a,Supported Other Accommodation - Private Contractors Payment,543.20,0.00,COMMERCIAL SUPPLIER 
 13-01-2023,Adults,Outlook Care - 76 Neave Crescent,Supported Other Accommodation - Private Contractors Payment,543.32,0.00,COMMERCIAL SUPPLIER 
 06-01-2023,Adults,Anytime Care 2020_a,Home Care - Private Contractors Payment,543.50,0.00,COMMERCIAL SUPPLIER 
 17-01-2023,Adults,John Stanleys Care Agency Ltd,Home Care - Private Contractors Payment,544.81,0.00,COMMERCIAL SUPPLIER 
 13-01-2023,Adults,Paradise Independent Living,Supported Other Accommodation - Private Contractors Payment,546.24,0.00,NON COMMERCIAL SUPPLIER 
 09-01-2023,Adults,Home Sweet Home Care Ltd,Home Care - Private Contractors Payment,549.07,0.00,COMMERCIAL SUPPLIER 
 13-01-2023,Adults,Morepower Ltd t/a Aqs Homecare,Home Care - Private Contractors Payment,549.07,0.00,COMMERCIAL SUPPLIER 
 10-01-2023,Adults,Care-Away Ltd T/A Care Support,Home Care - Private Contractors Payment,549.12,0.00,COMMERCIAL SUPPLIER 
 13-01-2023,Adults,Morepower Ltd t/a Aqs Homecare,Home Care - Private Contractors Payment,550.06,0.00,COMMERCIAL SUPPLIER 
 17-01-2023,Adults,Lodge Group Care UK Ltd,Home Care - Private Contractors Payment,550.71,0.00,COMMERCIAL SUPPLIER 
 01-01-2023,Adults,Homestead Care Service,Home Care - Private Contractors Payment,551.04,0.00,COMMERCIAL SUPPLIER 
 02-01-2023,Adults,Crystalize Care Services Ltd,Home Care - Private Contractors Payment,551.04,0.00,COMMERCIAL SUPPLIER 
 02-01-2023,Adults,Outreach Support Services Ltd,Home Care - Private Contractors Payment,551.04,0.00,COMMERCIAL SUPPLIER 
 02-01-2023,Adults,Outreach Support Services Ltd,Home Care - Private Contractors Payment,551.04,0.00,COMMERCIAL SUPPLIER 
 02-01-2023,Adults,Outreach Support Services Ltd,Home Care - Private Contractors Payment,551.04,0.00,COMMERCIAL SUPPLIER 
 02-01-2023,Adults,Outreach Support Services Ltd,Home Care - Private Contractors Payment,551.04,0.00,COMMERCIAL SUPPLIER 
 03-01-2023,Adults,KJD Care Limited,Home Care - Private Contractors Payment,551.04,0.00,INDIVIDUALS 
 03-01-2023,Adults,KJD Care Limited,Home Care - Private Contractors Payment,551.04,0.00,INDIVIDUALS 
 03-01-2023,Adults,KJD Care Limited,Home Care - Private Contractors Payment,551.04,0.00,INDIVIDUALS 
 03-01-2023,Adults,KJD Care Limited,Home Care - Private Contractors Payment,551.04,0.00,INDIVIDUALS 
 03-01-2023,Adults,London Homecare Ltd,Home Care - Private Contractors Payment,551.04,0.00,COMMERCIAL SUPPLIER 
 05-01-2023,Adults,Prestige Care & Support Ltd,Home Care - Private Contractors Payment,551.04,0.00,COMMERCIAL SUPPLIER 
 05-01-2023,Adults,Prestige Care & Support Ltd,Home Care - Private Contractors Payment,551.04,0.00,COMMERCIAL SUPPLIER 
 05-01-2023,Adults,Prestige Care & Support Ltd,Home Care - Private Contractors Payment,551.04,0.00,COMMERCIAL SUPPLIER 
 05-01-2023,Adults,Passion Tree Care Services Ltd,Home Care - Private Contractors Payment,551.04,0.00,COMMERCIAL SUPPLIER 
 05-01-2023,Adults,Passion Tree Care Services Ltd,Home Care - Private Contractors Payment,551.04,0.00,COMMERCIAL SUPPLIER 
 05-01-2023,Adults,Passion Tree Care Services Ltd,Home Care - Private Contractors Payment,551.04,0.00,COMMERCIAL SUPPLIER 
 05-01-2023,Adults,Passion Tree Care Services Ltd,Home Care - Private Contractors Payment,551.04,0.00,COMMERCIAL SUPPLIER 
 05-01-2023,Adults,Passion Tree Care Services Ltd,Home Care - Private Contractors Payment,551.04,0.00,COMMERCIAL SUPPLIER 
 09-01-2023,Adults,Home Sweet Home Care Ltd,Home Care - Private Contractors Payment,551.04,0.00,COMMERCIAL SUPPLIER 
 09-01-2023,Adults,Home Sweet Home Care Ltd,Home Care - Private Contractors Payment,551.04,0.00,COMMERCIAL SUPPLIER 
 09-01-2023,Adults,Home Sweet Home Care Ltd,Home Care - Private Contractors Payment,551.04,0.00,COMMERCIAL SUPPLIER 
 09-01-2023,Adults,Home Support Services (Havering & Essex) Ltd,Home Care - Private Contractors Payment,551.04,0.00,COMMERCIAL SUPPLIER 
 09-01-2023,Adults,Home Support Services (Havering & Essex) Ltd,Home Care - Private Contractors Payment,551.04,0.00,COMMERCIAL SUPPLIER 
 09-01-2023,Adults,Inna Care Ltd,Home Care - Private Contractors Payment,551.04,0.00,COMMERCIAL SUPPLIER 
 09-01-2023,Adults,Inna Care Ltd,Home Care - Private Contractors Payment,551.04,0.00,COMMERCIAL SUPPLIER 
 09-01-2023,Adults,Inna Care Ltd,Home Care - Private Contractors Payment,551.04,0.00,COMMERCIAL SUPPLIER 
 09-01-2023,Adults,Inna Care Ltd,Home Care - Private Contractors Payment,551.04,0.00,COMMERCIAL SUPPLIER 
 09-01-2023,Adults,Inna Care Ltd,Home Care - Private Contractors Payment,551.04,0.00,COMMERCIAL SUPPLIER 
 09-01-2023,Adults,Inna Care Ltd,Home Care - Private Contractors Payment,551.04,0.00,COMMERCIAL SUPPLIER 
 09-01-2023,Adults,Inna Care Ltd,Home Care - Private Contractors Payment,551.04,0.00,COMMERCIAL SUPPLIER 
 13-01-2023,Adults,Cera Care Operations Ltd,Home Care - Private Contractors Payment,551.04,0.00,COMMERCIAL SUPPLIER 
 17-01-2023,Adults,Lodge Group Care UK Ltd,Home Care - Private Contractors Payment,551.04,0.00,COMMERCIAL SUPPLIER 
 17-01-2023,Adults,Lodge Group Care UK Ltd,Home Care - Private Contractors Payment,551.04,0.00,COMMERCIAL SUPPLIER 
 23-01-2023,Adults,Prior Care Ltd_a,Home Care - Private Contractors Payment,551.04,0.00,COMMERCIAL SUPPLIER 
 30-01-2023,Adults,Outreach Support Services Ltd,Home Care - Private Contractors Payment,551.04,0.00,COMMERCIAL SUPPLIER 
 30-01-2023,Adults,Outreach Support Services Ltd,Home Care - Private Contractors Payment,551.04,0.00,COMMERCIAL SUPPLIER 
 30-01-2023,Adults,Outreach Support Services Ltd,Home Care - Private Contractors Payment,551.04,0.00,COMMERCIAL SUPPLIER 
 30-01-2023,Adults,London Homecare Ltd,Home Care - Private Contractors Payment,551.04,0.00,COMMERCIAL SUPPLIER 
 30-01-2023,Adults,London Homecare Ltd,Home Care - Private Contractors Payment,551.04,0.00,COMMERCIAL SUPPLIER 
 30-01-2023,Adults,London Homecare Ltd,Home Care - Private Contractors Payment,551.04,0.00,COMMERCIAL SUPPLIER 
 31-01-2023,Adults,Cera Care Operations Ltd,Home Care - Private Contractors Payment,551.04,0.00,COMMERCIAL SUPPLIER 
 31-01-2023,Adults,Cera Care Operations Ltd,Home Care - Private Contractors Payment,551.04,0.00,COMMERCIAL SUPPLIER 
 31-01-2023,Adults,Cera Care Operations Ltd,Home Care - Private Contractors Payment,551.04,0.00,COMMERCIAL SUPPLIER 
 31-01-2023,Adults,Crystalize Care Services Ltd,Home Care - Private Contractors Payment,551.04,0.00,COMMERCIAL SUPPLIER 
 17-01-2023,Adults,Lodge Group Care UK Ltd,Home Care - Private Contractors Payment,551.37,0.00,COMMERCIAL SUPPLIER 
 05-01-2023,Adults,Prestige Care & Support Ltd,Home Care - Private Contractors Payment,551.70,0.00,COMMERCIAL SUPPLIER 
 09-01-2023,Adults,Home Support Services (Havering & Essex) Ltd,Home Care - Private Contractors Payment,551.70,0.00,COMMERCIAL SUPPLIER 
 17-01-2023,Adults,Lodge Group Care UK Ltd,Home Care - Private Contractors Payment,551.70,0.00,COMMERCIAL SUPPLIER 
 31-01-2023,Adults,Cera Care Operations Ltd,Home Care - Private Contractors Payment,551.70,0.00,COMMERCIAL SUPPLIER 
 09-01-2023,Adults,Home Support Services (Havering & Essex) Ltd,Home Care - Private Contractors Payment,552.02,0.00,COMMERCIAL SUPPLIER 
 09-01-2023,Adults,Home Support Services (Havering & Essex) Ltd,Home Care - Private Contractors Payment,552.35,0.00,COMMERCIAL SUPPLIER 
 09-01-2023,Adults,Home Support Services (Havering & Essex) Ltd,Home Care - Private Contractors Payment,552.35,0.00,COMMERCIAL SUPPLIER 
 13-01-2023,Adults,Cera Care Operations Ltd,Home Care - Private Contractors Payment,552.35,0.00,COMMERCIAL SUPPLIER 
 11-01-2023,Adults,Matrix SCM Ltd,Agency Staff,552.47,0.00,COMMERCIAL SUPPLIER 
 09-01-2023,Adults,Home Sweet Home Care Ltd,Home Care - Private Contractors Payment,552.68,0.00,COMMERCIAL SUPPLIER 
 05-01-2023,Adults,Prestige Care & Support Ltd,Home Care - Private Contractors Payment,553.01,0.00,COMMERCIAL SUPPLIER 
 17-01-2023,Adults,Lodge Group Care UK Ltd,Home Care - Private Contractors Payment,553.66,0.00,COMMERCIAL SUPPLIER 
 09-01-2023,Adults,Home Support Services (Havering & Essex) Ltd,Home Care - Private Contractors Payment,553.99,0.00,COMMERCIAL SUPPLIER 
 17-01-2023,Adults,Lodge Group Care UK Ltd,Home Care - Private Contractors Payment,553.99,0.00,COMMERCIAL SUPPLIER 
 20-01-2023,Adults,Quality Healthcare Solutions Ltd t/a Kare Plus Romford,Home Care - Private Contractors Payment,553.99,0.00,COMMERCIAL SUPPLIER 
 09-01-2023,Adults,Home Support Services (Havering & Essex) Ltd,Home Care - Private Contractors Payment,554.32,0.00,COMMERCIAL SUPPLIER 
 17-01-2023,Adults,Lodge Group Care UK Ltd,Home Care - Private Contractors Payment,554.32,0.00,COMMERCIAL SUPPLIER 
 17-01-2023,Adults,John Stanleys Care Agency Ltd,Home Care - Private Contractors Payment,554.65,0.00,COMMERCIAL SUPPLIER 
 31-01-2023,Adults,Cera Care Operations Ltd,Home Care - Private Contractors Payment,554.65,0.00,COMMERCIAL SUPPLIER 
 01-01-2023,Adults,Homestead Care Service,Home Care - Private Contractors Payment,554.98,0.00,COMMERCIAL SUPPLIER 
 09-01-2023,Adults,Home Support Services (Havering & Essex) Ltd,Home Care - Private Contractors Payment,555.30,0.00,COMMERCIAL SUPPLIER 
 09-01-2023,Adults,Home Support Services (Havering & Essex) Ltd,Home Care - Private Contractors Payment,555.63,0.00,COMMERCIAL SUPPLIER 
 05-01-2023,Adults,Prestige Care & Support Ltd,Home Care - Private Contractors Payment,556.29,0.00,COMMERCIAL SUPPLIER 
 06-01-2023,Adults,Anytime Care 2020_a,Home Care - Private Contractors Payment,556.62,0.00,COMMERCIAL SUPPLIER 
 09-01-2023,Adults,Home Support Services (Havering & Essex) Ltd,Home Care - Private Contractors Payment,556.62,0.00,COMMERCIAL SUPPLIER 
 13-01-2023,Adults,Hospiva Care & Associates Agency Ltd_a,Home Care - Private Contractors Payment,556.94,0.00,COMMERCIAL SUPPLIER 
 13-01-2023,Adults,Cera Care Operations Ltd,Home Care - Private Contractors Payment,556.94,0.00,COMMERCIAL SUPPLIER 
 13-01-2023,Adults,Cera Care Operations Ltd,Home Care - Private Contractors Payment,557.60,0.00,COMMERCIAL SUPPLIER 
 11-01-2023,Adults,Matrix SCM Ltd,Agency Staff,557.96,0.00,COMMERCIAL SUPPLIER 
 09-01-2023,Adults,Home Support Services (Havering & Essex) Ltd,Home Care - Private Contractors Payment,558.26,0.00,COMMERCIAL SUPPLIER 
 06-01-2023,Adults,Anytime Care 2020_a,Home Care - Private Contractors Payment,559.57,0.00,COMMERCIAL SUPPLIER 
 17-01-2023,Adults,John Stanleys Care Agency Ltd,Home Care - Private Contractors Payment,559.57,0.00,COMMERCIAL SUPPLIER 
 09-01-2023,Adults,Morepower Ltd t/a Aqs Homecare,Private Contractors Payment - Other,560.00,0.00,COMMERCIAL SUPPLIER 
 09-01-2023,Adults,Lodge Group Care UK Ltd,Private Contractors Payment - Other,560.00,0.00,COMMERCIAL SUPPLIER 
 20-01-2023,Adults,Efficiency - For Care,Supported Other Accommodation - Private Contractors Payment,560.00,0.00,COMMERCIAL SUPPLIER 
 20-01-2023,Adults,Efficiency - For Care,Supported Other Accommodation - Private Contractors Payment,560.00,0.00,COMMERCIAL SUPPLIER 
 09-01-2023,Adults,Home Support Services (Havering & Essex) Ltd,Home Care - Private Contractors Payment,560.22,0.00,COMMERCIAL SUPPLIER 
 09-01-2023,Adults,Home Sweet Home Care Ltd,Home Care - Private Contractors Payment,560.88,0.00,COMMERCIAL SUPPLIER 
 09-01-2023,Adults,Home Sweet Home Care Ltd,Home Care - Private Contractors Payment,560.88,0.00,COMMERCIAL SUPPLIER 
 13-01-2023,Adults,Morepower Ltd t/a Aqs Homecare,Home Care - Private Contractors Payment,560.88,0.00,COMMERCIAL SUPPLIER 
 11-01-2023,Adults,Matrix SCM Ltd,Agency Staff,561.16,0.00,COMMERCIAL SUPPLIER 
 11-01-2023,Adults,Matrix SCM Ltd,Agency Staff,561.16,0.00,COMMERCIAL SUPPLIER 
 18-01-2023,Adults,Matrix SCM Ltd,Agency Staff,561.16,0.00,COMMERCIAL SUPPLIER 
 25-01-2023,Adults,Matrix SCM Ltd,Agency Staff,561.16,0.00,COMMERCIAL SUPPLIER 
 09-01-2023,Adults,Home Sweet Home Care Ltd,Home Care - Private Contractors Payment,561.21,0.00,COMMERCIAL SUPPLIER 
 09-01-2023,Adults,Home Support Services (Havering & Essex) Ltd,Home Care - Private Contractors Payment,562.19,0.00,COMMERCIAL SUPPLIER 
 09-01-2023,Adults,Home Support Services (Havering & Essex) Ltd,Home Care - Private Contractors Payment,562.85,0.00,COMMERCIAL SUPPLIER 
 31-01-2023,Adults,Cera Care Operations Ltd,Home Care - Private Contractors Payment,564.82,0.00,COMMERCIAL SUPPLIER 
 23-01-2023,Adults,Prior Care Ltd_a,Home Care - Private Contractors Payment,565.47,0.00,COMMERCIAL SUPPLIER 
 11-01-2023,Adults,Matrix SCM Ltd,Agency Staff,565.72,0.00,COMMERCIAL SUPPLIER 
 17-01-2023,Adults,John Stanleys Care Agency Ltd,Home Care - Private Contractors Payment,566.13,0.00,COMMERCIAL SUPPLIER 
 09-01-2023,Adults,Home Sweet Home Care Ltd,Home Care - Private Contractors Payment,566.46,0.00,COMMERCIAL SUPPLIER 
 20-01-2023,Adults,Quality Healthcare Solutions Ltd t/a Kare Plus Romford,Home Care - Private Contractors Payment,567.11,0.00,COMMERCIAL SUPPLIER 
 25-01-2023,Adults,Matrix SCM Ltd,Agency Staff,567.23,0.00,COMMERCIAL SUPPLIER 
 25-01-2023,Adults,Matrix SCM Ltd,Agency Staff,567.24,0.00,COMMERCIAL SUPPLIER 
 13-01-2023,Adults,Cera Care Operations Ltd,Home Care - Private Contractors Payment,567.44,0.00,COMMERCIAL SUPPLIER 
 09-01-2023,Adults,Home Support Services (Havering & Essex) Ltd,Home Care - Private Contractors Payment,568.42,0.00,COMMERCIAL SUPPLIER 
 13-01-2023,Adults,Raynet Recruitment Agency Ltd,Supported Other Accommodation - Private Contractors Payment,568.56,0.00,COMMERCIAL SUPPLIER 
 13-01-2023,Adults,Morepower Ltd t/a Aqs Homecare,Home Care - Private Contractors Payment,569.41,0.00,COMMERCIAL SUPPLIER 
 09-01-2023,Adults,Home Support Services (Havering & Essex) Ltd,Home Care - Private Contractors Payment,570.72,0.00,COMMERCIAL SUPPLIER 
 09-01-2023,Adults,Home Support Services (Havering & Essex) Ltd,Home Care - Private Contractors Payment,571.05,0.00,COMMERCIAL SUPPLIER 
 13-01-2023,Adults,Cera Care Operations Ltd,Home Care - Private Contractors Payment,571.05,0.00,COMMERCIAL SUPPLIER 
 11-01-2023,Adults,Matrix SCM Ltd,Agency Staff,572.16,0.00,COMMERCIAL SUPPLIER 
 17-01-2023,Adults,Lodge Group Care UK Ltd,Home Care - Private Contractors Payment,572.36,0.00,COMMERCIAL SUPPLIER 
 01-01-2023,Adults,Homestead Care Service,Home Care - Private Contractors Payment,573.34,0.00,COMMERCIAL SUPPLIER 
 17-01-2023,Adults,Lodge Group Care UK Ltd,Home Care - Private Contractors Payment,573.67,0.00,COMMERCIAL SUPPLIER 
 01-01-2023,Adults,Homestead Care Service,Home Care - Private Contractors Payment,574.33,0.00,COMMERCIAL SUPPLIER 
 17-01-2023,Adults,Lodge Group Care UK Ltd,Home Care - Private Contractors Payment,576.62,0.00,COMMERCIAL SUPPLIER 
 04-01-2023,Adults,Matrix SCM Ltd,Agency Staff,576.90,0.00,COMMERCIAL SUPPLIER 
 09-01-2023,Adults,Home Sweet Home Care Ltd,Home Care - Private Contractors Payment,577.61,0.00,COMMERCIAL SUPPLIER 
 31-01-2023,Adults,Cera Care Operations Ltd,Home Care - Private Contractors Payment,577.94,0.00,COMMERCIAL SUPPLIER 
 31-01-2023,Adults,Cera Care Operations Ltd,Home Care - Private Contractors Payment,581.22,0.00,COMMERCIAL SUPPLIER 
 05-01-2023,Adults,Access UK Ltd,Private Contractors Payment - Other,582.25,0.00,COMMERCIAL SUPPLIER 
 06-01-2023,Adults,Care-Away Ltd T/A Care Support,Home Care - Private Contractors Payment,582.40,0.00,COMMERCIAL SUPPLIER 
 13-01-2023,Adults,Morepower Ltd t/a Aqs Homecare,Home Care - Private Contractors Payment,582.86,0.00,COMMERCIAL SUPPLIER 
 01-01-2023,Adults,Homestead Care Service,Home Care - Private Contractors Payment,583.51,0.00,COMMERCIAL SUPPLIER 
 09-01-2023,Adults,Home Sweet Home Care Ltd,Home Care - Private Contractors Payment,583.51,0.00,COMMERCIAL SUPPLIER 
 11-01-2023,Adults,Matrix SCM Ltd,Agency Staff,583.62,0.00,COMMERCIAL SUPPLIER 
 11-01-2023,Adults,Matrix SCM Ltd,Agency Staff,583.62,0.00,COMMERCIAL SUPPLIER 
 17-01-2023,Adults,New Opportunity Groups Havering,Daycare - Private Contractors Payment,585.00,0.00,COMMERCIAL SUPPLIER 
 13-01-2023,Adults,Cera Care Operations Ltd,Home Care - Private Contractors Payment,586.79,0.00,COMMERCIAL SUPPLIER 
 17-01-2023,Adults,John Stanleys Care Agency Ltd,Home Care - Private Contractors Payment,587.45,0.00,COMMERCIAL SUPPLIER 
 06-01-2023,Adults,Anytime Care 2020_a,Home Care - Private Contractors Payment,588.43,0.00,COMMERCIAL SUPPLIER 
 18-01-2023,Adults,Matrix SCM Ltd,Agency Staff,589.68,0.00,COMMERCIAL SUPPLIER 
 25-01-2023,Adults,Matrix SCM Ltd,Agency Staff,589.68,0.00,COMMERCIAL SUPPLIER 
 20-01-2023,Adults,S J Builders,Maintenance - Equipment Furniture And Materials,590.00,0.00,COMMERCIAL SUPPLIER 
 03-01-2023,Adults,London Homecare Ltd,Home Care - Private Contractors Payment,590.40,0.00,COMMERCIAL SUPPLIER 
 09-01-2023,Adults,Home Support Services (Havering & Essex) Ltd,Home Care - Private Contractors Payment,590.40,0.00,COMMERCIAL SUPPLIER 
 30-01-2023,Adults,London Homecare Ltd,Home Care - Private Contractors Payment,590.40,0.00,COMMERCIAL SUPPLIER 
 09-01-2023,Adults,Home Support Services (Havering & Essex) Ltd,Home Care - Private Contractors Payment,590.73,0.00,COMMERCIAL SUPPLIER 
 09-01-2023,Adults,Home Support Services (Havering & Essex) Ltd,Home Care - Private Contractors Payment,592.04,0.00,COMMERCIAL SUPPLIER 
 23-01-2023,Adults,Prior Care Ltd_a,Home Care - Private Contractors Payment,594.01,0.00,COMMERCIAL SUPPLIER 
 09-01-2023,Adults,Home Sweet Home Care Ltd,Home Care - Private Contractors Payment,594.34,0.00,COMMERCIAL SUPPLIER 
 10-01-2023,Adults,Care-Away Ltd T/A Care Support,Home Care - Private Contractors Payment,594.88,0.00,COMMERCIAL SUPPLIER 
 17-01-2023,Adults,Lodge Group Care UK Ltd,Home Care - Private Contractors Payment,594.99,0.00,COMMERCIAL SUPPLIER 
 17-01-2023,Adults,Lodge Group Care UK Ltd,Home Care - Private Contractors Payment,597.29,0.00,COMMERCIAL SUPPLIER 
 17-01-2023,Adults,Lodge Group Care UK Ltd,Home Care - Private Contractors Payment,598.60,0.00,COMMERCIAL SUPPLIER 
 05-01-2023,Adults,Prestige Care & Support Ltd,Home Care - Private Contractors Payment,599.58,0.00,COMMERCIAL SUPPLIER 
 05-01-2023,Adults,Prestige Care & Support Ltd,Home Care - Private Contractors Payment,599.91,0.00,COMMERCIAL SUPPLIER 
 09-01-2023,Adults,Home Support Services (Havering & Essex) Ltd,Home Care - Private Contractors Payment,600.24,0.00,COMMERCIAL SUPPLIER 
 09-01-2023,Adults,Home Support Services (Havering & Essex) Ltd,Home Care - Private Contractors Payment,600.24,0.00,COMMERCIAL SUPPLIER 
 09-01-2023,Adults,Home Support Services (Havering & Essex) Ltd,Home Care - Private Contractors Payment,601.55,0.00,COMMERCIAL SUPPLIER 
 17-01-2023,Adults,John Stanleys Care Agency Ltd,Home Care - Private Contractors Payment,601.55,0.00,COMMERCIAL SUPPLIER 
 05-01-2023,Adults,Prestige Care & Support Ltd,Home Care - Private Contractors Payment,607.13,0.00,COMMERCIAL SUPPLIER 
 18-01-2023,Adults,Matrix SCM Ltd,Agency Staff,608.40,0.00,COMMERCIAL SUPPLIER 
 25-01-2023,Adults,Matrix SCM Ltd,Agency Staff,608.40,0.00,COMMERCIAL SUPPLIER 
 04-01-2023,Adults,Matrix SCM Ltd,Agency Staff,608.42,0.00,COMMERCIAL SUPPLIER 
 13-01-2023,Adults,Moreland House_a,Nursing Care Income,608.55,0.00,COMMERCIAL SUPPLIER 
 13-01-2023,Adults,Highfield Care Homes Ltd t/a Romford Grange Care Home,Residential Care Income,608.80,0.00,COMMERCIAL SUPPLIER 
 13-01-2023,Adults,Highfield Care Homes Ltd t/a Romford Grange Care Home,Residential Care Income,608.80,0.00,COMMERCIAL SUPPLIER 
 13-01-2023,Adults,Highfield Care Homes Ltd t/a Romford Grange Care Home,Residential Care Income,608.80,0.00,COMMERCIAL SUPPLIER 
 13-01-2023,Adults,Highfield Care Homes Ltd t/a Romford Grange Care Home,Residential Care Income,608.80,0.00,COMMERCIAL SUPPLIER 
 13-01-2023,Adults,Highfield Care Homes Ltd t/a Romford Grange Care Home,Residential Care Income,608.80,0.00,COMMERCIAL SUPPLIER 
 13-01-2023,Adults,Highfield Care Homes Ltd t/a Romford Grange Care Home,Residential Care Income,608.80,0.00,COMMERCIAL SUPPLIER 
 13-01-2023,Adults,Highfield Care Homes Ltd t/a Romford Grange Care Home,Residential Care Income,608.80,0.00,COMMERCIAL SUPPLIER 
 13-01-2023,Adults,Highfield Care Homes Ltd t/a Romford Grange Care Home,Residential Care Income,608.80,0.00,COMMERCIAL SUPPLIER 
 13-01-2023,Adults,Highfield Care Homes Ltd t/a Romford Grange Care Home,Residential Care Income,608.80,0.00,COMMERCIAL SUPPLIER 
 13-01-2023,Adults,Highfield Care Homes Ltd t/a Romford Grange Care Home,Residential Care Income,608.80,0.00,COMMERCIAL SUPPLIER 
 09-01-2023,Adults,Home Support Services (Havering & Essex) Ltd,Home Care - Private Contractors Payment,610.74,0.00,COMMERCIAL SUPPLIER 
 09-01-2023,Adults,Home Support Services (Havering & Essex) Ltd,Home Care - Private Contractors Payment,610.74,0.00,COMMERCIAL SUPPLIER 
 18-01-2023,Adults,Matrix SCM Ltd,Agency Staff,610.91,0.00,COMMERCIAL SUPPLIER 
 25-01-2023,Adults,Matrix SCM Ltd,Agency Staff,610.91,0.00,COMMERCIAL SUPPLIER 
 18-01-2023,Adults,Matrix SCM Ltd,Agency Staff,611.98,0.00,COMMERCIAL SUPPLIER 
 23-01-2023,Adults,Prior Care Ltd_a,Home Care - Private Contractors Payment,614.02,0.00,COMMERCIAL SUPPLIER 
 09-01-2023,Adults,Home Sweet Home Care Ltd,Home Care - Private Contractors Payment,614.34,0.00,COMMERCIAL SUPPLIER 
 06-01-2023,Adults,Anytime Care 2020_a,Home Care - Private Contractors Payment,614.67,0.00,COMMERCIAL SUPPLIER 
 10-01-2023,Adults,Care-Away Ltd T/A Care Support,Home Care - Private Contractors Payment,615.68,0.00,COMMERCIAL SUPPLIER 
 11-01-2023,Adults,Matrix SCM Ltd,Agency Staff,618.31,0.00,COMMERCIAL SUPPLIER 
 13-01-2023,Adults,Highfield Care Homes Ltd t/a Romford Grange Care Home,Residential Care Income,620.96,0.00,COMMERCIAL SUPPLIER 
 13-01-2023,Adults,HC-One Oval Ltd - Chaseview,Residential Care Income,621.00,0.00,COMMERCIAL SUPPLIER 
 01-01-2023,Adults,Homestead Care Service,Home Care - Private Contractors Payment,622.87,0.00,COMMERCIAL SUPPLIER 
 13-01-2023,Adults,Cera Care Operations Ltd,Home Care - Private Contractors Payment,623.86,0.00,COMMERCIAL SUPPLIER 
 01-01-2023,Adults,Homestead Care Service,Home Care - Private Contractors Payment,624.84,0.00,COMMERCIAL SUPPLIER 
 05-01-2023,Adults,Prestige Care & Support Ltd,Home Care - Private Contractors Payment,625.50,0.00,COMMERCIAL SUPPLIER 
 13-01-2023,Adults,Morepower Ltd t/a Aqs Homecare,Home Care - Private Contractors Payment,625.50,0.00,COMMERCIAL SUPPLIER 
 30-01-2023,Adults,Quality Healthcare Solutions Ltd t/a Kare Plus Romford,Home Care - Private Contractors Payment,626.81,0.00,COMMERCIAL SUPPLIER 
 02-01-2023,Adults,Tapestry_a.,Daycare - Private Contractors Payment,627.00,0.00,COMMERCIAL SUPPLIER 
 02-01-2023,Adults,Tapestry_a.,Daycare - Private Contractors Payment,627.00,0.00,COMMERCIAL SUPPLIER 
 02-01-2023,Adults,Tapestry_a.,Daycare - Private Contractors Payment,627.00,0.00,COMMERCIAL SUPPLIER 
 30-01-2023,Adults,Tapestry_a.,Daycare - Private Contractors Payment,627.00,0.00,COMMERCIAL SUPPLIER 
 30-01-2023,Adults,Tapestry_a.,Daycare - Private Contractors Payment,627.00,0.00,COMMERCIAL SUPPLIER 
 13-01-2023,Adults,Highfield Care Homes Ltd t/a Romford Grange Care Home,Residential Care Income,627.72,0.00,COMMERCIAL SUPPLIER 
 13-01-2023,Adults,Highfield Care Homes Ltd t/a Romford Grange Care Home,Residential Care Income,627.72,0.00,COMMERCIAL SUPPLIER 
 13-01-2023,Adults,Highfield Care Homes Ltd t/a Romford Grange Care Home,Residential Care Income,627.72,0.00,COMMERCIAL SUPPLIER 
 13-01-2023,Adults,Highfield Care Homes Ltd t/a Romford Grange Care Home,Residential Care Income,627.72,0.00,COMMERCIAL SUPPLIER 
 13-01-2023,Adults,Highfield Care Homes Ltd t/a Romford Grange Care Home,Residential Care Income,627.72,0.00,COMMERCIAL SUPPLIER 
 13-01-2023,Adults,Highfield Care Homes Ltd t/a Romford Grange Care Home,Residential Care Income,627.72,0.00,COMMERCIAL SUPPLIER 
 13-01-2023,Adults,Highfield Care Homes Ltd t/a Romford Grange Care Home,Residential Care Income,627.72,0.00,COMMERCIAL SUPPLIER 
 13-01-2023,Adults,Highfield Care Homes Ltd t/a Romford Grange Care Home,Residential Care Income,627.72,0.00,COMMERCIAL SUPPLIER 
 13-01-2023,Adults,Highfield Care Homes Ltd t/a Romford Grange Care Home,Residential Care Income,627.72,0.00,COMMERCIAL SUPPLIER 
 13-01-2023,Adults,Willows Care Home - Churchgate Healthcare (Willows) Ltd,Nursing Care Income,627.72,0.00,COMMERCIAL SUPPLIER 
 13-01-2023,Adults,HC-One Oval Ltd - Chaseview,Residential Care Income,627.80,0.00,COMMERCIAL SUPPLIER 
 13-01-2023,Adults,HC-One Oval Ltd - Chaseview,Residential Care Income,627.80,0.00,COMMERCIAL SUPPLIER 
 13-01-2023,Adults,HC-One Oval Ltd - Chaseview,Residential Care Income,627.80,0.00,COMMERCIAL SUPPLIER 
 13-01-2023,Adults,HC-One Oval Ltd - Chaseview,Residential Care Income,627.80,0.00,COMMERCIAL SUPPLIER 
 13-01-2023,Adults,HC-One Oval Ltd - Chaseview,Residential Care Income,627.80,0.00,COMMERCIAL SUPPLIER 
 13-01-2023,Adults,HC-One Oval Ltd - Chaseview,Residential Care Income,627.80,0.00,COMMERCIAL SUPPLIER 
 13-01-2023,Adults,HC-One Oval Ltd - Chaseview,Residential Care Income,627.80,0.00,COMMERCIAL SUPPLIER 
 13-01-2023,Adults,HC-One Oval Ltd - Chaseview,Residential Care Income,627.80,0.00,COMMERCIAL SUPPLIER 
 13-01-2023,Adults,HC-One Oval Ltd - Chaseview,Residential Care Income,627.80,0.00,COMMERCIAL SUPPLIER 
 20-01-2023,Adults,Quality Healthcare Solutions Ltd t/a Kare Plus Romford,Home Care - Private Contractors Payment,628.12,0.00,COMMERCIAL SUPPLIER 
 03-01-2023,Adults,KJD Care Limited,Home Care - Private Contractors Payment,629.76,0.00,INDIVIDUALS 
 03-01-2023,Adults,S&A Care Services Ltd.,Supported Other Accommodation - Private Contractors Payment,630.00,0.00,COMMERCIAL SUPPLIER 
 09-01-2023,Adults,Lodge Group Care UK Ltd,Private Contractors Payment - Other,630.00,0.00,COMMERCIAL SUPPLIER 
 09-01-2023,Adults,Lodge Group Care UK Ltd,Private Contractors Payment - Other,630.00,0.00,COMMERCIAL SUPPLIER 
 13-01-2023,Adults,Cygnet Health Care,Residential Placements - Private Contractors Payment,630.00,0.00,COMMERCIAL SUPPLIER 
 18-01-2023,Adults,Matrix SCM Ltd,Agency Staff,630.11,0.00,COMMERCIAL SUPPLIER 
 06-01-2023,Adults,Affinia Healthcare Ltd_a,Supported Other Accommodation - Private Contractors Payment,630.30,0.00,COMMERCIAL SUPPLIER 
 13-01-2023,Adults,Highfield Care Homes Ltd t/a Romford Grange Care Home,Residential Care Income,630.54,0.00,COMMERCIAL SUPPLIER 
 11-01-2023,Adults,Matrix SCM Ltd,Agency Staff,631.36,0.00,COMMERCIAL SUPPLIER 
 01-01-2023,Adults,Homestead Care Service,Home Care - Private Contractors Payment,631.40,0.00,COMMERCIAL SUPPLIER 
 13-01-2023,Adults,Highfield Care Homes Ltd t/a Romford Grange Care Home,Nursing Care Income,631.50,0.00,COMMERCIAL SUPPLIER 
 11-01-2023,Adults,Matrix SCM Ltd,Agency Staff,631.63,0.00,COMMERCIAL SUPPLIER 
 25-01-2023,Adults,Matrix SCM Ltd,Agency Staff,631.63,0.00,COMMERCIAL SUPPLIER 
 09-01-2023,Adults,Home Support Services (Havering & Essex) Ltd,Home Care - Private Contractors Payment,632.06,0.00,COMMERCIAL SUPPLIER 
 31-01-2023,Adults,Cera Care Operations Ltd,Home Care - Private Contractors Payment,632.71,0.00,COMMERCIAL SUPPLIER 
 23-01-2023,Adults,Prior Care Ltd_a,Home Care - Private Contractors Payment,633.70,0.00,COMMERCIAL SUPPLIER 
 13-01-2023,Adults,Morepower Ltd t/a Aqs Homecare,Home Care - Private Contractors Payment,634.02,0.00,COMMERCIAL SUPPLIER 
 13-01-2023,Adults,Morepower Ltd t/a Aqs Homecare,Home Care - Private Contractors Payment,636.65,0.00,COMMERCIAL SUPPLIER 
 11-01-2023,Adults,Matrix SCM Ltd,Agency Staff,637.12,0.00,COMMERCIAL SUPPLIER 
 10-01-2023,Adults,Care-Away Ltd T/A Care Support,Home Care - Private Contractors Payment,640.64,0.00,COMMERCIAL SUPPLIER 
 17-01-2023,Adults,Lodge Group Care UK Ltd,Home Care - Private Contractors Payment,640.91,0.00,COMMERCIAL SUPPLIER 
 01-01-2023,Adults,Homestead Care Service,Home Care - Private Contractors Payment,642.88,0.00,COMMERCIAL SUPPLIER 
 09-01-2023,Adults,Home Sweet Home Care Ltd,Home Care - Private Contractors Payment,646.82,0.00,COMMERCIAL SUPPLIER 
 01-01-2023,Adults,Homestead Care Service,Home Care - Private Contractors Payment,647.80,0.00,COMMERCIAL SUPPLIER 
 01-01-2023,Adults,Homestead Care Service,Home Care - Private Contractors Payment,647.80,0.00,COMMERCIAL SUPPLIER 
 06-01-2023,Adults,Care-Away Ltd T/A Care Support,Home Care - Private Contractors Payment,648.96,0.00,COMMERCIAL SUPPLIER 
 09-01-2023,Adults,Home Support Services (Havering & Essex) Ltd,Home Care - Private Contractors Payment,650.10,0.00,COMMERCIAL SUPPLIER 
 01-01-2023,Adults,Homestead Care Service,Home Care - Private Contractors Payment,650.42,0.00,COMMERCIAL SUPPLIER 
 09-01-2023,Adults,Home Support Services (Havering & Essex) Ltd,Home Care - Private Contractors Payment,652.06,0.00,COMMERCIAL SUPPLIER 
 13-01-2023,Adults,Bupa Care Homes (HVC) - Havering Court,Nursing Homes - Private Contractors Payment,656.41,0.00,COMMERCIAL SUPPLIER 
 13-01-2023,Adults,Priory Supporting Care Ltd,Residential Placements - Private Contractors Payment,657.14,0.00,COMMERCIAL SUPPLIER 
 09-01-2023,Adults,Home Sweet Home Care Ltd,Home Care - Private Contractors Payment,658.62,0.00,COMMERCIAL SUPPLIER 
 01-01-2023,Adults,Homestead Care Service,Home Care - Private Contractors Payment,658.95,0.00,COMMERCIAL SUPPLIER 
 04-01-2023,Adults,Matrix SCM Ltd,Agency Staff,659.05,0.00,COMMERCIAL SUPPLIER 
 11-01-2023,Adults,Matrix SCM Ltd,Agency Staff,659.12,0.00,COMMERCIAL SUPPLIER 
 25-01-2023,Adults,Matrix SCM Ltd,Agency Staff,659.12,0.00,COMMERCIAL SUPPLIER 
 09-01-2023,Adults,Home Support Services (Havering & Essex) Ltd,Home Care - Private Contractors Payment,659.28,0.00,COMMERCIAL SUPPLIER 
 17-01-2023,Adults,Lodge Group Care UK Ltd,Home Care - Private Contractors Payment,661.25,0.00,COMMERCIAL SUPPLIER 
 13-01-2023,Adults,Dudbrook Hall Residential Home,Residential Care Income,664.80,0.00,COMMERCIAL SUPPLIER 
 23-01-2023,Adults,Prior Care Ltd_a,Home Care - Private Contractors Payment,666.82,0.00,COMMERCIAL SUPPLIER 
 13-01-2023,Adults,Dudbrook Hall Residential Home,Residential Care Income,667.80,0.00,COMMERCIAL SUPPLIER 
 13-01-2023,Adults,Dudbrook Hall Residential Home,Residential Care Income,667.80,0.00,COMMERCIAL SUPPLIER 
 09-01-2023,Adults,Home Sweet Home Care Ltd,Home Care - Private Contractors Payment,669.12,0.00,COMMERCIAL SUPPLIER 
 01-01-2023,Adults,Homestead Care Service,Home Care - Private Contractors Payment,670.10,0.00,COMMERCIAL SUPPLIER 
 05-01-2023,Adults,Prestige Care & Support Ltd,Home Care - Private Contractors Payment,670.43,0.00,COMMERCIAL SUPPLIER 
 20-01-2023,Adults,Quality Healthcare Solutions Ltd t/a Kare Plus Romford,Home Care - Private Contractors Payment,673.06,0.00,COMMERCIAL SUPPLIER 
 18-01-2023,Adults,Matrix SCM Ltd,Agency Staff,673.22,0.00,COMMERCIAL SUPPLIER 
 25-01-2023,Adults,Matrix SCM Ltd,Agency Staff,673.22,0.00,COMMERCIAL SUPPLIER 
 13-01-2023,Adults,Shalom Community Support Services,Supported Other Accommodation - Private Contractors Payment,674.00,0.00,COMMERCIAL SUPPLIER 
 17-01-2023,Adults,John Stanleys Care Agency Ltd,Home Care - Private Contractors Payment,675.35,0.00,COMMERCIAL SUPPLIER 
 27-01-2023,Adults,Potton Services Ltd,Home Care - Private Contractors Payment,676.50,0.00,COMMERCIAL SUPPLIER 
 17-01-2023,Adults,Lodge Group Care UK Ltd,Home Care - Private Contractors Payment,677.65,0.00,COMMERCIAL SUPPLIER 
 20-01-2023,Adults,Quality Healthcare Solutions Ltd t/a Kare Plus Romford,Home Care - Private Contractors Payment,677.65,0.00,COMMERCIAL SUPPLIER 
 25-01-2023,Adults,Matrix SCM Ltd,Agency Staff,677.89,0.00,COMMERCIAL SUPPLIER 
 11-01-2023,Adults,Matrix SCM Ltd,Agency Staff,678.88,0.00,COMMERCIAL SUPPLIER 
 06-01-2023,Adults,Anytime Care 2020_a,Home Care - Private Contractors Payment,678.96,0.00,COMMERCIAL SUPPLIER 
 13-01-2023,Adults,Affinia Healthcare Ltd_a,Supported Other Accommodation - Private Contractors Payment,678.96,0.00,COMMERCIAL SUPPLIER 
 13-01-2023,Adults,Morepower Ltd t/a Aqs Homecare,Home Care - Private Contractors Payment,679.29,0.00,COMMERCIAL SUPPLIER 
 05-01-2023,Adults,Prestige Care & Support Ltd,Home Care - Private Contractors Payment,680.60,0.00,COMMERCIAL SUPPLIER 
 06-01-2023,Adults,Care-Away Ltd T/A Care Support,Home Care - Private Contractors Payment,682.24,0.00,COMMERCIAL SUPPLIER 
 01-01-2023,Adults,Homestead Care Service,Home Care - Private Contractors Payment,683.55,0.00,COMMERCIAL SUPPLIER 
 02-01-2023,Adults,Tapestry_a.,Daycare - Private Contractors Payment,684.00,0.00,COMMERCIAL SUPPLIER 
 02-01-2023,Adults,Tapestry_a.,Daycare - Private Contractors Payment,684.00,0.00,COMMERCIAL SUPPLIER 
 02-01-2023,Adults,Tapestry_a.,Daycare - Private Contractors Payment,684.00,0.00,COMMERCIAL SUPPLIER 
 02-01-2023,Adults,Tapestry_a.,Daycare - Private Contractors Payment,684.00,0.00,COMMERCIAL SUPPLIER 
 02-01-2023,Adults,Tapestry_a.,Daycare - Private Contractors Payment,684.00,0.00,COMMERCIAL SUPPLIER 
 02-01-2023,Adults,Tapestry_a.,Daycare - Private Contractors Payment,684.00,0.00,COMMERCIAL SUPPLIER 
 02-01-2023,Adults,Tapestry_a.,Daycare - Private Contractors Payment,684.00,0.00,COMMERCIAL SUPPLIER 
 30-01-2023,Adults,Tapestry_a.,Daycare - Private Contractors Payment,684.00,0.00,COMMERCIAL SUPPLIER 
 30-01-2023,Adults,Tapestry_a.,Daycare - Private Contractors Payment,684.00,0.00,COMMERCIAL SUPPLIER 
 30-01-2023,Adults,Tapestry_a.,Daycare - Private Contractors Payment,684.00,0.00,COMMERCIAL SUPPLIER 
 30-01-2023,Adults,Tapestry_a.,Daycare - Private Contractors Payment,684.00,0.00,COMMERCIAL SUPPLIER 
 30-01-2023,Adults,Tapestry_a.,Daycare - Private Contractors Payment,684.00,0.00,COMMERCIAL SUPPLIER 
 30-01-2023,Adults,Tapestry_a.,Daycare - Private Contractors Payment,684.00,0.00,COMMERCIAL SUPPLIER 
 01-01-2023,Adults,Homestead Care Service,Home Care - Private Contractors Payment,684.21,0.00,COMMERCIAL SUPPLIER 
 20-01-2023,Adults,Quality Healthcare Solutions Ltd t/a Kare Plus Romford,Home Care - Private Contractors Payment,684.21,0.00,COMMERCIAL SUPPLIER 
 05-01-2023,Adults,Prestige Care & Support Ltd,Home Care - Private Contractors Payment,685.52,0.00,COMMERCIAL SUPPLIER 
 09-01-2023,Adults,Home Sweet Home Care Ltd,Home Care - Private Contractors Payment,685.85,0.00,COMMERCIAL SUPPLIER 
 09-01-2023,Adults,Home Sweet Home Care Ltd,Home Care - Private Contractors Payment,685.85,0.00,COMMERCIAL SUPPLIER 
 13-01-2023,Adults,Gemini Assisted Living Ltd,Supported Other Accommodation - Private Contractors Payment,686.40,0.00,COMMERCIAL SUPPLIER 
 03-01-2023,Adults,KJD Care Limited,Home Care - Private Contractors Payment,688.80,0.00,INDIVIDUALS 
 03-01-2023,Adults,London Homecare Ltd,Home Care - Private Contractors Payment,688.80,0.00,COMMERCIAL SUPPLIER 
 30-01-2023,Adults,London Homecare Ltd,Home Care - Private Contractors Payment,688.80,0.00,COMMERCIAL SUPPLIER 
 01-01-2023,Adults,Eastway Care Ltd_a,Daycare - Private Contractors Payment,690.00,0.00,COMMERCIAL SUPPLIER 
 17-01-2023,Adults,Lodge Group Care UK Ltd,Home Care - Private Contractors Payment,690.44,0.00,COMMERCIAL SUPPLIER 
 01-01-2023,Adults,Homestead Care Service,Home Care - Private Contractors Payment,691.10,0.00,COMMERCIAL SUPPLIER 
 25-01-2023,Adults,Matrix SCM Ltd,Agency Staff,692.64,0.00,COMMERCIAL SUPPLIER 
 01-01-2023,Adults,Westminster Homecare Ltd_a,Home Care - Private Contractors Payment,693.06,0.00,COMMERCIAL SUPPLIER 
 31-01-2023,Adults,Cera Care Operations Ltd,Home Care - Private Contractors Payment,693.06,0.00,COMMERCIAL SUPPLIER 
 13-01-2023,Adults,Masumin Ltd t/s Abbeleigh House,Respite Care - Private Contractors Payment,695.00,0.00,COMMERCIAL SUPPLIER 
 13-01-2023,Adults,Masumin Ltd t/s Abbeleigh House,Respite Care - Private Contractors Payment,695.00,0.00,COMMERCIAL SUPPLIER 
 13-01-2023,Adults,Lodge Lane Care Home Limited,Residential Placements - Private Contractors Payment,695.00,0.00,COMMERCIAL SUPPLIER 
 13-01-2023,Adults,Lodge Lane Care Home Limited,Respite Care - Private Contractors Payment,695.00,0.00,COMMERCIAL SUPPLIER 
 31-01-2023,Adults,Cera Care Operations Ltd,Home Care - Private Contractors Payment,696.34,0.00,COMMERCIAL SUPPLIER 
 18-01-2023,Adults,Matrix SCM Ltd,Agency Staff,696.61,0.00,COMMERCIAL SUPPLIER 
 18-01-2023,Adults,Matrix SCM Ltd,Agency Staff,696.61,0.00,COMMERCIAL SUPPLIER 
 18-01-2023,Adults,Matrix SCM Ltd,Agency Staff,696.61,0.00,COMMERCIAL SUPPLIER 
 25-01-2023,Adults,Matrix SCM Ltd,Agency Staff,696.61,0.00,COMMERCIAL SUPPLIER 
 25-01-2023,Adults,Matrix SCM Ltd,Agency Staff,696.61,0.00,COMMERCIAL SUPPLIER 
 25-01-2023,Adults,Matrix SCM Ltd,Agency Staff,696.61,0.00,COMMERCIAL SUPPLIER 
 17-01-2023,Adults,Lodge Group Care UK Ltd,Home Care - Private Contractors Payment,697.00,0.00,COMMERCIAL SUPPLIER 
 09-01-2023,Adults,Home Support Services (Havering & Essex) Ltd,Home Care - Private Contractors Payment,697.33,0.00,COMMERCIAL SUPPLIER 
 01-01-2023,Adults,Homestead Care Service,Home Care - Private Contractors Payment,698.31,0.00,COMMERCIAL SUPPLIER 
 09-01-2023,Adults,Home Support Services (Havering & Essex) Ltd,Home Care - Private Contractors Payment,698.31,0.00,COMMERCIAL SUPPLIER 
 06-01-2023,Adults,Care-Away Ltd T/A Care Support,Home Care - Private Contractors Payment,698.88,0.00,COMMERCIAL SUPPLIER 
 09-01-2023,Adults,Home Sweet Home Care Ltd,Home Care - Private Contractors Payment,699.30,0.00,COMMERCIAL SUPPLIER 
 06-01-2023,Adults,Prior Care Ltd_a,Home Care - Private Contractors Payment,700.00,0.00,COMMERCIAL SUPPLIER 
 09-01-2023,Adults,Lodge Group Care UK Ltd,Private Contractors Payment - Other,700.00,0.00,COMMERCIAL SUPPLIER 
 04-01-2023,Adults,Inclusive Care Support Limited,Supported Other Accommodation - Private Contractors Payment,700.84,0.00,COMMERCIAL SUPPLIER 
 04-01-2023,Adults,Inclusive Care Support Limited,Long Term Support - Community: Supported Living,700.84,0.00,COMMERCIAL SUPPLIER 
 04-01-2023,Adults,Inclusive Care Support Limited,Supported Other Accommodation - Private Contractors Payment,700.84,0.00,COMMERCIAL SUPPLIER 
 04-01-2023,Adults,Inclusive Care Support Limited,Supported Other Accommodation - Private Contractors Payment,700.84,0.00,COMMERCIAL SUPPLIER 
 04-01-2023,Adults,Inclusive Care Support Limited,Supported Other Accommodation - Private Contractors Payment,700.84,0.00,COMMERCIAL SUPPLIER 
 09-01-2023,Adults,Home Sweet Home Care Ltd,Home Care - Private Contractors Payment,700.94,0.00,COMMERCIAL SUPPLIER 
 17-01-2023,Adults,John Stanleys Care Agency Ltd,Home Care - Private Contractors Payment,702.90,0.00,COMMERCIAL SUPPLIER 
 17-01-2023,Adults,John Stanleys Care Agency Ltd,Home Care - Private Contractors Payment,706.84,0.00,COMMERCIAL SUPPLIER 
 09-01-2023,Adults,Home Support Services (Havering & Essex) Ltd,Home Care - Private Contractors Payment,707.82,0.00,COMMERCIAL SUPPLIER 
 13-01-2023,Adults,Morepower Ltd t/a Aqs Homecare,Home Care - Private Contractors Payment,707.82,0.00,COMMERCIAL SUPPLIER 
 01-01-2023,Adults,Homestead Care Service,Home Care - Private Contractors Payment,708.48,0.00,COMMERCIAL SUPPLIER 
 02-01-2023,Adults,Outreach Support Services Ltd,Home Care - Private Contractors Payment,708.48,0.00,COMMERCIAL SUPPLIER 
 03-01-2023,Adults,KJD Care Limited,Home Care - Private Contractors Payment,708.48,0.00,INDIVIDUALS 
 12-01-2023,Adults,Premier Carewaiting Ltd,Home Care - Private Contractors Payment,708.48,0.00,COMMERCIAL SUPPLIER 
 27-01-2023,Adults,Gims Care Solution Ltd_a,Home Care - Private Contractors Payment,708.48,0.00,NON COMMERCIAL SUPPLIER 
 30-01-2023,Adults,Outreach Support Services Ltd,Home Care - Private Contractors Payment,708.48,0.00,COMMERCIAL SUPPLIER 
 18-01-2023,Adults,Matrix SCM Ltd,Agency Staff,710.27,0.00,COMMERCIAL SUPPLIER 
 18-01-2023,Adults,Matrix SCM Ltd,Agency Staff,710.29,0.00,COMMERCIAL SUPPLIER 
 09-01-2023,Adults,Home Sweet Home Care Ltd,Home Care - Private Contractors Payment,711.76,0.00,COMMERCIAL SUPPLIER 
 13-01-2023,Adults,Morepower Ltd t/a Aqs Homecare,Home Care - Private Contractors Payment,711.76,0.00,COMMERCIAL SUPPLIER 
 13-01-2023,Adults,Nightingale Residential Care Home Ltd,Residential Care Income,712.23,0.00,COMMERCIAL SUPPLIER 
 09-01-2023,Adults,Home Sweet Home Care Ltd,Home Care - Private Contractors Payment,713.07,0.00,COMMERCIAL SUPPLIER 
 09-01-2023,Adults,Home Support Services (Havering & Essex) Ltd,Home Care - Private Contractors Payment,714.71,0.00,COMMERCIAL SUPPLIER 
 06-01-2023,Adults,Care-Away Ltd T/A Care Support,Home Care - Private Contractors Payment,715.52,0.00,COMMERCIAL SUPPLIER 
 05-01-2023,Adults,Prestige Care & Support Ltd,Home Care - Private Contractors Payment,718.32,0.00,COMMERCIAL SUPPLIER 
 10-01-2023,Adults,London Borough of Barking & Dagenham_a,Daycare - Private Contractors Payment,720.00,0.00,LOCAL AUTHORITY SERVICES 
 10-01-2023,Adults,London Borough of Barking & Dagenham_a,Daycare - Private Contractors Payment,720.00,0.00,LOCAL AUTHORITY SERVICES 
 10-01-2023,Adults,London Borough of Barking & Dagenham_a,Daycare - Private Contractors Payment,720.00,0.00,LOCAL AUTHORITY SERVICES 
 13-01-2023,Adults,Moreland House_a,Nursing Care Income,720.80,0.00,COMMERCIAL SUPPLIER 
 01-01-2023,Adults,Homestead Care Service,Home Care - Private Contractors Payment,728.49,0.00,COMMERCIAL SUPPLIER 
 17-01-2023,Adults,Lodge Group Care UK Ltd,Home Care - Private Contractors Payment,728.82,0.00,COMMERCIAL SUPPLIER 
 20-01-2023,Adults,Quality Healthcare Solutions Ltd t/a Kare Plus Romford,Home Care - Private Contractors Payment,729.80,0.00,COMMERCIAL SUPPLIER 
 31-01-2023,Adults,Cera Care Operations Ltd,Home Care - Private Contractors Payment,730.78,0.00,COMMERCIAL SUPPLIER 
 04-01-2023,Adults,Matrix SCM Ltd,Agency Staff,730.80,0.00,COMMERCIAL SUPPLIER 
 18-01-2023,Adults,Matrix SCM Ltd,Agency Staff,732.26,0.00,COMMERCIAL SUPPLIER 
 25-01-2023,Adults,Matrix SCM Ltd,Agency Staff,732.26,0.00,COMMERCIAL SUPPLIER 
 09-01-2023,Adults,Home Sweet Home Care Ltd,Home Care - Private Contractors Payment,733.41,0.00,COMMERCIAL SUPPLIER 
 09-01-2023,Adults,Home Sweet Home Care Ltd,Home Care - Private Contractors Payment,733.74,0.00,COMMERCIAL SUPPLIER 
 13-01-2023,Adults,Cera Care Operations Ltd,Home Care - Private Contractors Payment,734.72,0.00,COMMERCIAL SUPPLIER 
 17-01-2023,Adults,Lodge Group Care UK Ltd,Home Care - Private Contractors Payment,736.69,0.00,COMMERCIAL SUPPLIER 
 17-01-2023,Adults,Lodge Group Care UK Ltd,Home Care - Private Contractors Payment,737.02,0.00,COMMERCIAL SUPPLIER 
 09-01-2023,Adults,Home Support Services (Havering & Essex) Ltd,Home Care - Private Contractors Payment,738.00,0.00,COMMERCIAL SUPPLIER 
 09-01-2023,Adults,Home Support Services (Havering & Essex) Ltd,Home Care - Private Contractors Payment,738.00,0.00,COMMERCIAL SUPPLIER 
 23-01-2023,Adults,Prior Care Ltd_a,Home Care - Private Contractors Payment,738.00,0.00,COMMERCIAL SUPPLIER 
 13-01-2023,Adults,Hospiva Care & Associates Agency Ltd_a,Home Care - Private Contractors Payment,739.31,0.00,COMMERCIAL SUPPLIER 
 13-01-2023,Adults,Cera Care Operations Ltd,Home Care - Private Contractors Payment,739.97,0.00,COMMERCIAL SUPPLIER 
 09-01-2023,Adults,Home Sweet Home Care Ltd,Home Care - Private Contractors Payment,740.95,0.00,COMMERCIAL SUPPLIER 
 17-01-2023,Adults,Lodge Group Care UK Ltd,Home Care - Private Contractors Payment,741.94,0.00,COMMERCIAL SUPPLIER 
 09-01-2023,Adults,Home Sweet Home Care Ltd,Home Care - Private Contractors Payment,742.59,0.00,COMMERCIAL SUPPLIER 
 13-01-2023,Adults,Cera Care Operations Ltd,Home Care - Private Contractors Payment,742.59,0.00,COMMERCIAL SUPPLIER 
 13-01-2023,Adults,Ranc Care Homes Ltd - Romford Care Centre,Respite Care - Private Contractors Payment,742.86,0.00,COMMERCIAL SUPPLIER 
 13-01-2023,Adults,Ashgate House Ltd_a,Residential Placements - Private Contractors Payment,746.16,0.00,COMMERCIAL SUPPLIER 
 13-01-2023,Adults,Morepower Ltd t/a Aqs Homecare,Home Care - Private Contractors Payment,746.53,0.00,COMMERCIAL SUPPLIER 
 09-01-2023,Adults,Home Sweet Home Care Ltd,Home Care - Private Contractors Payment,746.86,0.00,COMMERCIAL SUPPLIER 
 09-01-2023,Adults,Home Support Services (Havering & Essex) Ltd,Home Care - Private Contractors Payment,747.84,0.00,COMMERCIAL SUPPLIER 
 30-01-2023,Adults,Outreach Support Services Ltd,Home Care - Private Contractors Payment,747.84,0.00,COMMERCIAL SUPPLIER 
 09-01-2023,Adults,Home Support Services (Havering & Essex) Ltd,Home Care - Private Contractors Payment,748.17,0.00,COMMERCIAL SUPPLIER 
 17-01-2023,Adults,Lodge Group Care UK Ltd,Home Care - Private Contractors Payment,748.50,0.00,COMMERCIAL SUPPLIER 
 11-01-2023,Adults,Matrix SCM Ltd,Agency Staff,749.94,0.00,COMMERCIAL SUPPLIER 
 18-01-2023,Adults,Matrix SCM Ltd,Agency Staff,749.94,0.00,COMMERCIAL SUPPLIER 
 06-01-2023,Adults,Care-Away Ltd T/A Care Support,Home Care - Private Contractors Payment,751.63,0.00,COMMERCIAL SUPPLIER 
 13-01-2023,Adults,The Cedars,Supported Other Accommodation - Private Contractors Payment,751.77,0.00,COMMERCIAL SUPPLIER 
 05-01-2023,Adults,Prestige Care & Support Ltd,Home Care - Private Contractors Payment,751.78,0.00,COMMERCIAL SUPPLIER 
 11-01-2023,Adults,Matrix SCM Ltd,Agency Staff,755.40,0.00,COMMERCIAL SUPPLIER 
 13-01-2023,Adults,Hospiva Care & Associates Agency Ltd_a,Home Care - Private Contractors Payment,756.70,0.00,COMMERCIAL SUPPLIER 
 20-01-2023,Adults,Quality Healthcare Solutions Ltd t/a Kare Plus Romford,Home Care - Private Contractors Payment,756.70,0.00,COMMERCIAL SUPPLIER 
 23-01-2023,Adults,Prior Care Ltd_a,Home Care - Private Contractors Payment,757.68,0.00,COMMERCIAL SUPPLIER 
 30-01-2023,Adults,London Homecare Ltd,Home Care - Private Contractors Payment,757.68,0.00,COMMERCIAL SUPPLIER 
 30-01-2023,Adults,London Homecare Ltd,Home Care - Private Contractors Payment,757.68,0.00,COMMERCIAL SUPPLIER 
 09-01-2023,Adults,Home Sweet Home Care Ltd,Home Care - Private Contractors Payment,758.01,0.00,COMMERCIAL SUPPLIER 
 13-01-2023,Adults,Cera Care Operations Ltd,Home Care - Private Contractors Payment,758.01,0.00,COMMERCIAL SUPPLIER 
 20-01-2023,Adults,Quality Healthcare Solutions Ltd t/a Kare Plus Romford,Home Care - Private Contractors Payment,759.65,0.00,COMMERCIAL SUPPLIER 
 05-01-2023,Adults,Prestige Care & Support Ltd,Home Care - Private Contractors Payment,759.98,0.00,COMMERCIAL SUPPLIER 
 09-01-2023,Adults,Home Sweet Home Care Ltd,Home Care - Private Contractors Payment,760.30,0.00,COMMERCIAL SUPPLIER 
 20-01-2023,Adults,Quality Healthcare Solutions Ltd t/a Kare Plus Romford,Home Care - Private Contractors Payment,761.94,0.00,COMMERCIAL SUPPLIER 
 30-01-2023,Adults,Bluebird Care Havering,Home Care - Private Contractors Payment,762.60,0.00,COMMERCIAL SUPPLIER 
 13-01-2023,Adults,Shalom Community Support Services,Supported Other Accommodation - Private Contractors Payment,764.00,0.00,COMMERCIAL SUPPLIER 
 13-01-2023,Adults,Morepower Ltd t/a Aqs Homecare,Home Care - Private Contractors Payment,765.22,0.00,COMMERCIAL SUPPLIER 
 09-01-2023,Adults,Home Sweet Home Care Ltd,Home Care - Private Contractors Payment,765.88,0.00,COMMERCIAL SUPPLIER 
 20-01-2023,Adults,Quality Healthcare Solutions Ltd t/a Kare Plus Romford,Home Care - Private Contractors Payment,766.86,0.00,COMMERCIAL SUPPLIER 
 02-01-2023,Adults,Pleasant Home Healthcare Ltd,Home Care - Private Contractors Payment,767.52,0.00,COMMERCIAL SUPPLIER 
 09-01-2023,Adults,Home Sweet Home Care Ltd,Home Care - Private Contractors Payment,768.83,0.00,COMMERCIAL SUPPLIER 
 17-01-2023,Adults,Lodge Group Care UK Ltd,Home Care - Private Contractors Payment,768.83,0.00,COMMERCIAL SUPPLIER 
 09-01-2023,Adults,Home Sweet Home Care Ltd,Home Care - Private Contractors Payment,769.16,0.00,COMMERCIAL SUPPLIER 
 17-01-2023,Adults,Lodge Group Care UK Ltd,Home Care - Private Contractors Payment,769.82,0.00,COMMERCIAL SUPPLIER 
 17-01-2023,Adults,Lodge Group Care UK Ltd,Home Care - Private Contractors Payment,769.82,0.00,COMMERCIAL SUPPLIER 
 09-01-2023,Adults,Lodge Group Care UK Ltd,Private Contractors Payment - Other,770.00,0.00,COMMERCIAL SUPPLIER 
 13-01-2023,Adults,Shalom Community Support Services,Supported Other Accommodation - Private Contractors Payment,770.29,0.00,COMMERCIAL SUPPLIER 
 09-01-2023,Adults,Home Support Services (Havering & Essex) Ltd,Home Care - Private Contractors Payment,770.80,0.00,COMMERCIAL SUPPLIER 
 13-01-2023,Adults,Chosen Care Group Ltd,Supported Other Accommodation - Private Contractors Payment,772.60,0.00,COMMERCIAL SUPPLIER 
 18-01-2023,Adults,Matrix SCM Ltd,Agency Staff,774.90,0.00,COMMERCIAL SUPPLIER 
 25-01-2023,Adults,Matrix SCM Ltd,Agency Staff,774.90,0.00,COMMERCIAL SUPPLIER 
 13-01-2023,Adults,Acorn Village_a,Residential Placements - Private Contractors Payment,774.92,0.00,COMMERCIAL SUPPLIER 
 13-01-2023,Adults,Cera Care Operations Ltd,Home Care - Private Contractors Payment,776.38,0.00,COMMERCIAL SUPPLIER 
 13-01-2023,Adults,Cera Care Operations Ltd,Home Care - Private Contractors Payment,777.36,0.00,COMMERCIAL SUPPLIER 
 13-01-2023,Adults,Cera Care Operations Ltd,Home Care - Private Contractors Payment,778.67,0.00,COMMERCIAL SUPPLIER 
 09-01-2023,Adults,Home Support Services (Havering & Essex) Ltd,Home Care - Private Contractors Payment,779.98,0.00,COMMERCIAL SUPPLIER 
 14-01-2023,Adults,S J Builders,Maintenance - Equipment Furniture And Materials,780.00,0.00,COMMERCIAL SUPPLIER 
 01-01-2023,Adults,Homestead Care Service,Home Care - Private Contractors Payment,780.55,0.00,COMMERCIAL SUPPLIER 
 09-01-2023,Adults,Home Sweet Home Care Ltd,Home Care - Private Contractors Payment,782.61,0.00,COMMERCIAL SUPPLIER 
 13-01-2023,Adults,Ladyville Lodge_a,Residential Placements - Private Contractors Payment,785.71,0.00,COMMERCIAL SUPPLIER 
 03-01-2023,Adults,KJD Care Limited,Home Care - Private Contractors Payment,787.20,0.00,INDIVIDUALS 
 09-01-2023,Adults,Home Sweet Home Care Ltd,Home Care - Private Contractors Payment,787.20,0.00,COMMERCIAL SUPPLIER 
 09-01-2023,Adults,Home Support Services (Havering & Essex) Ltd,Home Care - Private Contractors Payment,787.20,0.00,COMMERCIAL SUPPLIER 
 11-01-2023,Adults,Carers Trust East Midlands,Home Care - Private Contractors Payment,787.20,0.00,COMMERCIAL SUPPLIER 
 17-01-2023,Adults,Lodge Group Care UK Ltd,Home Care - Private Contractors Payment,787.20,0.00,COMMERCIAL SUPPLIER 
 13-01-2023,Adults,Hospiva Care & Associates Agency Ltd_a,Home Care - Private Contractors Payment,787.22,0.00,COMMERCIAL SUPPLIER 
 13-01-2023,Adults,Morepower Ltd t/a Aqs Homecare,Home Care - Private Contractors Payment,788.84,0.00,COMMERCIAL SUPPLIER 
 31-01-2023,Adults,Cera Care Operations Ltd,Home Care - Private Contractors Payment,789.17,0.00,COMMERCIAL SUPPLIER 
 31-01-2023,Adults,Cera Care Operations Ltd,Home Care - Private Contractors Payment,790.48,0.00,COMMERCIAL SUPPLIER 
 11-01-2023,Adults,Matrix SCM Ltd,Agency Staff,790.91,0.00,COMMERCIAL SUPPLIER 
 18-01-2023,Adults,Matrix SCM Ltd,Agency Staff,790.91,0.00,COMMERCIAL SUPPLIER 
 18-01-2023,Adults,Matrix SCM Ltd,Agency Staff,790.91,0.00,COMMERCIAL SUPPLIER 
 18-01-2023,Adults,Matrix SCM Ltd,Agency Staff,790.91,0.00,COMMERCIAL SUPPLIER 
 25-01-2023,Adults,Matrix SCM Ltd,Agency Staff,790.91,0.00,COMMERCIAL SUPPLIER 
 17-01-2023,Adults,Lodge Group Care UK Ltd,Home Care - Private Contractors Payment,791.79,0.00,COMMERCIAL SUPPLIER 
 17-01-2023,Adults,Lodge Group Care UK Ltd,Home Care - Private Contractors Payment,792.12,0.00,COMMERCIAL SUPPLIER 
 30-01-2023,Adults,Premier Carewaiting Ltd,Home Care - Private Contractors Payment,792.12,0.00,COMMERCIAL SUPPLIER 
 17-01-2023,Adults,Lodge Group Care UK Ltd,Home Care - Private Contractors Payment,793.10,0.00,COMMERCIAL SUPPLIER 
 01-01-2023,Adults,Homestead Care Service,Home Care - Private Contractors Payment,793.76,0.00,COMMERCIAL SUPPLIER 
 17-01-2023,Adults,Lodge Group Care UK Ltd,Home Care - Private Contractors Payment,793.76,0.00,COMMERCIAL SUPPLIER 
 13-01-2023,Adults,Cera Care Operations Ltd,Home Care - Private Contractors Payment,795.40,0.00,COMMERCIAL SUPPLIER 
 13-01-2023,Adults,Morepower Ltd t/a Aqs Homecare,Home Care - Private Contractors Payment,796.06,0.00,COMMERCIAL SUPPLIER 
 13-01-2023,Adults,Outlook Care - 76 Neave Crescent,Supported Other Accommodation - Private Contractors Payment,796.96,0.00,COMMERCIAL SUPPLIER 
 05-01-2023,Adults,Prestige Care & Support Ltd,Home Care - Private Contractors Payment,797.04,0.00,COMMERCIAL SUPPLIER 
 09-01-2023,Adults,Home Sweet Home Care Ltd,Home Care - Private Contractors Payment,797.04,0.00,COMMERCIAL SUPPLIER 
 17-01-2023,Adults,Lodge Group Care UK Ltd,Home Care - Private Contractors Payment,797.37,0.00,COMMERCIAL SUPPLIER 
 09-01-2023,Adults,Home Sweet Home Care Ltd,Home Care - Private Contractors Payment,797.70,0.00,COMMERCIAL SUPPLIER 
 02-01-2023,Adults,Tapestry_a.,Daycare - Private Contractors Payment,798.00,0.00,COMMERCIAL SUPPLIER 
 30-01-2023,Adults,Tapestry_a.,Daycare - Private Contractors Payment,798.00,0.00,COMMERCIAL SUPPLIER 
 30-01-2023,Adults,Tapestry_a.,Daycare - Private Contractors Payment,798.00,0.00,COMMERCIAL SUPPLIER 
 23-01-2023,Adults,Prior Care Ltd_a,Home Care - Private Contractors Payment,798.68,0.00,COMMERCIAL SUPPLIER 
 17-01-2023,Adults,Lodge Group Care UK Ltd,Home Care - Private Contractors Payment,799.99,0.00,COMMERCIAL SUPPLIER 
 12-01-2023,Adults,R G Care Ltd ,Daycare - Private Contractors Payment,800.00,0.00,COMMERCIAL SUPPLIER 
 12-01-2023,Adults,R G Care Ltd ,Daycare - Private Contractors Payment,800.00,0.00,COMMERCIAL SUPPLIER 
 09-01-2023,Adults,Home Sweet Home Care Ltd,Home Care - Private Contractors Payment,803.60,0.00,COMMERCIAL SUPPLIER 
 01-01-2023,Adults,Homestead Care Service,Home Care - Private Contractors Payment,803.93,0.00,COMMERCIAL SUPPLIER 
 09-01-2023,Adults,Home Sweet Home Care Ltd,Home Care - Private Contractors Payment,804.58,0.00,COMMERCIAL SUPPLIER 
 09-01-2023,Adults,Home Support Services (Havering & Essex) Ltd,Home Care - Private Contractors Payment,806.88,0.00,COMMERCIAL SUPPLIER 
 13-01-2023,Adults,Hospiva Care & Associates Agency Ltd_a,Home Care - Private Contractors Payment,806.88,0.00,COMMERCIAL SUPPLIER 
 17-01-2023,Adults,Lodge Group Care UK Ltd,Home Care - Private Contractors Payment,806.88,0.00,COMMERCIAL SUPPLIER 
 10-01-2023,Adults,Care-Away Ltd T/A Care Support,Home Care - Private Contractors Payment,807.04,0.00,COMMERCIAL SUPPLIER 
 09-01-2023,Adults,Home Sweet Home Care Ltd,Home Care - Private Contractors Payment,807.86,0.00,COMMERCIAL SUPPLIER 
 01-01-2023,Adults,Westminster Homecare Ltd_a,Home Care - Private Contractors Payment,808.19,0.00,COMMERCIAL SUPPLIER 
 01-01-2023,Adults,Homestead Care Service,Home Care - Private Contractors Payment,808.52,0.00,COMMERCIAL SUPPLIER 
 05-01-2023,Adults,Prestige Care & Support Ltd,Home Care - Private Contractors Payment,808.52,0.00,COMMERCIAL SUPPLIER 
 06-01-2023,Adults,Anytime Care 2020_a,Home Care - Private Contractors Payment,808.52,0.00,COMMERCIAL SUPPLIER 
 01-01-2023,Adults,Homestead Care Service,Home Care - Private Contractors Payment,809.50,0.00,COMMERCIAL SUPPLIER 
 13-01-2023,Adults,Morepower Ltd t/a Aqs Homecare,Home Care - Private Contractors Payment,809.83,0.00,COMMERCIAL SUPPLIER 
 17-01-2023,Adults,Lodge Group Care UK Ltd,Home Care - Private Contractors Payment,812.46,0.00,COMMERCIAL SUPPLIER 
 13-01-2023,Adults,Morepower Ltd t/a Aqs Homecare,Home Care - Private Contractors Payment,812.78,0.00,COMMERCIAL SUPPLIER 
 05-01-2023,Adults,Care-Away Ltd T/A Care Support,Home Care - Private Contractors Payment,815.36,0.00,COMMERCIAL SUPPLIER 
 06-01-2023,Adults,Care-Away Ltd T/A Care Support,Home Care - Private Contractors Payment,815.36,0.00,COMMERCIAL SUPPLIER 
 16-01-2023,Adults,Bluebird Care Havering,Home Care - Private Contractors Payment,816.50,0.00,COMMERCIAL SUPPLIER 
 09-01-2023,Adults,Home Sweet Home Care Ltd,Home Care - Private Contractors Payment,816.72,0.00,COMMERCIAL SUPPLIER 
 09-01-2023,Adults,Home Sweet Home Care Ltd,Home Care - Private Contractors Payment,816.72,0.00,COMMERCIAL SUPPLIER 
 09-01-2023,Adults,Home Sweet Home Care Ltd,Home Care - Private Contractors Payment,816.72,0.00,COMMERCIAL SUPPLIER 
 17-01-2023,Adults,Lodge Group Care UK Ltd,Home Care - Private Contractors Payment,816.72,0.00,COMMERCIAL SUPPLIER 
 17-01-2023,Adults,Lodge Group Care UK Ltd,Home Care - Private Contractors Payment,816.72,0.00,COMMERCIAL SUPPLIER 
 17-01-2023,Adults,Lodge Group Care UK Ltd,Home Care - Private Contractors Payment,816.72,0.00,COMMERCIAL SUPPLIER 
 17-01-2023,Adults,Lodge Group Care UK Ltd,Home Care - Private Contractors Payment,816.72,0.00,COMMERCIAL SUPPLIER 
 31-01-2023,Adults,Cera Care Operations Ltd,Home Care - Private Contractors Payment,816.72,0.00,COMMERCIAL SUPPLIER 
 13-01-2023,Adults,Cera Care Operations Ltd,Home Care - Private Contractors Payment,818.36,0.00,COMMERCIAL SUPPLIER 
 17-01-2023,Adults,Lodge Group Care UK Ltd,Home Care - Private Contractors Payment,818.36,0.00,COMMERCIAL SUPPLIER 
 09-01-2023,Adults,Home Support Services (Havering & Essex) Ltd,Home Care - Private Contractors Payment,821.31,0.00,COMMERCIAL SUPPLIER 
 13-01-2023,Adults,Cera Care Operations Ltd,Home Care - Private Contractors Payment,821.97,0.00,COMMERCIAL SUPPLIER 
 09-01-2023,Adults,Home Sweet Home Care Ltd,Home Care - Private Contractors Payment,822.62,0.00,COMMERCIAL SUPPLIER 
 09-01-2023,Adults,Home Sweet Home Care Ltd,Home Care - Private Contractors Payment,822.95,0.00,COMMERCIAL SUPPLIER 
 13-01-2023,Adults,Cera Care Operations Ltd,Home Care - Private Contractors Payment,822.95,0.00,COMMERCIAL SUPPLIER 
 06-01-2023,Adults,Anytime Care 2020_a,Home Care - Private Contractors Payment,826.23,0.00,COMMERCIAL SUPPLIER 
 02-01-2023,Adults,Outreach Support Services Ltd,Home Care - Private Contractors Payment,826.56,0.00,COMMERCIAL SUPPLIER 
 02-01-2023,Adults,Outreach Support Services Ltd,Home Care - Private Contractors Payment,826.56,0.00,COMMERCIAL SUPPLIER 
 02-01-2023,Adults,Outreach Support Services Ltd,Home Care - Private Contractors Payment,826.56,0.00,COMMERCIAL SUPPLIER 
 03-01-2023,Adults,KJD Care Limited,Home Care - Private Contractors Payment,826.56,0.00,INDIVIDUALS 
 03-01-2023,Adults,KJD Care Limited,Home Care - Private Contractors Payment,826.56,0.00,INDIVIDUALS 
 03-01-2023,Adults,London Homecare Ltd,Home Care - Private Contractors Payment,826.56,0.00,COMMERCIAL SUPPLIER 
 03-01-2023,Adults,London Homecare Ltd,Home Care - Private Contractors Payment,826.56,0.00,COMMERCIAL SUPPLIER 
 05-01-2023,Adults,Prestige Care & Support Ltd,Home Care - Private Contractors Payment,826.56,0.00,COMMERCIAL SUPPLIER 
 05-01-2023,Adults,Passion Tree Care Services Ltd,Home Care - Private Contractors Payment,826.56,0.00,COMMERCIAL SUPPLIER 
 09-01-2023,Adults,Home Support Services (Havering & Essex) Ltd,Home Care - Private Contractors Payment,826.56,0.00,COMMERCIAL SUPPLIER 
 09-01-2023,Adults,Inna Care Ltd,Home Care - Private Contractors Payment,826.56,0.00,COMMERCIAL SUPPLIER 
 09-01-2023,Adults,Inna Care Ltd,Home Care - Private Contractors Payment,826.56,0.00,COMMERCIAL SUPPLIER 
 09-01-2023,Adults,Inna Care Ltd,Home Care - Private Contractors Payment,826.56,0.00,COMMERCIAL SUPPLIER 
 09-01-2023,Adults,Inna Care Ltd,Home Care - Private Contractors Payment,826.56,0.00,COMMERCIAL SUPPLIER 
 09-01-2023,Adults,Inna Care Ltd,Home Care - Private Contractors Payment,826.56,0.00,COMMERCIAL SUPPLIER 
 09-01-2023,Adults,Inna Care Ltd,Home Care - Private Contractors Payment,826.56,0.00,COMMERCIAL SUPPLIER 
 09-01-2023,Adults,Inna Care Ltd,Home Care - Private Contractors Payment,826.56,0.00,COMMERCIAL SUPPLIER 
 13-01-2023,Adults,Rosemont Care Limited,Home Care - Private Contractors Payment,826.56,0.00,COMMERCIAL SUPPLIER 
 13-01-2023,Adults,Rosemont Care Limited,Home Care - Private Contractors Payment,826.56,0.00,COMMERCIAL SUPPLIER 
 13-01-2023,Adults,Rosemont Care Limited,Home Care - Private Contractors Payment,826.56,0.00,COMMERCIAL SUPPLIER 
 13-01-2023,Adults,Rosemont Care Limited,Home Care - Private Contractors Payment,826.56,0.00,COMMERCIAL SUPPLIER 
 20-01-2023,Adults,Quality Healthcare Solutions Ltd t/a Kare Plus Romford,Home Care - Private Contractors Payment,826.56,0.00,COMMERCIAL SUPPLIER 
 30-01-2023,Adults,Outreach Support Services Ltd,Home Care - Private Contractors Payment,826.56,0.00,COMMERCIAL SUPPLIER 
 30-01-2023,Adults,Outreach Support Services Ltd,Home Care - Private Contractors Payment,826.56,0.00,COMMERCIAL SUPPLIER 
 30-01-2023,Adults,Outreach Support Services Ltd,Home Care - Private Contractors Payment,826.56,0.00,COMMERCIAL SUPPLIER 
 17-01-2023,Adults,Lodge Group Care UK Ltd,Home Care - Private Contractors Payment,826.89,0.00,COMMERCIAL SUPPLIER 
 09-01-2023,Adults,Home Sweet Home Care Ltd,Home Care - Private Contractors Payment,827.54,0.00,COMMERCIAL SUPPLIER 
 09-01-2023,Adults,Home Support Services (Havering & Essex) Ltd,Home Care - Private Contractors Payment,827.54,0.00,COMMERCIAL SUPPLIER 
 17-01-2023,Adults,Lodge Group Care UK Ltd,Home Care - Private Contractors Payment,827.87,0.00,COMMERCIAL SUPPLIER 
 13-01-2023,Adults,One Tree Estates Ltd t/a Ashbrook Nursing Home,Nursing Homes - Private Contractors Payment,828.00,0.00,COMMERCIAL SUPPLIER 
 17-01-2023,Adults,Lodge Group Care UK Ltd,Home Care - Private Contractors Payment,828.20,0.00,COMMERCIAL SUPPLIER 
 05-01-2023,Adults,Prestige Care & Support Ltd,Home Care - Private Contractors Payment,828.53,0.00,COMMERCIAL SUPPLIER 
 17-01-2023,Adults,Lodge Group Care UK Ltd,Home Care - Private Contractors Payment,828.86,0.00,COMMERCIAL SUPPLIER 
 17-01-2023,Adults,Lodge Group Care UK Ltd,Home Care - Private Contractors Payment,828.86,0.00,COMMERCIAL SUPPLIER 
 17-01-2023,Adults,Lodge Group Care UK Ltd,Home Care - Private Contractors Payment,828.86,0.00,COMMERCIAL SUPPLIER 
 17-01-2023,Adults,Lodge Group Care UK Ltd,Home Care - Private Contractors Payment,828.86,0.00,COMMERCIAL SUPPLIER 
 17-01-2023,Adults,Lodge Group Care UK Ltd,Home Care - Private Contractors Payment,828.86,0.00,COMMERCIAL SUPPLIER 
 17-01-2023,Adults,Lodge Group Care UK Ltd,Home Care - Private Contractors Payment,829.18,0.00,COMMERCIAL SUPPLIER 
 23-01-2023,Adults,Prior Care Ltd_a,Home Care - Private Contractors Payment,830.50,0.00,COMMERCIAL SUPPLIER 
 09-01-2023,Adults,Home Support Services (Havering & Essex) Ltd,Home Care - Private Contractors Payment,830.82,0.00,COMMERCIAL SUPPLIER 
 13-01-2023,Adults,Morepower Ltd t/a Aqs Homecare,Home Care - Private Contractors Payment,831.15,0.00,COMMERCIAL SUPPLIER 
 13-01-2023,Adults,Morepower Ltd t/a Aqs Homecare,Home Care - Private Contractors Payment,831.48,0.00,COMMERCIAL SUPPLIER 
 05-01-2023,Adults,Prestige Care & Support Ltd,Home Care - Private Contractors Payment,831.81,0.00,COMMERCIAL SUPPLIER 
 13-01-2023,Adults,Hospiva Care & Associates Agency Ltd_a,Home Care - Private Contractors Payment,832.14,0.00,COMMERCIAL SUPPLIER 
 31-01-2023,Adults,Cera Care Operations Ltd,Home Care - Private Contractors Payment,832.46,0.00,COMMERCIAL SUPPLIER 
 01-01-2023,Adults,Homestead Care Service,Home Care - Private Contractors Payment,833.12,0.00,COMMERCIAL SUPPLIER 
 13-01-2023,Adults,Morepower Ltd t/a Aqs Homecare,Home Care - Private Contractors Payment,833.45,0.00,COMMERCIAL SUPPLIER 
 01-01-2023,Adults,Westminster Homecare Ltd_a,Home Care - Private Contractors Payment,834.43,0.00,COMMERCIAL SUPPLIER 
 25-01-2023,Adults,Matrix SCM Ltd,Agency Staff,834.74,0.00,COMMERCIAL SUPPLIER 
 01-01-2023,Adults,Westminster Homecare Ltd_a,Home Care - Private Contractors Payment,835.09,0.00,COMMERCIAL SUPPLIER 
 17-01-2023,Adults,Lodge Group Care UK Ltd,Home Care - Private Contractors Payment,835.09,0.00,COMMERCIAL SUPPLIER 
 09-01-2023,Adults,Home Sweet Home Care Ltd,Home Care - Private Contractors Payment,836.40,0.00,COMMERCIAL SUPPLIER 
 13-01-2023,Adults,Hospiva Care & Associates Agency Ltd_a,Home Care - Private Contractors Payment,836.40,0.00,COMMERCIAL SUPPLIER 
 13-01-2023,Adults,Cera Care Operations Ltd,Home Care - Private Contractors Payment,836.40,0.00,COMMERCIAL SUPPLIER 
 31-01-2023,Adults,Cera Care Operations Ltd,Home Care - Private Contractors Payment,837.06,0.00,COMMERCIAL SUPPLIER 
 05-01-2023,Adults,Prestige Care & Support Ltd,Home Care - Private Contractors Payment,837.38,0.00,COMMERCIAL SUPPLIER 
 13-01-2023,Adults,Cera Care Operations Ltd,Home Care - Private Contractors Payment,837.38,0.00,COMMERCIAL SUPPLIER 
 17-01-2023,Adults,Lodge Group Care UK Ltd,Home Care - Private Contractors Payment,837.71,0.00,COMMERCIAL SUPPLIER 
 09-01-2023,Adults,Home Support Services (Havering & Essex) Ltd,Home Care - Private Contractors Payment,838.04,0.00,COMMERCIAL SUPPLIER 
 17-01-2023,Adults,Lodge Group Care UK Ltd,Home Care - Private Contractors Payment,838.04,0.00,COMMERCIAL SUPPLIER 
 17-01-2023,Adults,Lodge Group Care UK Ltd,Home Care - Private Contractors Payment,838.37,0.00,COMMERCIAL SUPPLIER 
 17-01-2023,Adults,Lodge Group Care UK Ltd,Home Care - Private Contractors Payment,838.37,0.00,COMMERCIAL SUPPLIER 
 13-01-2023,Adults,The Cedars,Supported Other Accommodation - Private Contractors Payment,838.51,0.00,COMMERCIAL SUPPLIER 
 09-01-2023,Adults,Home Support Services (Havering & Essex) Ltd,Home Care - Private Contractors Payment,838.70,0.00,COMMERCIAL SUPPLIER 
 13-01-2023,Adults,Little Gaynes,Respite Care - Private Contractors Payment,840.00,0.00,COMMERCIAL SUPPLIER 
 13-01-2023,Adults,Fresh Tree Care Services,Supported Other Accommodation - Private Contractors Payment,840.00,0.00,COMMERCIAL SUPPLIER 
 31-01-2023,Adults,Cera Care Operations Ltd,Home Care - Private Contractors Payment,841.98,0.00,COMMERCIAL SUPPLIER 
 18-01-2023,Adults,Matrix SCM Ltd,Agency Staff,842.75,0.00,COMMERCIAL SUPPLIER 
 06-01-2023,Adults,Anytime Care 2020_a,Home Care - Private Contractors Payment,843.29,0.00,COMMERCIAL SUPPLIER 
 31-01-2023,Adults,Cera Care Operations Ltd,Home Care - Private Contractors Payment,843.94,0.00,COMMERCIAL SUPPLIER 
 13-01-2023,Adults,Morepower Ltd t/a Aqs Homecare,Home Care - Private Contractors Payment,844.27,0.00,COMMERCIAL SUPPLIER 
 18-01-2023,Adults,Headway East London,Daycare - Private Contractors Payment,846.00,0.00,COMMERCIAL SUPPLIER 
 01-01-2023,Adults,Homestead Care Service,Home Care - Private Contractors Payment,846.24,0.00,COMMERCIAL SUPPLIER 
 06-01-2023,Adults,Anytime Care 2020_a,Home Care - Private Contractors Payment,847.88,0.00,COMMERCIAL SUPPLIER 
 09-01-2023,Adults,Home Support Services (Havering & Essex) Ltd,Home Care - Private Contractors Payment,848.86,0.00,COMMERCIAL SUPPLIER 
 31-01-2023,Adults,Cera Care Operations Ltd,Home Care - Private Contractors Payment,851.49,0.00,COMMERCIAL SUPPLIER 
 13-01-2023,Adults,Cera Care Operations Ltd,Home Care - Private Contractors Payment,851.82,0.00,COMMERCIAL SUPPLIER 
 05-01-2023,Adults,Prestige Care & Support Ltd,Home Care - Private Contractors Payment,852.47,0.00,COMMERCIAL SUPPLIER 
 20-01-2023,Adults,Quality Healthcare Solutions Ltd t/a Kare Plus Romford,Home Care - Private Contractors Payment,852.80,0.00,COMMERCIAL SUPPLIER 
 31-01-2023,Adults,Cera Care Operations Ltd,Home Care - Private Contractors Payment,853.46,0.00,COMMERCIAL SUPPLIER 
 13-01-2023,Adults,Hospiva Care & Associates Agency Ltd_a,Home Care - Private Contractors Payment,853.78,0.00,COMMERCIAL SUPPLIER 
 13-01-2023,Adults,Topaz Care and Support Co Ltd,Supported Other Accommodation - Private Contractors Payment,854.20,0.00,COMMERCIAL SUPPLIER 
 02-01-2023,Adults,Tapestry_a.,Daycare - Private Contractors Payment,855.00,0.00,COMMERCIAL SUPPLIER 
 02-01-2023,Adults,Tapestry_a.,Daycare - Private Contractors Payment,855.00,0.00,COMMERCIAL SUPPLIER 
 02-01-2023,Adults,Tapestry_a.,Daycare - Private Contractors Payment,855.00,0.00,COMMERCIAL SUPPLIER 
 17-01-2023,Adults,Lodge Group Care UK Ltd,Home Care - Private Contractors Payment,855.75,0.00,COMMERCIAL SUPPLIER 
 05-01-2023,Adults,Prestige Care & Support Ltd,Home Care - Private Contractors Payment,856.08,0.00,COMMERCIAL SUPPLIER 
 09-01-2023,Adults,Home Sweet Home Care Ltd,Home Care - Private Contractors Payment,856.08,0.00,COMMERCIAL SUPPLIER 
 17-01-2023,Adults,Lodge Group Care UK Ltd,Home Care - Private Contractors Payment,856.41,0.00,COMMERCIAL SUPPLIER 
 13-01-2023,Adults,Ladyville Lodge_a,Respite Care - Private Contractors Payment,857.14,0.00,COMMERCIAL SUPPLIER 
 04-01-2023,Adults,Matrix SCM Ltd,Agency Staff,857.86,0.00,COMMERCIAL SUPPLIER 
 24-01-2023,Adults,S J Builders,Maintenance - Equipment Furniture And Materials,860.00,0.00,COMMERCIAL SUPPLIER 
 30-01-2023,Adults,Eastway Care Ltd_a,Daycare - Private Contractors Payment,860.00,0.00,COMMERCIAL SUPPLIER 
 30-01-2023,Adults,Eastway Care Ltd_a,Daycare - Private Contractors Payment,860.00,0.00,COMMERCIAL SUPPLIER 
 30-01-2023,Adults,Eastway Care Ltd_a,Daycare - Private Contractors Payment,860.00,0.00,COMMERCIAL SUPPLIER 
 13-01-2023,Adults,Morepower Ltd t/a Aqs Homecare,Home Care - Private Contractors Payment,862.64,0.00,COMMERCIAL SUPPLIER 
 17-01-2023,Adults,Lodge Group Care UK Ltd,Home Care - Private Contractors Payment,864.28,0.00,COMMERCIAL SUPPLIER 
 03-01-2023,Adults,KJD Care Limited,Home Care - Private Contractors Payment,865.92,0.00,INDIVIDUALS 
 09-01-2023,Adults,Home Sweet Home Care Ltd,Home Care - Private Contractors Payment,865.92,0.00,COMMERCIAL SUPPLIER 
 26-01-2023,Adults,Outreach Support Services Ltd,Home Care - Private Contractors Payment,865.93,0.00,COMMERCIAL SUPPLIER 
 13-01-2023,Adults,Cera Care Operations Ltd,Home Care - Private Contractors Payment,866.58,0.00,COMMERCIAL SUPPLIER 
 09-01-2023,Adults,Home Sweet Home Care Ltd,Home Care - Private Contractors Payment,870.51,0.00,COMMERCIAL SUPPLIER 
 05-01-2023,Adults,Prestige Care & Support Ltd,Home Care - Private Contractors Payment,872.48,0.00,COMMERCIAL SUPPLIER 
 13-01-2023,Adults,Cera Care Operations Ltd,Home Care - Private Contractors Payment,872.48,0.00,COMMERCIAL SUPPLIER 
 01-01-2023,Adults,Homestead Care Service,Home Care - Private Contractors Payment,873.14,0.00,COMMERCIAL SUPPLIER 
 05-01-2023,Adults,Care-Away Ltd T/A Care Support,Home Care - Private Contractors Payment,873.60,0.00,COMMERCIAL SUPPLIER 
 06-01-2023,Adults,Affinia Healthcare Ltd_a,Supported Other Accommodation - Private Contractors Payment,874.11,0.00,COMMERCIAL SUPPLIER 
 13-01-2023,Adults,Cera Care Operations Ltd,Home Care - Private Contractors Payment,874.12,0.00,COMMERCIAL SUPPLIER 
 01-01-2023,Adults,Homestead Care Service,Home Care - Private Contractors Payment,875.76,0.00,COMMERCIAL SUPPLIER 
 01-01-2023,Adults,Homestead Care Service,Home Care - Private Contractors Payment,875.76,0.00,COMMERCIAL SUPPLIER 
 13-01-2023,Adults,Cera Care Operations Ltd,Home Care - Private Contractors Payment,879.70,0.00,COMMERCIAL SUPPLIER 
 13-01-2023,Adults,Ebony Health Care Services Limited,Supported Other Accommodation - Private Contractors Payment,881.48,0.00,COMMERCIAL SUPPLIER 
 13-01-2023,Adults,Hospiva Care & Associates Agency Ltd_a,Home Care - Private Contractors Payment,881.66,0.00,COMMERCIAL SUPPLIER 
 13-01-2023,Adults,Hospiva Care & Associates Agency Ltd_a,Home Care - Private Contractors Payment,881.66,0.00,COMMERCIAL SUPPLIER 
 09-01-2023,Adults,Home Support Services (Havering & Essex) Ltd,Home Care - Private Contractors Payment,890.19,0.00,COMMERCIAL SUPPLIER 
 09-01-2023,Adults,Home Support Services (Havering & Essex) Ltd,Home Care - Private Contractors Payment,895.44,0.00,COMMERCIAL SUPPLIER 
 13-01-2023,Adults,Morepower Ltd t/a Aqs Homecare,Home Care - Private Contractors Payment,895.44,0.00,COMMERCIAL SUPPLIER 
 31-01-2023,Adults,Cera Care Operations Ltd,Home Care - Private Contractors Payment,895.44,0.00,COMMERCIAL SUPPLIER 
 09-01-2023,Adults,Home Support Services (Havering & Essex) Ltd,Home Care - Private Contractors Payment,895.77,0.00,COMMERCIAL SUPPLIER 
 13-01-2023,Adults,Fresh Tree Care Services,Supported Other Accommodation - Private Contractors Payment,896.00,0.00,COMMERCIAL SUPPLIER 
 31-01-2023,Adults,Cera Care Operations Ltd,Home Care - Private Contractors Payment,900.03,0.00,COMMERCIAL SUPPLIER 
 11-01-2023,Adults,Carers Trust East Midlands,Home Care - Private Contractors Payment,900.36,0.00,COMMERCIAL SUPPLIER 
 01-01-2023,Adults,Homestead Care Service,Home Care - Private Contractors Payment,901.34,0.00,COMMERCIAL SUPPLIER 
 13-01-2023,Adults,Lukka Care Homes Ltd - Ravenscourt,Nursing Homes - Private Contractors Payment,903.78,0.00,COMMERCIAL SUPPLIER 
 13-01-2023,Adults,Pathways Care Group Ltd,Residential Placements - Private Contractors Payment,904.04,0.00,COMMERCIAL SUPPLIER 
 09-01-2023,Adults,Home Sweet Home Care Ltd,Home Care - Private Contractors Payment,905.28,0.00,COMMERCIAL SUPPLIER 
 09-01-2023,Adults,Inna Care Ltd,Home Care - Private Contractors Payment,905.28,0.00,COMMERCIAL SUPPLIER 
 30-01-2023,Adults,London Homecare Ltd,Home Care - Private Contractors Payment,905.28,0.00,COMMERCIAL SUPPLIER 
 05-01-2023,Adults,Prestige Care & Support Ltd,Home Care - Private Contractors Payment,905.61,0.00,COMMERCIAL SUPPLIER 
 18-01-2023,Adults,Matrix SCM Ltd,Agency Staff,906.48,0.00,COMMERCIAL SUPPLIER 
 25-01-2023,Adults,Matrix SCM Ltd,Agency Staff,906.48,0.00,COMMERCIAL SUPPLIER 
 11-01-2023,Adults,Matrix SCM Ltd,Agency Staff,909.44,0.00,COMMERCIAL SUPPLIER 
 25-01-2023,Adults,Matrix SCM Ltd,Agency Staff,909.44,0.00,COMMERCIAL SUPPLIER 
 09-01-2023,Adults,Prestige Care & Support Ltd,Private Contractors Payment - Other,910.00,0.00,COMMERCIAL SUPPLIER 
 18-01-2023,Adults,Matrix SCM Ltd,Agency Staff,910.08,0.00,COMMERCIAL SUPPLIER 
 25-01-2023,Adults,Matrix SCM Ltd,Agency Staff,910.08,0.00,COMMERCIAL SUPPLIER 
 06-01-2023,Adults,Anytime Care 2020_a,Home Care - Private Contractors Payment,910.86,0.00,COMMERCIAL SUPPLIER 
 09-01-2023,Adults,Home Sweet Home Care Ltd,Home Care - Private Contractors Payment,911.51,0.00,COMMERCIAL SUPPLIER 
 31-01-2023,Adults,Cera Care Operations Ltd,Home Care - Private Contractors Payment,911.51,0.00,COMMERCIAL SUPPLIER 
 09-01-2023,Adults,Home Support Services (Havering & Essex) Ltd,Home Care - Private Contractors Payment,913.48,0.00,COMMERCIAL SUPPLIER 
 09-01-2023,Adults,Home Sweet Home Care Ltd,Home Care - Private Contractors Payment,915.12,0.00,COMMERCIAL SUPPLIER 
 13-01-2023,Adults,The Cedars,Supported Other Accommodation - Private Contractors Payment,915.20,0.00,COMMERCIAL SUPPLIER 
 13-01-2023,Adults,The Cedars,Supported Other Accommodation - Private Contractors Payment,915.20,0.00,COMMERCIAL SUPPLIER 
 13-01-2023,Adults,The Cedars,Supported Other Accommodation - Private Contractors Payment,915.20,0.00,COMMERCIAL SUPPLIER 
 13-01-2023,Adults,The Cedars,Supported Other Accommodation - Private Contractors Payment,915.20,0.00,COMMERCIAL SUPPLIER 
 13-01-2023,Adults,The Cedars,Supported Other Accommodation - Private Contractors Payment,915.20,0.00,COMMERCIAL SUPPLIER 
 13-01-2023,Adults,The Cedars,Supported Other Accommodation - Private Contractors Payment,915.20,0.00,COMMERCIAL SUPPLIER 
 13-01-2023,Adults,The Cedars,Supported Other Accommodation - Private Contractors Payment,915.20,0.00,COMMERCIAL SUPPLIER 
 13-01-2023,Adults,The Cedars,Supported Other Accommodation - Private Contractors Payment,915.20,0.00,COMMERCIAL SUPPLIER 
 13-01-2023,Adults,Outlook Care - 4 Peel Way,Supported Other Accommodation - Private Contractors Payment,917.60,0.00,COMMERCIAL SUPPLIER 
 01-01-2023,Adults,Westminster Homecare Ltd_a,Home Care - Private Contractors Payment,918.40,0.00,COMMERCIAL SUPPLIER 
 13-01-2023,Adults,Omega Elifar Ltd,Residential Placements - Private Contractors Payment,918.40,0.00,COMMERCIAL SUPPLIER 
 13-01-2023,Adults,Hospiva Care & Associates Agency Ltd_a,Home Care - Private Contractors Payment,922.99,0.00,COMMERCIAL SUPPLIER 
 13-01-2023,Adults,Cera Care Operations Ltd,Home Care - Private Contractors Payment,923.65,0.00,COMMERCIAL SUPPLIER 
 13-01-2023,Adults,Morepower Ltd t/a Aqs Homecare,Home Care - Private Contractors Payment,923.65,0.00,COMMERCIAL SUPPLIER 
 09-01-2023,Adults,Home Support Services (Havering & Essex) Ltd,Home Care - Private Contractors Payment,925.29,0.00,COMMERCIAL SUPPLIER 
 13-01-2023,Adults,Morepower Ltd t/a Aqs Homecare,Home Care - Private Contractors Payment,929.22,0.00,COMMERCIAL SUPPLIER 
 25-01-2023,Adults,Action First Assessments Ltd,Private Contractors Payment - Other,930.00,0.00,COMMERCIAL SUPPLIER 
 25-01-2023,Adults,Action First Assessments Ltd,Private Contractors Payment - Other,930.00,0.00,COMMERCIAL SUPPLIER 
 01-01-2023,Adults,Homestead Care Service,Home Care - Private Contractors Payment,930.86,0.00,COMMERCIAL SUPPLIER 
 06-01-2023,Adults,Care-Away Ltd T/A Care Support,Home Care - Private Contractors Payment,931.84,0.00,COMMERCIAL SUPPLIER 
 06-01-2023,Adults,Care-Away Ltd T/A Care Support,Home Care - Private Contractors Payment,931.84,0.00,COMMERCIAL SUPPLIER 
 06-01-2023,Adults,Care-Away Ltd T/A Care Support,Home Care - Private Contractors Payment,931.84,0.00,COMMERCIAL SUPPLIER 
 06-01-2023,Adults,Care-Away Ltd T/A Care Support,Home Care - Private Contractors Payment,931.84,0.00,COMMERCIAL SUPPLIER 
 10-01-2023,Adults,Care-Away Ltd T/A Care Support,Home Care - Private Contractors Payment,931.84,0.00,COMMERCIAL SUPPLIER 
 10-01-2023,Adults,Care-Away Ltd T/A Care Support,Home Care - Private Contractors Payment,931.84,0.00,COMMERCIAL SUPPLIER 
 10-01-2023,Adults,Care-Away Ltd T/A Care Support,Home Care - Private Contractors Payment,931.84,0.00,COMMERCIAL SUPPLIER 
 10-01-2023,Adults,Care-Away Ltd T/A Care Support,Home Care - Private Contractors Payment,931.84,0.00,COMMERCIAL SUPPLIER 
 01-01-2023,Adults,Homestead Care Service,Home Care - Private Contractors Payment,934.80,0.00,COMMERCIAL SUPPLIER 
 05-01-2023,Adults,Prestige Care & Support Ltd,Home Care - Private Contractors Payment,934.80,0.00,COMMERCIAL SUPPLIER 
 09-01-2023,Adults,Home Sweet Home Care Ltd,Home Care - Private Contractors Payment,934.80,0.00,COMMERCIAL SUPPLIER 
 10-01-2023,Adults,Romford Private Hire Ltd,Client Transport,935.00,0.00,COMMERCIAL SUPPLIER 
 01-01-2023,Adults,Homestead Care Service,Home Care - Private Contractors Payment,938.41,0.00,COMMERCIAL SUPPLIER 
 13-01-2023,Adults,One Tree Estates Ltd t/a Ashbrook Nursing Home,Nursing Care Income,938.44,0.00,COMMERCIAL SUPPLIER 
 13-01-2023,Adults,Ladyville Lodge_a,Respite Care - Private Contractors Payment,942.86,0.00,COMMERCIAL SUPPLIER 
 25-01-2023,Adults,Matrix SCM Ltd,Agency Staff,943.28,0.00,COMMERCIAL SUPPLIER 
 20-01-2023,Adults,Quality Healthcare Solutions Ltd t/a Kare Plus Romford,Home Care - Private Contractors Payment,943.33,0.00,COMMERCIAL SUPPLIER 
 09-01-2023,Adults,Home Support Services (Havering & Essex) Ltd,Home Care - Private Contractors Payment,944.31,0.00,COMMERCIAL SUPPLIER 
 01-01-2023,Adults,Homestead Care Service,Home Care - Private Contractors Payment,944.64,0.00,COMMERCIAL SUPPLIER 
 02-01-2023,Adults,Pleasant Home Healthcare Ltd,Home Care - Private Contractors Payment,944.64,0.00,COMMERCIAL SUPPLIER 
 05-01-2023,Adults,Passion Tree Care Services Ltd,Home Care - Private Contractors Payment,944.64,0.00,COMMERCIAL SUPPLIER 
 18-01-2023,Adults,London Care Plc_a,Home Care - Private Contractors Payment,944.97,0.00,COMMERCIAL SUPPLIER 
 05-01-2023,Adults,Prestige Care & Support Ltd,Home Care - Private Contractors Payment,945.30,0.00,COMMERCIAL SUPPLIER 
 31-01-2023,Adults,Cera Care Operations Ltd,Home Care - Private Contractors Payment,945.30,0.00,COMMERCIAL SUPPLIER 
 09-01-2023,Adults,Home Support Services (Havering & Essex) Ltd,Home Care - Private Contractors Payment,945.95,0.00,COMMERCIAL SUPPLIER 
 31-01-2023,Adults,Cera Care Operations Ltd,Home Care - Private Contractors Payment,945.95,0.00,COMMERCIAL SUPPLIER 
 01-01-2023,Adults,Homestead Care Service,Home Care - Private Contractors Payment,954.15,0.00,COMMERCIAL SUPPLIER 
 13-01-2023,Adults,Cera Care Operations Ltd,Home Care - Private Contractors Payment,956.12,0.00,COMMERCIAL SUPPLIER 
 13-01-2023,Adults,Shalom Community Support Services,Supported Other Accommodation - Private Contractors Payment,960.00,0.00,COMMERCIAL SUPPLIER 
 01-01-2023,Adults,Homestead Care Service,Home Care - Private Contractors Payment,962.02,0.00,COMMERCIAL SUPPLIER 
 13-01-2023,Adults,2 Peel Way - Outlook Care,Supported Other Accommodation - Private Contractors Payment,963.92,0.00,NON COMMERCIAL SUPPLIER 
 02-01-2023,Adults,Outreach Support Services Ltd,Home Care - Private Contractors Payment,964.32,0.00,COMMERCIAL SUPPLIER 
 03-01-2023,Adults,KJD Care Limited,Home Care - Private Contractors Payment,964.32,0.00,INDIVIDUALS 
 03-01-2023,Adults,KJD Care Limited,Home Care - Private Contractors Payment,964.32,0.00,INDIVIDUALS 
 09-01-2023,Adults,Home Support Services (Havering & Essex) Ltd,Home Care - Private Contractors Payment,964.32,0.00,COMMERCIAL SUPPLIER 
 12-01-2023,Adults,Premier Carewaiting Ltd,Home Care - Private Contractors Payment,964.32,0.00,COMMERCIAL SUPPLIER 
 13-01-2023,Adults,IECC Care,Supported Other Accommodation - Private Contractors Payment,964.32,0.00,COMMERCIAL SUPPLIER 
 30-01-2023,Adults,Outreach Support Services Ltd,Home Care - Private Contractors Payment,964.32,0.00,COMMERCIAL SUPPLIER 
 01-01-2023,Adults,Homestead Care Service,Home Care - Private Contractors Payment,964.65,0.00,COMMERCIAL SUPPLIER 
 06-01-2023,Adults,Care-Away Ltd T/A Care Support,Home Care - Private Contractors Payment,965.12,0.00,COMMERCIAL SUPPLIER 
 06-01-2023,Adults,Care-Away Ltd T/A Care Support,Home Care - Private Contractors Payment,965.12,0.00,COMMERCIAL SUPPLIER 
 11-01-2023,Adults,Matrix SCM Ltd,Agency Staff,965.44,0.00,COMMERCIAL SUPPLIER 
 18-01-2023,Adults,Matrix SCM Ltd,Agency Staff,966.68,0.00,COMMERCIAL SUPPLIER 
 01-01-2023,Adults,Homestead Care Service,Home Care - Private Contractors Payment,967.60,0.00,COMMERCIAL SUPPLIER 
 17-01-2023,Adults,Lodge Group Care UK Ltd,Home Care - Private Contractors Payment,967.60,0.00,COMMERCIAL SUPPLIER 
 13-01-2023,Adults,Fountains Care Centre - Bondcare,Nursing Homes - Private Contractors Payment,968.57,0.00,COMMERCIAL SUPPLIER 
 01-01-2023,Adults,Homestead Care Service,Home Care - Private Contractors Payment,969.90,0.00,COMMERCIAL SUPPLIER 
 03-01-2023,Adults,Bluebird Care Havering,Home Care - Private Contractors Payment,974.20,0.00,COMMERCIAL SUPPLIER 
 09-01-2023,Adults,Home Support Services (Havering & Essex) Ltd,Home Care - Private Contractors Payment,978.75,0.00,COMMERCIAL SUPPLIER 
 09-01-2023,Adults,Home Support Services (Havering & Essex) Ltd,Home Care - Private Contractors Payment,978.75,0.00,COMMERCIAL SUPPLIER 
 09-01-2023,Adults,S J Builders,Maintenance - Equipment Furniture And Materials,980.00,0.00,COMMERCIAL SUPPLIER 
 09-01-2023,Adults,Home Support Services (Havering & Essex) Ltd,Home Care - Private Contractors Payment,981.70,0.00,COMMERCIAL SUPPLIER 
 09-01-2023,Adults,Inna Care Ltd,Home Care - Private Contractors Payment,984.00,0.00,COMMERCIAL SUPPLIER 
 31-01-2023,Adults,Cera Care Operations Ltd,Home Care - Private Contractors Payment,985.31,0.00,COMMERCIAL SUPPLIER 
 17-01-2023,Adults,John Stanleys Care Agency Ltd,Home Care - Private Contractors Payment,985.64,0.00,COMMERCIAL SUPPLIER 
 13-01-2023,Adults,Willows Care Home - Churchgate Healthcare (Willows) Ltd,Respite Care - Private Contractors Payment,985.71,0.00,COMMERCIAL SUPPLIER 
 17-01-2023,Adults,John Stanleys Care Agency Ltd,Home Care - Private Contractors Payment,987.61,0.00,COMMERCIAL SUPPLIER 
 01-01-2023,Adults,Homestead Care Service,Home Care - Private Contractors Payment,987.94,0.00,COMMERCIAL SUPPLIER 
 11-01-2023,Adults,Matrix SCM Ltd,Agency Staff,989.48,0.00,COMMERCIAL SUPPLIER 
 18-01-2023,Adults,Matrix SCM Ltd,Agency Staff,991.20,0.00,COMMERCIAL SUPPLIER 
 11-01-2023,Adults,Matrix SCM Ltd,Agency Staff,991.30,0.00,COMMERCIAL SUPPLIER 
 11-01-2023,Adults,Matrix SCM Ltd,Agency Staff,991.30,0.00,COMMERCIAL SUPPLIER 
 13-01-2023,Adults,Ebony Health Care Services Limited,Supported Other Accommodation - Private Contractors Payment,992.24,0.00,COMMERCIAL SUPPLIER 
 01-01-2023,Adults,Homestead Care Service,Home Care - Private Contractors Payment,993.51,0.00,COMMERCIAL SUPPLIER 
 09-01-2023,Adults,Home Support Services (Havering & Essex) Ltd,Home Care - Private Contractors Payment,993.51,0.00,COMMERCIAL SUPPLIER 
 11-01-2023,Adults,Matrix SCM Ltd,Agency Staff,995.28,0.00,COMMERCIAL SUPPLIER 
 11-01-2023,Adults,Matrix SCM Ltd,Agency Staff,995.88,0.00,COMMERCIAL SUPPLIER 
 09-01-2023,Adults,Home Support Services (Havering & Essex) Ltd,Home Care - Private Contractors Payment,997.45,0.00,COMMERCIAL SUPPLIER 
 09-01-2023,Adults,Home Support Services (Havering & Essex) Ltd,Home Care - Private Contractors Payment,997.78,0.00,COMMERCIAL SUPPLIER 
 09-01-2023,Adults,Home Support Services (Havering & Essex) Ltd,Home Care - Private Contractors Payment,998.43,0.00,COMMERCIAL SUPPLIER 
 01-01-2023,Adults,Homestead Care Service,Home Care - Private Contractors Payment,999.42,0.00,COMMERCIAL SUPPLIER 
 13-01-2023,Adults,Cera Care Operations Ltd,Home Care - Private Contractors Payment,999.74,0.00,COMMERCIAL SUPPLIER 
 13-01-2023,Adults,Cera Care Operations Ltd,Home Care - Private Contractors Payment,999.74,0.00,COMMERCIAL SUPPLIER 
 11-01-2023,Adults,Matrix SCM Ltd,Agency Staff,999.92,0.00,COMMERCIAL SUPPLIER 
 11-01-2023,Adults,Matrix SCM Ltd,Agency Staff,999.92,0.00,COMMERCIAL SUPPLIER 
 11-01-2023,Adults,Matrix SCM Ltd,Agency Staff,999.92,0.00,COMMERCIAL SUPPLIER 
 25-01-2023,Adults,Matrix SCM Ltd,Agency Staff,999.92,0.00,COMMERCIAL SUPPLIER 
 20-01-2023,Adults,Quality Healthcare Solutions Ltd t/a Kare Plus Romford,Home Care - Private Contractors Payment,1000.40,0.00,COMMERCIAL SUPPLIER 
 09-01-2023,Adults,Home Support Services (Havering & Essex) Ltd,Home Care - Private Contractors Payment,1003.35,0.00,COMMERCIAL SUPPLIER 
 20-01-2023,Adults,Quality Healthcare Solutions Ltd t/a Kare Plus Romford,Home Care - Private Contractors Payment,1006.63,0.00,COMMERCIAL SUPPLIER 
 03-01-2023,Adults,S&A Care Services Ltd.,Supported Other Accommodation - Private Contractors Payment,1008.00,0.00,COMMERCIAL SUPPLIER 
 13-01-2023,Adults,Fountains Care Centre - Bondcare,Nursing Homes - Private Contractors Payment,1008.00,0.00,COMMERCIAL SUPPLIER 
 13-01-2023,Adults,Independent Community Support Ltd t/a Wingletye Lodge ,Supported Other Accommodation - Private Contractors Payment,1008.00,0.00,COMMERCIAL SUPPLIER 
 13-01-2023,Adults,KJD Care Limited,Supported Other Accommodation - Private Contractors Payment,1008.00,0.00,INDIVIDUALS 
 09-01-2023,Adults,Home Sweet Home Care Ltd,Home Care - Private Contractors Payment,1008.93,0.00,COMMERCIAL SUPPLIER 
 01-01-2023,Adults,Homestead Care Service,Home Care - Private Contractors Payment,1009.26,0.00,COMMERCIAL SUPPLIER 
 13-01-2023,Adults,Hospiva Care & Associates Agency Ltd_a,Home Care - Private Contractors Payment,1011.88,0.00,COMMERCIAL SUPPLIER 
 25-01-2023,Adults,Matrix SCM Ltd,Agency Staff,1012.10,0.00,COMMERCIAL SUPPLIER 
 25-01-2023,Adults,Matrix SCM Ltd,Agency Staff,1012.10,0.00,COMMERCIAL SUPPLIER 
 17-01-2023,Adults,John Stanleys Care Agency Ltd,Home Care - Private Contractors Payment,1013.52,0.00,COMMERCIAL SUPPLIER 
 09-01-2023,Adults,Home Support Services (Havering & Essex) Ltd,Home Care - Private Contractors Payment,1014.18,0.00,COMMERCIAL SUPPLIER 
 10-01-2023,Adults,Care-Away Ltd T/A Care Support,Home Care - Private Contractors Payment,1015.04,0.00,COMMERCIAL SUPPLIER 
 09-01-2023,Adults,Home Support Services (Havering & Essex) Ltd,Home Care - Private Contractors Payment,1015.82,0.00,COMMERCIAL SUPPLIER 
 11-01-2023,Adults,Matrix SCM Ltd,Agency Staff,1016.19,0.00,COMMERCIAL SUPPLIER 
 23-01-2023,Adults,Prior Care Ltd_a,Home Care - Private Contractors Payment,1016.47,0.00,COMMERCIAL SUPPLIER 
 11-01-2023,Adults,Matrix SCM Ltd,Agency Staff,1016.89,0.00,COMMERCIAL SUPPLIER 
 11-01-2023,Adults,Matrix SCM Ltd,Agency Staff,1017.47,0.00,COMMERCIAL SUPPLIER 
 13-01-2023,Adults,DMP Healthcare (Heatherbrook) Ltd,Nursing Homes - Private Contractors Payment,1020.00,0.00,NON COMMERCIAL SUPPLIER 
 13-01-2023,Adults,Infinite Healthcare Services Ltd.,Supported Other Accommodation - Private Contractors Payment,1020.00,0.00,COMMERCIAL SUPPLIER 
 09-01-2023,Adults,Home Sweet Home Care Ltd,Home Care - Private Contractors Payment,1020.74,0.00,COMMERCIAL SUPPLIER 
 13-01-2023,Adults,The Cedars,Supported Other Accommodation - Private Contractors Payment,1020.80,0.00,COMMERCIAL SUPPLIER 
 13-01-2023,Adults,The Cedars,Supported Other Accommodation - Private Contractors Payment,1020.80,0.00,COMMERCIAL SUPPLIER 
 13-01-2023,Adults,The Cedars,Supported Other Accommodation - Private Contractors Payment,1020.80,0.00,COMMERCIAL SUPPLIER 
 13-01-2023,Adults,The Cedars,Supported Other Accommodation - Private Contractors Payment,1020.80,0.00,COMMERCIAL SUPPLIER 
 13-01-2023,Adults,The Cedars,Supported Other Accommodation - Private Contractors Payment,1020.80,0.00,COMMERCIAL SUPPLIER 
 13-01-2023,Adults,The Cedars,Supported Other Accommodation - Private Contractors Payment,1020.80,0.00,COMMERCIAL SUPPLIER 
 13-01-2023,Adults,The Cedars,Supported Other Accommodation - Private Contractors Payment,1020.80,0.00,COMMERCIAL SUPPLIER 
 13-01-2023,Adults,The Cedars,Supported Other Accommodation - Private Contractors Payment,1020.80,0.00,COMMERCIAL SUPPLIER 
 23-01-2023,Adults,Prior Care Ltd_a,Home Care - Private Contractors Payment,1021.39,0.00,COMMERCIAL SUPPLIER 
 05-01-2023,Adults,Prestige Care & Support Ltd,Home Care - Private Contractors Payment,1022.05,0.00,COMMERCIAL SUPPLIER 
 05-01-2023,Adults,Prestige Care & Support Ltd,Home Care - Private Contractors Payment,1023.03,0.00,COMMERCIAL SUPPLIER 
 03-01-2023,Adults,KJD Care Limited,Home Care - Private Contractors Payment,1023.36,0.00,INDIVIDUALS 
 09-01-2023,Adults,Inna Care Ltd,Home Care - Private Contractors Payment,1023.36,0.00,COMMERCIAL SUPPLIER 
 09-01-2023,Adults,Inna Care Ltd,Home Care - Private Contractors Payment,1023.36,0.00,COMMERCIAL SUPPLIER 
 10-01-2023,Adults,Amachyck Care Solution Ltd.,Home Care - Private Contractors Payment,1023.36,0.00,COMMERCIAL SUPPLIER 
 17-01-2023,Adults,John Stanleys Care Agency Ltd,Home Care - Private Contractors Payment,1023.36,0.00,COMMERCIAL SUPPLIER 
 01-01-2023,Adults,Homestead Care Service,Home Care - Private Contractors Payment,1024.34,0.00,COMMERCIAL SUPPLIER 
 17-01-2023,Adults,John Stanleys Care Agency Ltd,Home Care - Private Contractors Payment,1025.00,0.00,COMMERCIAL SUPPLIER 
 24-01-2023,Adults,Trinity London Care Ltd,Daycare - Private Contractors Payment,1025.20,0.00,COMMERCIAL SUPPLIER 
 24-01-2023,Adults,Trinity London Care Ltd,Daycare - Private Contractors Payment,1025.20,0.00,COMMERCIAL SUPPLIER 
 24-01-2023,Adults,Trinity London Care Ltd,Daycare - Private Contractors Payment,1025.20,0.00,COMMERCIAL SUPPLIER 
 02-01-2023,Adults,Tapestry_a.,Daycare - Private Contractors Payment,1026.00,0.00,COMMERCIAL SUPPLIER 
 30-01-2023,Adults,Tapestry_a.,Daycare - Private Contractors Payment,1026.00,0.00,COMMERCIAL SUPPLIER 
 11-01-2023,Adults,Matrix SCM Ltd,Agency Staff,1026.32,0.00,COMMERCIAL SUPPLIER 
 11-01-2023,Adults,Matrix SCM Ltd,Agency Staff,1027.76,0.00,COMMERCIAL SUPPLIER 
 25-01-2023,Adults,Matrix SCM Ltd,Agency Staff,1027.76,0.00,COMMERCIAL SUPPLIER 
 11-01-2023,Adults,Matrix SCM Ltd,Agency Staff,1028.97,0.00,COMMERCIAL SUPPLIER 
 01-01-2023,Adults,Homestead Care Service,Home Care - Private Contractors Payment,1029.92,0.00,COMMERCIAL SUPPLIER 
 18-01-2023,Adults,Matrix SCM Ltd,Agency Staff,1031.37,0.00,COMMERCIAL SUPPLIER 
 23-01-2023,Adults,Prior Care Ltd_a,Home Care - Private Contractors Payment,1031.56,0.00,COMMERCIAL SUPPLIER 
 09-01-2023,Adults,Home Support Services (Havering & Essex) Ltd,Home Care - Private Contractors Payment,1032.22,0.00,COMMERCIAL SUPPLIER 
 11-01-2023,Adults,Matrix SCM Ltd,Agency Staff,1032.40,0.00,COMMERCIAL SUPPLIER 
 09-01-2023,Adults,Home Support Services (Havering & Essex) Ltd,Home Care - Private Contractors Payment,1032.54,0.00,COMMERCIAL SUPPLIER 
 11-01-2023,Adults,Matrix SCM Ltd,Agency Staff,1033.00,0.00,COMMERCIAL SUPPLIER 
 09-01-2023,Adults,Home Support Services (Havering & Essex) Ltd,Home Care - Private Contractors Payment,1033.20,0.00,COMMERCIAL SUPPLIER 
 13-01-2023,Adults,Outlook Care - 4 Peel Way,Supported Other Accommodation - Private Contractors Payment,1035.08,0.00,COMMERCIAL SUPPLIER 
 01-01-2023,Adults,Homestead Care Service,Home Care - Private Contractors Payment,1035.17,0.00,COMMERCIAL SUPPLIER 
 17-01-2023,Adults,John Stanleys Care Agency Ltd,Home Care - Private Contractors Payment,1036.15,0.00,COMMERCIAL SUPPLIER 
 05-01-2023,Adults,Prestige Care & Support Ltd,Home Care - Private Contractors Payment,1036.48,0.00,COMMERCIAL SUPPLIER 
 09-01-2023,Adults,Home Support Services (Havering & Essex) Ltd,Home Care - Private Contractors Payment,1038.78,0.00,COMMERCIAL SUPPLIER 
 01-01-2023,Adults,Homestead Care Service,Home Care - Private Contractors Payment,1039.10,0.00,COMMERCIAL SUPPLIER 
 13-01-2023,Adults,The Cottage Residential Care Home,Residential Placements - Private Contractors Payment,1040.28,0.00,COMMERCIAL SUPPLIER 
 01-01-2023,Adults,Homestead Care Service,Home Care - Private Contractors Payment,1042.06,0.00,COMMERCIAL SUPPLIER 
 03-01-2023,Adults,KJD Care Limited,Home Care - Private Contractors Payment,1043.04,0.00,INDIVIDUALS 
 31-01-2023,Adults,Crystalize Care Services Ltd,Home Care - Private Contractors Payment,1043.04,0.00,COMMERCIAL SUPPLIER 
 01-01-2023,Adults,Homestead Care Service,Home Care - Private Contractors Payment,1043.70,0.00,COMMERCIAL SUPPLIER 
 09-01-2023,Adults,Home Sweet Home Care Ltd,Home Care - Private Contractors Payment,1043.70,0.00,COMMERCIAL SUPPLIER 
 05-01-2023,Adults,Prestige Care & Support Ltd,Home Care - Private Contractors Payment,1044.35,0.00,COMMERCIAL SUPPLIER 
 11-01-2023,Adults,Matrix SCM Ltd,Agency Staff,1046.40,0.00,COMMERCIAL SUPPLIER 
 13-01-2023,Adults,Care Management Group Ltd - The Ridgeway,Supported Other Accommodation - Private Contractors Payment,1047.76,0.00,COMMERCIAL SUPPLIER 
 10-01-2023,Adults,Care-Away Ltd T/A Care Support,Home Care - Private Contractors Payment,1048.32,0.00,COMMERCIAL SUPPLIER 
 10-01-2023,Adults,Care-Away Ltd T/A Care Support,Home Care - Private Contractors Payment,1048.32,0.00,COMMERCIAL SUPPLIER 
 13-01-2023,Adults,Protecthand Care Ltd ,Supported Other Accommodation - Private Contractors Payment,1050.00,0.00,COMMERCIAL SUPPLIER 
 09-01-2023,Adults,Home Support Services (Havering & Essex) Ltd,Home Care - Private Contractors Payment,1051.24,0.00,COMMERCIAL SUPPLIER 
 05-01-2023,Adults,Prestige Care & Support Ltd,Home Care - Private Contractors Payment,1052.22,0.00,COMMERCIAL SUPPLIER 
 09-01-2023,Adults,Home Sweet Home Care Ltd,Home Care - Private Contractors Payment,1053.21,0.00,COMMERCIAL SUPPLIER 
 01-01-2023,Adults,Homestead Care Service,Home Care - Private Contractors Payment,1055.83,0.00,COMMERCIAL SUPPLIER 
 09-01-2023,Adults,Home Support Services (Havering & Essex) Ltd,Home Care - Private Contractors Payment,1055.83,0.00,COMMERCIAL SUPPLIER 
 09-01-2023,Adults,Home Support Services (Havering & Essex) Ltd,Home Care - Private Contractors Payment,1056.49,0.00,COMMERCIAL SUPPLIER 
 09-01-2023,Adults,Home Support Services (Havering & Essex) Ltd,Home Care - Private Contractors Payment,1057.14,0.00,COMMERCIAL SUPPLIER 
 13-01-2023,Adults,Outreach Support Services Ltd,Supported Other Accommodation - Private Contractors Payment,1058.40,0.00,COMMERCIAL SUPPLIER 
 01-01-2023,Adults,Homestead Care Service,Home Care - Private Contractors Payment,1059.44,0.00,COMMERCIAL SUPPLIER 
 09-01-2023,Adults,Home Support Services (Havering & Essex) Ltd,Home Care - Private Contractors Payment,1061.41,0.00,COMMERCIAL SUPPLIER 
 03-01-2023,Adults,IJB Healthcare Ltd,Home Care - Private Contractors Payment,1062.72,0.00,COMMERCIAL SUPPLIER 
 03-01-2023,Adults,IJB Healthcare Ltd,Home Care - Private Contractors Payment,1062.72,0.00,COMMERCIAL SUPPLIER 
 09-01-2023,Adults,Home Support Services (Havering & Essex) Ltd,Home Care - Private Contractors Payment,1062.72,0.00,COMMERCIAL SUPPLIER 
 09-01-2023,Adults,Inna Care Ltd,Home Care - Private Contractors Payment,1062.72,0.00,COMMERCIAL SUPPLIER 
 09-01-2023,Adults,Inna Care Ltd,Home Care - Private Contractors Payment,1062.72,0.00,COMMERCIAL SUPPLIER 
 13-01-2023,Adults,Hospiva Care & Associates Agency Ltd_a,Home Care - Private Contractors Payment,1062.72,0.00,COMMERCIAL SUPPLIER 
 13-01-2023,Adults,Rosemont Care Limited,Home Care - Private Contractors Payment,1062.72,0.00,COMMERCIAL SUPPLIER 
 17-01-2023,Adults,Lodge Group Care UK Ltd,Home Care - Private Contractors Payment,1063.38,0.00,COMMERCIAL SUPPLIER 
 01-01-2023,Adults,Homestead Care Service,Home Care - Private Contractors Payment,1063.70,0.00,COMMERCIAL SUPPLIER 
 09-01-2023,Adults,Home Sweet Home Care Ltd,Home Care - Private Contractors Payment,1063.70,0.00,COMMERCIAL SUPPLIER 
 13-01-2023,Adults,Lodge Lane Care Home Limited,Residential Placements - Private Contractors Payment,1064.00,0.00,COMMERCIAL SUPPLIER 
 01-01-2023,Adults,Homestead Care Service,Home Care - Private Contractors Payment,1064.69,0.00,COMMERCIAL SUPPLIER 
 01-01-2023,Adults,Homestead Care Service,Home Care - Private Contractors Payment,1065.02,0.00,COMMERCIAL SUPPLIER 
 09-01-2023,Adults,Home Support Services (Havering & Essex) Ltd,Home Care - Private Contractors Payment,1065.34,0.00,COMMERCIAL SUPPLIER 
 01-01-2023,Adults,Homestead Care Service,Home Care - Private Contractors Payment,1066.00,0.00,COMMERCIAL SUPPLIER 
 09-01-2023,Adults,Home Sweet Home Care Ltd,Home Care - Private Contractors Payment,1066.33,0.00,COMMERCIAL SUPPLIER 
 09-01-2023,Adults,Home Support Services (Havering & Essex) Ltd,Home Care - Private Contractors Payment,1066.66,0.00,COMMERCIAL SUPPLIER 
 01-01-2023,Adults,Homestead Care Service,Home Care - Private Contractors Payment,1067.64,0.00,COMMERCIAL SUPPLIER 
 17-01-2023,Adults,Lodge Group Care UK Ltd,Home Care - Private Contractors Payment,1067.64,0.00,COMMERCIAL SUPPLIER 
 09-01-2023,Adults,Home Sweet Home Care Ltd,Home Care - Private Contractors Payment,1068.62,0.00,COMMERCIAL SUPPLIER 
 11-01-2023,Adults,Matrix SCM Ltd,Agency Staff,1068.75,0.00,COMMERCIAL SUPPLIER 
 18-01-2023,Adults,Matrix SCM Ltd,Agency Staff,1069.04,0.00,COMMERCIAL SUPPLIER 
 09-01-2023,Adults,Home Sweet Home Care Ltd,Home Care - Private Contractors Payment,1072.56,0.00,COMMERCIAL SUPPLIER 
 23-01-2023,Adults,Prior Care Ltd_a,Home Care - Private Contractors Payment,1072.56,0.00,COMMERCIAL SUPPLIER 
 09-01-2023,Adults,Home Sweet Home Care Ltd,Home Care - Private Contractors Payment,1072.89,0.00,COMMERCIAL SUPPLIER 
 17-01-2023,Adults,Lodge Group Care UK Ltd,Home Care - Private Contractors Payment,1072.89,0.00,COMMERCIAL SUPPLIER 
 09-01-2023,Adults,Home Sweet Home Care Ltd,Home Care - Private Contractors Payment,1073.22,0.00,COMMERCIAL SUPPLIER 
 09-01-2023,Adults,Home Support Services (Havering & Essex) Ltd,Home Care - Private Contractors Payment,1073.22,0.00,COMMERCIAL SUPPLIER 
 01-01-2023,Adults,Homestead Care Service,Home Care - Private Contractors Payment,1073.54,0.00,COMMERCIAL SUPPLIER 
 09-01-2023,Adults,Home Sweet Home Care Ltd,Home Care - Private Contractors Payment,1074.53,0.00,COMMERCIAL SUPPLIER 
 17-01-2023,Adults,John Stanleys Care Agency Ltd,Home Care - Private Contractors Payment,1074.53,0.00,COMMERCIAL SUPPLIER 
 30-01-2023,Adults,Eastway Care Ltd_a,Daycare - Private Contractors Payment,1075.00,0.00,COMMERCIAL SUPPLIER 
 01-01-2023,Adults,Homestead Care Service,Home Care - Private Contractors Payment,1075.84,0.00,COMMERCIAL SUPPLIER 
 05-01-2023,Adults,Prestige Care & Support Ltd,Home Care - Private Contractors Payment,1075.84,0.00,COMMERCIAL SUPPLIER 
 05-01-2023,Adults,Prestige Care & Support Ltd,Home Care - Private Contractors Payment,1076.50,0.00,COMMERCIAL SUPPLIER 
 11-01-2023,Adults,Matrix SCM Ltd,Agency Staff,1076.88,0.00,COMMERCIAL SUPPLIER 
 05-01-2023,Adults,Prestige Care & Support Ltd,Home Care - Private Contractors Payment,1078.79,0.00,COMMERCIAL SUPPLIER 
 23-01-2023,Adults,Prior Care Ltd_a,Home Care - Private Contractors Payment,1081.09,0.00,COMMERCIAL SUPPLIER 
 23-01-2023,Adults,Prior Care Ltd_a,Home Care - Private Contractors Payment,1081.42,0.00,COMMERCIAL SUPPLIER 
 01-01-2023,Adults,Homestead Care Service,Home Care - Private Contractors Payment,1082.40,0.00,COMMERCIAL SUPPLIER 
 09-01-2023,Adults,Home Sweet Home Care Ltd,Home Care - Private Contractors Payment,1082.40,0.00,COMMERCIAL SUPPLIER 
 09-01-2023,Adults,Home Sweet Home Care Ltd,Home Care - Private Contractors Payment,1082.40,0.00,COMMERCIAL SUPPLIER 
 09-01-2023,Adults,Home Support Services (Havering & Essex) Ltd,Home Care - Private Contractors Payment,1082.40,0.00,COMMERCIAL SUPPLIER 
 09-01-2023,Adults,Home Support Services (Havering & Essex) Ltd,Home Care - Private Contractors Payment,1082.40,0.00,COMMERCIAL SUPPLIER 
 20-01-2023,Adults,Quality Healthcare Solutions Ltd t/a Kare Plus Romford,Home Care - Private Contractors Payment,1082.40,0.00,COMMERCIAL SUPPLIER 
 09-01-2023,Adults,Home Support Services (Havering & Essex) Ltd,Home Care - Private Contractors Payment,1085.02,0.00,COMMERCIAL SUPPLIER 
 09-01-2023,Adults,Home Sweet Home Care Ltd,Home Care - Private Contractors Payment,1086.01,0.00,COMMERCIAL SUPPLIER 
 09-01-2023,Adults,Home Sweet Home Care Ltd,Home Care - Private Contractors Payment,1086.34,0.00,COMMERCIAL SUPPLIER 
 01-01-2023,Adults,Homestead Care Service,Home Care - Private Contractors Payment,1089.62,0.00,COMMERCIAL SUPPLIER 
 01-01-2023,Adults,Homestead Care Service,Home Care - Private Contractors Payment,1089.94,0.00,COMMERCIAL SUPPLIER 
 13-01-2023,Adults,Cera Care Operations Ltd,Home Care - Private Contractors Payment,1089.94,0.00,COMMERCIAL SUPPLIER 
 09-01-2023,Adults,Home Sweet Home Care Ltd,Home Care - Private Contractors Payment,1090.27,0.00,COMMERCIAL SUPPLIER 
 01-01-2023,Adults,Homestead Care Service,Home Care - Private Contractors Payment,1091.26,0.00,COMMERCIAL SUPPLIER 
 01-01-2023,Adults,Homestead Care Service,Home Care - Private Contractors Payment,1092.24,0.00,COMMERCIAL SUPPLIER 
 09-01-2023,Adults,Home Sweet Home Care Ltd,Home Care - Private Contractors Payment,1092.24,0.00,COMMERCIAL SUPPLIER 
 09-01-2023,Adults,Home Sweet Home Care Ltd,Home Care - Private Contractors Payment,1092.57,0.00,COMMERCIAL SUPPLIER 
 01-01-2023,Adults,Homestead Care Service,Home Care - Private Contractors Payment,1093.55,0.00,COMMERCIAL SUPPLIER 
 09-01-2023,Adults,Home Sweet Home Care Ltd,Home Care - Private Contractors Payment,1093.55,0.00,COMMERCIAL SUPPLIER 
 13-01-2023,Adults,Morepower Ltd t/a Aqs Homecare,Home Care - Private Contractors Payment,1093.55,0.00,COMMERCIAL SUPPLIER 
 09-01-2023,Adults,Home Support Services (Havering & Essex) Ltd,Home Care - Private Contractors Payment,1094.86,0.00,COMMERCIAL SUPPLIER 
 31-01-2023,Adults,Home From Home Support Service Ltd ,Supported Other Accommodation - Private Contractors Payment,1095.20,0.00,COMMERCIAL SUPPLIER 
 09-01-2023,Adults,Home Support Services (Havering & Essex) Ltd,Home Care - Private Contractors Payment,1095.52,0.00,COMMERCIAL SUPPLIER 
 09-01-2023,Adults,Home Support Services (Havering & Essex) Ltd,Home Care - Private Contractors Payment,1095.85,0.00,COMMERCIAL SUPPLIER 
 09-01-2023,Adults,Home Sweet Home Care Ltd,Home Care - Private Contractors Payment,1096.50,0.00,COMMERCIAL SUPPLIER 
 09-01-2023,Adults,Home Sweet Home Care Ltd,Home Care - Private Contractors Payment,1096.83,0.00,COMMERCIAL SUPPLIER 
 09-01-2023,Adults,Home Sweet Home Care Ltd,Home Care - Private Contractors Payment,1097.16,0.00,COMMERCIAL SUPPLIER 
 09-01-2023,Adults,Home Sweet Home Care Ltd,Home Care - Private Contractors Payment,1097.49,0.00,COMMERCIAL SUPPLIER 
 09-01-2023,Adults,Home Support Services (Havering & Essex) Ltd,Home Care - Private Contractors Payment,1097.49,0.00,COMMERCIAL SUPPLIER 
 20-01-2023,Adults,Quality Healthcare Solutions Ltd t/a Kare Plus Romford,Home Care - Private Contractors Payment,1098.47,0.00,COMMERCIAL SUPPLIER 
 13-01-2023,Adults,Ladyville Lodge_a,Respite Care - Private Contractors Payment,1100.00,0.00,COMMERCIAL SUPPLIER 
 09-01-2023,Adults,Home Sweet Home Care Ltd,Home Care - Private Contractors Payment,1100.77,0.00,COMMERCIAL SUPPLIER 
 09-01-2023,Adults,Home Support Services (Havering & Essex) Ltd,Home Care - Private Contractors Payment,1101.75,0.00,COMMERCIAL SUPPLIER 
 02-01-2023,Adults,Crystalize Care Services Ltd,Home Care - Private Contractors Payment,1102.08,0.00,COMMERCIAL SUPPLIER 
 02-01-2023,Adults,Crystalize Care Services Ltd,Home Care - Private Contractors Payment,1102.08,0.00,COMMERCIAL SUPPLIER 
 02-01-2023,Adults,Outreach Support Services Ltd,Home Care - Private Contractors Payment,1102.08,0.00,COMMERCIAL SUPPLIER 
 02-01-2023,Adults,Outreach Support Services Ltd,Home Care - Private Contractors Payment,1102.08,0.00,COMMERCIAL SUPPLIER 
 02-01-2023,Adults,Outreach Support Services Ltd,Home Care - Private Contractors Payment,1102.08,0.00,COMMERCIAL SUPPLIER 
 02-01-2023,Adults,Outreach Support Services Ltd,Home Care - Private Contractors Payment,1102.08,0.00,COMMERCIAL SUPPLIER 
 03-01-2023,Adults,KJD Care Limited,Home Care - Private Contractors Payment,1102.08,0.00,INDIVIDUALS 
 03-01-2023,Adults,KJD Care Limited,Home Care - Private Contractors Payment,1102.08,0.00,INDIVIDUALS 
 03-01-2023,Adults,KJD Care Limited,Home Care - Private Contractors Payment,1102.08,0.00,INDIVIDUALS 
 03-01-2023,Adults,KJD Care Limited,Home Care - Private Contractors Payment,1102.08,0.00,INDIVIDUALS 
 03-01-2023,Adults,London Homecare Ltd,Home Care - Private Contractors Payment,1102.08,0.00,COMMERCIAL SUPPLIER 
 05-01-2023,Adults,Prestige Care & Support Ltd,Home Care - Private Contractors Payment,1102.08,0.00,COMMERCIAL SUPPLIER 
 05-01-2023,Adults,Prestige Care & Support Ltd,Home Care - Private Contractors Payment,1102.08,0.00,COMMERCIAL SUPPLIER 
 05-01-2023,Adults,Prestige Care & Support Ltd,Home Care - Private Contractors Payment,1102.08,0.00,COMMERCIAL SUPPLIER 
 05-01-2023,Adults,Prestige Care & Support Ltd,Home Care - Private Contractors Payment,1102.08,0.00,COMMERCIAL SUPPLIER 
 05-01-2023,Adults,Prestige Care & Support Ltd,Home Care - Private Contractors Payment,1102.08,0.00,COMMERCIAL SUPPLIER 
 05-01-2023,Adults,Prestige Care & Support Ltd,Home Care - Private Contractors Payment,1102.08,0.00,COMMERCIAL SUPPLIER 
 05-01-2023,Adults,Passion Tree Care Services Ltd,Home Care - Private Contractors Payment,1102.08,0.00,COMMERCIAL SUPPLIER 
 05-01-2023,Adults,Passion Tree Care Services Ltd,Home Care - Private Contractors Payment,1102.08,0.00,COMMERCIAL SUPPLIER 
 05-01-2023,Adults,Passion Tree Care Services Ltd,Home Care - Private Contractors Payment,1102.08,0.00,COMMERCIAL SUPPLIER 
 09-01-2023,Adults,Home Sweet Home Care Ltd,Home Care - Private Contractors Payment,1102.08,0.00,COMMERCIAL SUPPLIER 
 09-01-2023,Adults,Home Sweet Home Care Ltd,Home Care - Private Contractors Payment,1102.08,0.00,COMMERCIAL SUPPLIER 
 09-01-2023,Adults,Home Sweet Home Care Ltd,Home Care - Private Contractors Payment,1102.08,0.00,COMMERCIAL SUPPLIER 
 09-01-2023,Adults,Home Sweet Home Care Ltd,Home Care - Private Contractors Payment,1102.08,0.00,COMMERCIAL SUPPLIER 
 09-01-2023,Adults,Home Sweet Home Care Ltd,Home Care - Private Contractors Payment,1102.08,0.00,COMMERCIAL SUPPLIER 
 09-01-2023,Adults,Home Sweet Home Care Ltd,Home Care - Private Contractors Payment,1102.08,0.00,COMMERCIAL SUPPLIER 
 09-01-2023,Adults,Home Support Services (Havering & Essex) Ltd,Home Care - Private Contractors Payment,1102.08,0.00,COMMERCIAL SUPPLIER 
 09-01-2023,Adults,Home Support Services (Havering & Essex) Ltd,Home Care - Private Contractors Payment,1102.08,0.00,COMMERCIAL SUPPLIER 
 09-01-2023,Adults,Home Support Services (Havering & Essex) Ltd,Home Care - Private Contractors Payment,1102.08,0.00,COMMERCIAL SUPPLIER 
 09-01-2023,Adults,Home Support Services (Havering & Essex) Ltd,Home Care - Private Contractors Payment,1102.08,0.00,COMMERCIAL SUPPLIER 
 09-01-2023,Adults,Home Support Services (Havering & Essex) Ltd,Home Care - Private Contractors Payment,1102.08,0.00,COMMERCIAL SUPPLIER 
 09-01-2023,Adults,Home Support Services (Havering & Essex) Ltd,Home Care - Private Contractors Payment,1102.08,0.00,COMMERCIAL SUPPLIER 
 09-01-2023,Adults,Home Support Services (Havering & Essex) Ltd,Home Care - Private Contractors Payment,1102.08,0.00,COMMERCIAL SUPPLIER 
 09-01-2023,Adults,Inna Care Ltd,Home Care - Private Contractors Payment,1102.08,0.00,COMMERCIAL SUPPLIER 
 09-01-2023,Adults,Inna Care Ltd,Home Care - Private Contractors Payment,1102.08,0.00,COMMERCIAL SUPPLIER 
 09-01-2023,Adults,Inna Care Ltd,Home Care - Private Contractors Payment,1102.08,0.00,COMMERCIAL SUPPLIER 
 09-01-2023,Adults,Inna Care Ltd,Home Care - Private Contractors Payment,1102.08,0.00,COMMERCIAL SUPPLIER 
 09-01-2023,Adults,Inna Care Ltd,Home Care - Private Contractors Payment,1102.08,0.00,COMMERCIAL SUPPLIER 
 09-01-2023,Adults,Inna Care Ltd,Home Care - Private Contractors Payment,1102.08,0.00,COMMERCIAL SUPPLIER 
 09-01-2023,Adults,Inna Care Ltd,Home Care - Private Contractors Payment,1102.08,0.00,COMMERCIAL SUPPLIER 
 13-01-2023,Adults,Rosemont Care Limited,Home Care - Private Contractors Payment,1102.08,0.00,COMMERCIAL SUPPLIER 
 13-01-2023,Adults,Rosemont Care Limited,Home Care - Private Contractors Payment,1102.08,0.00,COMMERCIAL SUPPLIER 
 13-01-2023,Adults,Rosemont Care Limited,Home Care - Private Contractors Payment,1102.08,0.00,COMMERCIAL SUPPLIER 
 13-01-2023,Adults,Rosemont Care Limited,Home Care - Private Contractors Payment,1102.08,0.00,COMMERCIAL SUPPLIER 
 13-01-2023,Adults,Rosemont Care Limited,Home Care - Private Contractors Payment,1102.08,0.00,COMMERCIAL SUPPLIER 
 13-01-2023,Adults,Rosemont Care Limited,Home Care - Private Contractors Payment,1102.08,0.00,COMMERCIAL SUPPLIER 
 17-01-2023,Adults,Lodge Group Care UK Ltd,Home Care - Private Contractors Payment,1102.08,0.00,COMMERCIAL SUPPLIER 
 17-01-2023,Adults,Lodge Group Care UK Ltd,Home Care - Private Contractors Payment,1102.08,0.00,COMMERCIAL SUPPLIER 
 17-01-2023,Adults,Lodge Group Care UK Ltd,Home Care - Private Contractors Payment,1102.08,0.00,COMMERCIAL SUPPLIER 
 17-01-2023,Adults,Lodge Group Care UK Ltd,Home Care - Private Contractors Payment,1102.08,0.00,COMMERCIAL SUPPLIER 
 17-01-2023,Adults,Lodge Group Care UK Ltd,Home Care - Private Contractors Payment,1102.08,0.00,COMMERCIAL SUPPLIER 
 17-01-2023,Adults,Lodge Group Care UK Ltd,Home Care - Private Contractors Payment,1102.08,0.00,COMMERCIAL SUPPLIER 
 23-01-2023,Adults,Prior Care Ltd_a,Home Care - Private Contractors Payment,1102.08,0.00,COMMERCIAL SUPPLIER 
 30-01-2023,Adults,Outreach Support Services Ltd,Home Care - Private Contractors Payment,1102.08,0.00,COMMERCIAL SUPPLIER 
 30-01-2023,Adults,Outreach Support Services Ltd,Home Care - Private Contractors Payment,1102.08,0.00,COMMERCIAL SUPPLIER 
 30-01-2023,Adults,London Homecare Ltd,Home Care - Private Contractors Payment,1102.08,0.00,COMMERCIAL SUPPLIER 
 31-01-2023,Adults,Crystalize Care Services Ltd,Home Care - Private Contractors Payment,1102.08,0.00,COMMERCIAL SUPPLIER 
 31-01-2023,Adults,Crystalize Care Services Ltd,Home Care - Private Contractors Payment,1102.08,0.00,COMMERCIAL SUPPLIER 
 09-01-2023,Adults,Home Support Services (Havering & Essex) Ltd,Home Care - Private Contractors Payment,1102.41,0.00,COMMERCIAL SUPPLIER 
 05-01-2023,Adults,Prestige Care & Support Ltd,Home Care - Private Contractors Payment,1102.74,0.00,COMMERCIAL SUPPLIER 
 05-01-2023,Adults,Prestige Care & Support Ltd,Home Care - Private Contractors Payment,1102.74,0.00,COMMERCIAL SUPPLIER 
 05-01-2023,Adults,Prestige Care & Support Ltd,Home Care - Private Contractors Payment,1102.74,0.00,COMMERCIAL SUPPLIER 
 05-01-2023,Adults,Prestige Care & Support Ltd,Home Care - Private Contractors Payment,1102.74,0.00,COMMERCIAL SUPPLIER 
 23-01-2023,Adults,Prior Care Ltd_a,Home Care - Private Contractors Payment,1102.74,0.00,COMMERCIAL SUPPLIER 
 13-01-2023,Adults,Cera Care Operations Ltd,Home Care - Private Contractors Payment,1103.72,0.00,COMMERCIAL SUPPLIER 
 09-01-2023,Adults,Home Support Services (Havering & Essex) Ltd,Home Care - Private Contractors Payment,1104.05,0.00,COMMERCIAL SUPPLIER 
 09-01-2023,Adults,Home Support Services (Havering & Essex) Ltd,Home Care - Private Contractors Payment,1104.38,0.00,COMMERCIAL SUPPLIER 
 09-01-2023,Adults,Home Support Services (Havering & Essex) Ltd,Home Care - Private Contractors Payment,1104.38,0.00,COMMERCIAL SUPPLIER 
 09-01-2023,Adults,Home Support Services (Havering & Essex) Ltd,Home Care - Private Contractors Payment,1104.38,0.00,COMMERCIAL SUPPLIER 
 05-01-2023,Adults,Prestige Care & Support Ltd,Home Care - Private Contractors Payment,1104.70,0.00,COMMERCIAL SUPPLIER 
 17-01-2023,Adults,Lodge Group Care UK Ltd,Home Care - Private Contractors Payment,1105.03,0.00,COMMERCIAL SUPPLIER 
 13-01-2023,Adults,Outlook Care - 76 Neave Crescent,Supported Other Accommodation - Private Contractors Payment,1105.64,0.00,COMMERCIAL SUPPLIER 
 09-01-2023,Adults,Home Support Services (Havering & Essex) Ltd,Home Care - Private Contractors Payment,1105.69,0.00,COMMERCIAL SUPPLIER 
 13-01-2023,Adults,Morepower Ltd t/a Aqs Homecare,Home Care - Private Contractors Payment,1105.69,0.00,COMMERCIAL SUPPLIER 
 17-01-2023,Adults,Lodge Group Care UK Ltd,Home Care - Private Contractors Payment,1105.69,0.00,COMMERCIAL SUPPLIER 
 13-01-2023,Adults,Morepower Ltd t/a Aqs Homecare,Home Care - Private Contractors Payment,1106.02,0.00,COMMERCIAL SUPPLIER 
 31-01-2023,Adults,Cera Care Operations Ltd,Home Care - Private Contractors Payment,1106.02,0.00,COMMERCIAL SUPPLIER 
 09-01-2023,Adults,Home Sweet Home Care Ltd,Home Care - Private Contractors Payment,1106.34,0.00,COMMERCIAL SUPPLIER 
 09-01-2023,Adults,Home Support Services (Havering & Essex) Ltd,Home Care - Private Contractors Payment,1106.67,0.00,COMMERCIAL SUPPLIER 
 09-01-2023,Adults,Home Support Services (Havering & Essex) Ltd,Home Care - Private Contractors Payment,1106.67,0.00,COMMERCIAL SUPPLIER 
 17-01-2023,Adults,Lodge Group Care UK Ltd,Home Care - Private Contractors Payment,1106.67,0.00,COMMERCIAL SUPPLIER 
 09-01-2023,Adults,Home Sweet Home Care Ltd,Home Care - Private Contractors Payment,1107.00,0.00,COMMERCIAL SUPPLIER 
 09-01-2023,Adults,Home Sweet Home Care Ltd,Home Care - Private Contractors Payment,1107.00,0.00,COMMERCIAL SUPPLIER 
 23-01-2023,Adults,Prior Care Ltd_a,Home Care - Private Contractors Payment,1107.33,0.00,COMMERCIAL SUPPLIER 
 31-01-2023,Adults,Cera Care Operations Ltd,Home Care - Private Contractors Payment,1107.33,0.00,COMMERCIAL SUPPLIER 
 23-01-2023,Adults,Prior Care Ltd_a,Home Care - Private Contractors Payment,1107.66,0.00,COMMERCIAL SUPPLIER 
 30-01-2023,Adults,Outreach Support Services Ltd,Home Care - Private Contractors Payment,1108.00,0.00,COMMERCIAL SUPPLIER 
 09-01-2023,Adults,Home Support Services (Havering & Essex) Ltd,Home Care - Private Contractors Payment,1108.31,0.00,COMMERCIAL SUPPLIER 
 09-01-2023,Adults,Home Support Services (Havering & Essex) Ltd,Home Care - Private Contractors Payment,1108.31,0.00,COMMERCIAL SUPPLIER 
 31-01-2023,Adults,Cera Care Operations Ltd,Home Care - Private Contractors Payment,1108.31,0.00,COMMERCIAL SUPPLIER 
 09-01-2023,Adults,Home Sweet Home Care Ltd,Home Care - Private Contractors Payment,1109.95,0.00,COMMERCIAL SUPPLIER 
 05-01-2023,Adults,Prestige Care & Support Ltd,Home Care - Private Contractors Payment,1110.28,0.00,COMMERCIAL SUPPLIER 
 23-01-2023,Adults,Prior Care Ltd_a,Home Care - Private Contractors Payment,1110.28,0.00,COMMERCIAL SUPPLIER 
 01-01-2023,Adults,Homestead Care Service,Home Care - Private Contractors Payment,1110.61,0.00,COMMERCIAL SUPPLIER 
 01-01-2023,Adults,Homestead Care Service,Home Care - Private Contractors Payment,1111.26,0.00,COMMERCIAL SUPPLIER 
 09-01-2023,Adults,Home Support Services (Havering & Essex) Ltd,Home Care - Private Contractors Payment,1111.26,0.00,COMMERCIAL SUPPLIER 
 04-01-2023,Adults,Matrix SCM Ltd,Agency Staff,1111.80,0.00,COMMERCIAL SUPPLIER 
 17-01-2023,Adults,Lodge Group Care UK Ltd,Home Care - Private Contractors Payment,1111.92,0.00,COMMERCIAL SUPPLIER 
 09-01-2023,Adults,Home Sweet Home Care Ltd,Home Care - Private Contractors Payment,1112.25,0.00,COMMERCIAL SUPPLIER 
 17-01-2023,Adults,Lodge Group Care UK Ltd,Home Care - Private Contractors Payment,1112.25,0.00,COMMERCIAL SUPPLIER 
 01-01-2023,Adults,Homestead Care Service,Home Care - Private Contractors Payment,1112.58,0.00,COMMERCIAL SUPPLIER 
 20-01-2023,Adults,Quality Healthcare Solutions Ltd t/a Kare Plus Romford,Home Care - Private Contractors Payment,1112.90,0.00,COMMERCIAL SUPPLIER 
 05-01-2023,Adults,Prestige Care & Support Ltd,Home Care - Private Contractors Payment,1113.23,0.00,COMMERCIAL SUPPLIER 
 17-01-2023,Adults,Lodge Group Care UK Ltd,Home Care - Private Contractors Payment,1113.23,0.00,COMMERCIAL SUPPLIER 
 09-01-2023,Adults,Home Sweet Home Care Ltd,Home Care - Private Contractors Payment,1113.56,0.00,COMMERCIAL SUPPLIER 
 13-01-2023,Adults,Cera Care Operations Ltd,Home Care - Private Contractors Payment,1114.22,0.00,COMMERCIAL SUPPLIER 
 17-01-2023,Adults,Lodge Group Care UK Ltd,Home Care - Private Contractors Payment,1114.22,0.00,COMMERCIAL SUPPLIER 
 13-01-2023,Adults,GCH - Hillside Nursing Home,Nursing Homes - Private Contractors Payment,1114.29,0.00,COMMERCIAL SUPPLIER 
 09-01-2023,Adults,Home Sweet Home Care Ltd,Home Care - Private Contractors Payment,1114.54,0.00,COMMERCIAL SUPPLIER 
 09-01-2023,Adults,Home Sweet Home Care Ltd,Home Care - Private Contractors Payment,1114.54,0.00,COMMERCIAL SUPPLIER 
 17-01-2023,Adults,Lodge Group Care UK Ltd,Home Care - Private Contractors Payment,1114.54,0.00,COMMERCIAL SUPPLIER 
 05-01-2023,Adults,Prestige Care & Support Ltd,Home Care - Private Contractors Payment,1114.87,0.00,COMMERCIAL SUPPLIER 
 09-01-2023,Adults,Home Support Services (Havering & Essex) Ltd,Home Care - Private Contractors Payment,1114.87,0.00,COMMERCIAL SUPPLIER 
 31-01-2023,Adults,Cera Care Operations Ltd,Home Care - Private Contractors Payment,1114.87,0.00,COMMERCIAL SUPPLIER 
 05-01-2023,Adults,Prestige Care & Support Ltd,Home Care - Private Contractors Payment,1115.20,0.00,COMMERCIAL SUPPLIER 
 09-01-2023,Adults,Home Support Services (Havering & Essex) Ltd,Home Care - Private Contractors Payment,1115.20,0.00,COMMERCIAL SUPPLIER 
 09-01-2023,Adults,Home Support Services (Havering & Essex) Ltd,Home Care - Private Contractors Payment,1115.20,0.00,COMMERCIAL SUPPLIER 
 09-01-2023,Adults,Home Sweet Home Care Ltd,Home Care - Private Contractors Payment,1115.53,0.00,COMMERCIAL SUPPLIER 
 13-01-2023,Adults,Cera Care Operations Ltd,Home Care - Private Contractors Payment,1115.53,0.00,COMMERCIAL SUPPLIER 
 09-01-2023,Adults,Home Support Services (Havering & Essex) Ltd,Home Care - Private Contractors Payment,1115.86,0.00,COMMERCIAL SUPPLIER 
 25-01-2023,Adults,Matrix SCM Ltd,Agency Staff,1116.80,0.00,COMMERCIAL SUPPLIER 
 05-01-2023,Adults,Prestige Care & Support Ltd,Home Care - Private Contractors Payment,1116.84,0.00,COMMERCIAL SUPPLIER 
 09-01-2023,Adults,Home Support Services (Havering & Essex) Ltd,Home Care - Private Contractors Payment,1116.84,0.00,COMMERCIAL SUPPLIER 
 09-01-2023,Adults,Home Support Services (Havering & Essex) Ltd,Home Care - Private Contractors Payment,1116.84,0.00,COMMERCIAL SUPPLIER 
 17-01-2023,Adults,John Stanleys Care Agency Ltd,Home Care - Private Contractors Payment,1116.84,0.00,COMMERCIAL SUPPLIER 
 17-01-2023,Adults,Lodge Group Care UK Ltd,Home Care - Private Contractors Payment,1117.50,0.00,COMMERCIAL SUPPLIER 
 13-01-2023,Adults,Cera Care Operations Ltd,Home Care - Private Contractors Payment,1117.82,0.00,COMMERCIAL SUPPLIER 
 31-01-2023,Adults,Cera Care Operations Ltd,Home Care - Private Contractors Payment,1117.82,0.00,COMMERCIAL SUPPLIER 
 20-01-2023,Adults,Quality Healthcare Solutions Ltd t/a Kare Plus Romford,Home Care - Private Contractors Payment,1118.15,0.00,COMMERCIAL SUPPLIER 
 17-01-2023,Adults,Lodge Group Care UK Ltd,Home Care - Private Contractors Payment,1118.81,0.00,COMMERCIAL SUPPLIER 
 09-01-2023,Adults,Home Support Services (Havering & Essex) Ltd,Home Care - Private Contractors Payment,1120.45,0.00,COMMERCIAL SUPPLIER 
 13-01-2023,Adults,Hospiva Care & Associates Agency Ltd_a,Home Care - Private Contractors Payment,1120.45,0.00,COMMERCIAL SUPPLIER 
 13-01-2023,Adults,Morepower Ltd t/a Aqs Homecare,Home Care - Private Contractors Payment,1120.45,0.00,COMMERCIAL SUPPLIER 
 17-01-2023,Adults,Lodge Group Care UK Ltd,Home Care - Private Contractors Payment,1120.78,0.00,COMMERCIAL SUPPLIER 
 01-01-2023,Adults,Homestead Care Service,Home Care - Private Contractors Payment,1121.43,0.00,COMMERCIAL SUPPLIER 
 17-01-2023,Adults,Lodge Group Care UK Ltd,Home Care - Private Contractors Payment,1121.76,0.00,COMMERCIAL SUPPLIER 
 23-01-2023,Adults,Prior Care Ltd_a,Home Care - Private Contractors Payment,1121.76,0.00,COMMERCIAL SUPPLIER 
 09-01-2023,Adults,Home Support Services (Havering & Essex) Ltd,Home Care - Private Contractors Payment,1122.09,0.00,COMMERCIAL SUPPLIER 
 17-01-2023,Adults,Lodge Group Care UK Ltd,Home Care - Private Contractors Payment,1122.09,0.00,COMMERCIAL SUPPLIER 
 01-01-2023,Adults,Westminster Homecare Ltd_a,Home Care - Private Contractors Payment,1122.74,0.00,COMMERCIAL SUPPLIER 
 13-01-2023,Adults,Morepower Ltd t/a Aqs Homecare,Home Care - Private Contractors Payment,1123.40,0.00,COMMERCIAL SUPPLIER 
 13-01-2023,Adults,Morepower Ltd t/a Aqs Homecare,Home Care - Private Contractors Payment,1123.73,0.00,COMMERCIAL SUPPLIER 
 11-01-2023,Adults,Matrix SCM Ltd,Agency Staff,1124.34,0.00,COMMERCIAL SUPPLIER 
 01-01-2023,Adults,Homestead Care Service,Home Care - Private Contractors Payment,1124.38,0.00,COMMERCIAL SUPPLIER 
 17-01-2023,Adults,Lodge Group Care UK Ltd,Home Care - Private Contractors Payment,1124.71,0.00,COMMERCIAL SUPPLIER 
 09-01-2023,Adults,Home Support Services (Havering & Essex) Ltd,Home Care - Private Contractors Payment,1125.04,0.00,COMMERCIAL SUPPLIER 
 05-01-2023,Adults,Prestige Care & Support Ltd,Home Care - Private Contractors Payment,1125.37,0.00,COMMERCIAL SUPPLIER 
 09-01-2023,Adults,Home Support Services (Havering & Essex) Ltd,Home Care - Private Contractors Payment,1125.70,0.00,COMMERCIAL SUPPLIER 
 09-01-2023,Adults,Home Sweet Home Care Ltd,Home Care - Private Contractors Payment,1126.02,0.00,COMMERCIAL SUPPLIER 
 09-01-2023,Adults,Home Support Services (Havering & Essex) Ltd,Home Care - Private Contractors Payment,1126.02,0.00,COMMERCIAL SUPPLIER 
 01-01-2023,Adults,Homestead Care Service,Home Care - Private Contractors Payment,1126.35,0.00,COMMERCIAL SUPPLIER 
 17-01-2023,Adults,Lodge Group Care UK Ltd,Home Care - Private Contractors Payment,1126.35,0.00,COMMERCIAL SUPPLIER 
 17-01-2023,Adults,Lodge Group Care UK Ltd,Home Care - Private Contractors Payment,1127.34,0.00,COMMERCIAL SUPPLIER 
 01-01-2023,Adults,Homestead Care Service,Home Care - Private Contractors Payment,1128.98,0.00,COMMERCIAL SUPPLIER 
 17-01-2023,Adults,Lodge Group Care UK Ltd,Home Care - Private Contractors Payment,1128.98,0.00,COMMERCIAL SUPPLIER 
 01-01-2023,Adults,Homestead Care Service,Home Care - Private Contractors Payment,1129.63,0.00,COMMERCIAL SUPPLIER 
 09-01-2023,Adults,Home Sweet Home Care Ltd,Home Care - Private Contractors Payment,1129.63,0.00,COMMERCIAL SUPPLIER 
 01-01-2023,Adults,Homestead Care Service,Home Care - Private Contractors Payment,1129.96,0.00,COMMERCIAL SUPPLIER 
 06-01-2023,Adults,Anytime Care 2020_a,Home Care - Private Contractors Payment,1130.62,0.00,COMMERCIAL SUPPLIER 
 09-01-2023,Adults,Home Support Services (Havering & Essex) Ltd,Home Care - Private Contractors Payment,1130.94,0.00,COMMERCIAL SUPPLIER 
 09-01-2023,Adults,Home Support Services (Havering & Essex) Ltd,Home Care - Private Contractors Payment,1131.60,0.00,COMMERCIAL SUPPLIER 
 09-01-2023,Adults,Home Support Services (Havering & Essex) Ltd,Home Care - Private Contractors Payment,1132.26,0.00,COMMERCIAL SUPPLIER 
 17-01-2023,Adults,Lodge Group Care UK Ltd,Home Care - Private Contractors Payment,1134.22,0.00,COMMERCIAL SUPPLIER 
 17-01-2023,Adults,Lodge Group Care UK Ltd,Home Care - Private Contractors Payment,1134.55,0.00,COMMERCIAL SUPPLIER 
 13-01-2023,Adults,Morepower Ltd t/a Aqs Homecare,Home Care - Private Contractors Payment,1135.21,0.00,COMMERCIAL SUPPLIER 
 17-01-2023,Adults,Lodge Group Care UK Ltd,Home Care - Private Contractors Payment,1135.54,0.00,COMMERCIAL SUPPLIER 
 01-01-2023,Adults,Homestead Care Service,Home Care - Private Contractors Payment,1136.85,0.00,COMMERCIAL SUPPLIER 
 23-01-2023,Adults,Prior Care Ltd_a,Home Care - Private Contractors Payment,1136.85,0.00,COMMERCIAL SUPPLIER 
 13-01-2023,Adults,Hospiva Care & Associates Agency Ltd_a,Home Care - Private Contractors Payment,1137.50,0.00,COMMERCIAL SUPPLIER 
 13-01-2023,Adults,Hospiva Care & Associates Agency Ltd_a,Home Care - Private Contractors Payment,1137.50,0.00,COMMERCIAL SUPPLIER 
 13-01-2023,Adults,Morepower Ltd t/a Aqs Homecare,Home Care - Private Contractors Payment,1137.50,0.00,COMMERCIAL SUPPLIER 
 01-01-2023,Adults,Homestead Care Service,Home Care - Private Contractors Payment,1138.49,0.00,COMMERCIAL SUPPLIER 
 05-01-2023,Adults,Prestige Care & Support Ltd,Home Care - Private Contractors Payment,1139.47,0.00,COMMERCIAL SUPPLIER 
 09-01-2023,Adults,Home Sweet Home Care Ltd,Home Care - Private Contractors Payment,1139.47,0.00,COMMERCIAL SUPPLIER 
 09-01-2023,Adults,Home Sweet Home Care Ltd,Home Care - Private Contractors Payment,1139.47,0.00,COMMERCIAL SUPPLIER 
 13-01-2023,Adults,Morepower Ltd t/a Aqs Homecare,Home Care - Private Contractors Payment,1139.47,0.00,COMMERCIAL SUPPLIER 
 23-01-2023,Adults,Prior Care Ltd_a,Home Care - Private Contractors Payment,1139.47,0.00,COMMERCIAL SUPPLIER 
 02-01-2023,Adults,Tapestry_a.,Daycare - Private Contractors Payment,1140.00,0.00,COMMERCIAL SUPPLIER 
 30-01-2023,Adults,Tapestry_a.,Daycare - Private Contractors Payment,1140.00,0.00,COMMERCIAL SUPPLIER 
 30-01-2023,Adults,Tapestry_a.,Daycare - Private Contractors Payment,1140.00,0.00,COMMERCIAL SUPPLIER 
 30-01-2023,Adults,Tapestry_a.,Daycare - Private Contractors Payment,1140.00,0.00,COMMERCIAL SUPPLIER 
 01-01-2023,Adults,Homestead Care Service,Home Care - Private Contractors Payment,1140.46,0.00,COMMERCIAL SUPPLIER 
 13-01-2023,Adults,Morepower Ltd t/a Aqs Homecare,Home Care - Private Contractors Payment,1140.46,0.00,COMMERCIAL SUPPLIER 
 13-01-2023,Adults,Morepower Ltd t/a Aqs Homecare,Home Care - Private Contractors Payment,1140.46,0.00,COMMERCIAL SUPPLIER 
 17-01-2023,Adults,Lodge Group Care UK Ltd,Home Care - Private Contractors Payment,1140.46,0.00,COMMERCIAL SUPPLIER 
 09-01-2023,Adults,Home Sweet Home Care Ltd,Home Care - Private Contractors Payment,1141.11,0.00,COMMERCIAL SUPPLIER 
 09-01-2023,Adults,Home Support Services (Havering & Essex) Ltd,Home Care - Private Contractors Payment,1141.77,0.00,COMMERCIAL SUPPLIER 
 13-01-2023,Adults,Cera Care Operations Ltd,Home Care - Private Contractors Payment,1143.08,0.00,COMMERCIAL SUPPLIER 
 13-01-2023,Adults,Morepower Ltd t/a Aqs Homecare,Home Care - Private Contractors Payment,1143.74,0.00,COMMERCIAL SUPPLIER 
 01-01-2023,Adults,Homestead Care Service,Home Care - Private Contractors Payment,1148.33,0.00,COMMERCIAL SUPPLIER 
 17-01-2023,Adults,Lodge Group Care UK Ltd,Home Care - Private Contractors Payment,1148.66,0.00,COMMERCIAL SUPPLIER 
 17-01-2023,Adults,Lodge Group Care UK Ltd,Home Care - Private Contractors Payment,1148.66,0.00,COMMERCIAL SUPPLIER 
 20-01-2023,Adults,Quality Healthcare Solutions Ltd t/a Kare Plus Romford,Home Care - Private Contractors Payment,1148.66,0.00,COMMERCIAL SUPPLIER 
 13-01-2023,Adults,GCH - Hillside Nursing Home,Respite Care - Private Contractors Payment,1150.00,0.00,COMMERCIAL SUPPLIER 
 11-01-2023,Adults,Matrix SCM Ltd,Agency Staff,1150.04,0.00,COMMERCIAL SUPPLIER 
 18-01-2023,Adults,Matrix SCM Ltd,Agency Staff,1150.05,0.00,COMMERCIAL SUPPLIER 
 13-01-2023,Adults,Morepower Ltd t/a Aqs Homecare,Home Care - Private Contractors Payment,1150.95,0.00,COMMERCIAL SUPPLIER 
 01-01-2023,Adults,Homestead Care Service,Home Care - Private Contractors Payment,1152.26,0.00,COMMERCIAL SUPPLIER 
 13-01-2023,Adults,Morepower Ltd t/a Aqs Homecare,Home Care - Private Contractors Payment,1152.59,0.00,COMMERCIAL SUPPLIER 
 31-01-2023,Adults,Cera Care Operations Ltd,Home Care - Private Contractors Payment,1152.59,0.00,COMMERCIAL SUPPLIER 
 17-01-2023,Adults,Lodge Group Care UK Ltd,Home Care - Private Contractors Payment,1153.25,0.00,COMMERCIAL SUPPLIER 
 09-01-2023,Adults,Home Support Services (Havering & Essex) Ltd,Home Care - Private Contractors Payment,1153.90,0.00,COMMERCIAL SUPPLIER 
 17-01-2023,Adults,Lodge Group Care UK Ltd,Home Care - Private Contractors Payment,1154.56,0.00,COMMERCIAL SUPPLIER 
 06-01-2023,Adults,Anytime Care 2020_a,Home Care - Private Contractors Payment,1155.87,0.00,COMMERCIAL SUPPLIER 
 09-01-2023,Adults,Home Support Services (Havering & Essex) Ltd,Home Care - Private Contractors Payment,1156.53,0.00,COMMERCIAL SUPPLIER 
 09-01-2023,Adults,Home Support Services (Havering & Essex) Ltd,Home Care - Private Contractors Payment,1156.53,0.00,COMMERCIAL SUPPLIER 
 01-01-2023,Adults,Homestead Care Service,Home Care - Private Contractors Payment,1156.86,0.00,COMMERCIAL SUPPLIER 
 11-01-2023,Adults,Matrix SCM Ltd,Agency Staff,1157.12,0.00,COMMERCIAL SUPPLIER 
 01-01-2023,Adults,Homestead Care Service,Home Care - Private Contractors Payment,1157.18,0.00,COMMERCIAL SUPPLIER 
 01-01-2023,Adults,Westminster Homecare Ltd_a,Home Care - Private Contractors Payment,1158.17,0.00,COMMERCIAL SUPPLIER 
 06-01-2023,Adults,Anytime Care 2020_a,Home Care - Private Contractors Payment,1158.17,0.00,COMMERCIAL SUPPLIER 
 09-01-2023,Adults,Home Support Services (Havering & Essex) Ltd,Home Care - Private Contractors Payment,1158.50,0.00,COMMERCIAL SUPPLIER 
 01-01-2023,Adults,Homestead Care Service,Home Care - Private Contractors Payment,1159.48,0.00,COMMERCIAL SUPPLIER 
 01-01-2023,Adults,Homestead Care Service,Home Care - Private Contractors Payment,1159.81,0.00,COMMERCIAL SUPPLIER 
 13-01-2023,Adults,The Riverside Group,Supported Other Accommodation - Private Contractors Payment,1160.00,0.00, 
 13-01-2023,Adults,The Riverside Group,Supported Other Accommodation - Private Contractors Payment,1160.00,0.00, 
 13-01-2023,Adults,The Riverside Group,Supported Other Accommodation - Private Contractors Payment,1160.00,0.00, 
 13-01-2023,Adults,The Riverside Group,Supported Other Accommodation - Private Contractors Payment,1160.00,0.00, 
 13-01-2023,Adults,The Riverside Group,Supported Other Accommodation - Private Contractors Payment,1160.00,0.00, 
 13-01-2023,Adults,The Riverside Group,Supported Other Accommodation - Private Contractors Payment,1160.00,0.00, 
 13-01-2023,Adults,The Riverside Group,Supported Other Accommodation - Private Contractors Payment,1160.00,0.00, 
 13-01-2023,Adults,The Riverside Group,Supported Other Accommodation - Private Contractors Payment,1160.00,0.00, 
 13-01-2023,Adults,The Riverside Group,Supported Other Accommodation - Private Contractors Payment,1160.00,0.00, 
 13-01-2023,Adults,The Riverside Group,Supported Other Accommodation - Private Contractors Payment,1160.00,0.00, 
 31-01-2023,Adults,Cera Care Operations Ltd,Home Care - Private Contractors Payment,1163.42,0.00,COMMERCIAL SUPPLIER 
 31-01-2023,Adults,Cera Care Operations Ltd,Home Care - Private Contractors Payment,1163.74,0.00,COMMERCIAL SUPPLIER 
 06-01-2023,Adults,Care-Away Ltd T/A Care Support,Home Care - Private Contractors Payment,1164.80,0.00,COMMERCIAL SUPPLIER 
 10-01-2023,Adults,Care-Away Ltd T/A Care Support,Home Care - Private Contractors Payment,1164.80,0.00,COMMERCIAL SUPPLIER 
 10-01-2023,Adults,Care-Away Ltd T/A Care Support,Home Care - Private Contractors Payment,1164.80,0.00,COMMERCIAL SUPPLIER 
 10-01-2023,Adults,Care-Away Ltd T/A Care Support,Home Care - Private Contractors Payment,1164.80,0.00,COMMERCIAL SUPPLIER 
 17-01-2023,Adults,Lodge Group Care UK Ltd,Home Care - Private Contractors Payment,1165.38,0.00,COMMERCIAL SUPPLIER 
 05-01-2023,Adults,Prestige Care & Support Ltd,Home Care - Private Contractors Payment,1168.01,0.00,COMMERCIAL SUPPLIER 
 18-01-2023,Adults,Matrix SCM Ltd,Agency Staff,1169.28,0.00,COMMERCIAL SUPPLIER 
 09-01-2023,Adults,Home Sweet Home Care Ltd,Home Care - Private Contractors Payment,1170.63,0.00,COMMERCIAL SUPPLIER 
 17-01-2023,Adults,Lodge Group Care UK Ltd,Home Care - Private Contractors Payment,1171.29,0.00,COMMERCIAL SUPPLIER 
 17-01-2023,Adults,Lodge Group Care UK Ltd,Home Care - Private Contractors Payment,1172.27,0.00,COMMERCIAL SUPPLIER 
 25-01-2023,Adults,Matrix SCM Ltd,Agency Staff,1175.59,0.00,COMMERCIAL SUPPLIER 
 13-01-2023,Adults,Footsteps Support Ltd_a,Supported Other Accommodation - Private Contractors Payment,1176.00,0.00,COMMERCIAL SUPPLIER 
 01-01-2023,Adults,Homestead Care Service,Home Care - Private Contractors Payment,1177.52,0.00,COMMERCIAL SUPPLIER 
 01-01-2023,Adults,Homestead Care Service,Home Care - Private Contractors Payment,1178.83,0.00,COMMERCIAL SUPPLIER 
 18-01-2023,Adults,London Care Plc_a,Home Care - Private Contractors Payment,1179.82,0.00,COMMERCIAL SUPPLIER 
 11-01-2023,Adults,Carers Trust East Midlands,Home Care - Private Contractors Payment,1180.80,0.00,COMMERCIAL SUPPLIER 
 18-01-2023,Adults,Matrix SCM Ltd,Agency Staff,1181.15,0.00,COMMERCIAL SUPPLIER 
 25-01-2023,Adults,Matrix SCM Ltd,Agency Staff,1181.15,0.00,COMMERCIAL SUPPLIER 
 01-01-2023,Adults,Homestead Care Service,Home Care - Private Contractors Payment,1184.41,0.00,COMMERCIAL SUPPLIER 
 05-01-2023,Adults,Prestige Care & Support Ltd,Home Care - Private Contractors Payment,1184.41,0.00,COMMERCIAL SUPPLIER 
 18-01-2023,Adults,London Care Plc_a,Home Care - Private Contractors Payment,1186.05,0.00,COMMERCIAL SUPPLIER 
 17-01-2023,Adults,John Stanleys Care Agency Ltd,Home Care - Private Contractors Payment,1187.69,0.00,COMMERCIAL SUPPLIER 
 04-01-2023,Adults,Treal Care Limited,Home Care - Private Contractors Payment,1188.00,0.00,COMMERCIAL SUPPLIER 
 17-01-2023,Adults,Lodge Group Care UK Ltd,Home Care - Private Contractors Payment,1189.33,0.00,COMMERCIAL SUPPLIER 
 25-01-2023,Adults,Matrix SCM Ltd,Agency Staff,1189.65,0.00,COMMERCIAL SUPPLIER 
 01-01-2023,Adults,Homestead Care Service,Home Care - Private Contractors Payment,1191.30,0.00,COMMERCIAL SUPPLIER 
 17-01-2023,Adults,Lodge Group Care UK Ltd,Home Care - Private Contractors Payment,1192.94,0.00,COMMERCIAL SUPPLIER 
 09-01-2023,Adults,Home Sweet Home Care Ltd,Home Care - Private Contractors Payment,1193.92,0.00,COMMERCIAL SUPPLIER 
 17-01-2023,Adults,Lodge Group Care UK Ltd,Home Care - Private Contractors Payment,1195.23,0.00,COMMERCIAL SUPPLIER 
 01-01-2023,Adults,Homestead Care Service,Home Care - Private Contractors Payment,1197.86,0.00,COMMERCIAL SUPPLIER 
 26-01-2023,Adults,Jaktol Day Centers,Daycare - Private Contractors Payment,1199.84,0.00,COMMERCIAL SUPPLIER 
 13-01-2023,Adults,Ladyville Lodge_a,Respite Care - Private Contractors Payment,1200.00,0.00,COMMERCIAL SUPPLIER 
 09-01-2023,Adults,Home Sweet Home Care Ltd,Home Care - Private Contractors Payment,1200.48,0.00,COMMERCIAL SUPPLIER 
 01-01-2023,Adults,Homestead Care Service,Home Care - Private Contractors Payment,1202.12,0.00,COMMERCIAL SUPPLIER 
 17-01-2023,Adults,Lodge Group Care UK Ltd,Home Care - Private Contractors Payment,1202.45,0.00,COMMERCIAL SUPPLIER 
 13-01-2023,Adults,Independant Community Support Ltd T/A Heaton Lodge,Supported Other Accommodation - Private Contractors Payment,1203.43,0.00,COMMERCIAL SUPPLIER 
 09-01-2023,Adults,Home Support Services (Havering & Essex) Ltd,Home Care - Private Contractors Payment,1204.74,0.00,COMMERCIAL SUPPLIER 
 11-01-2023,Adults,Matrix SCM Ltd,Agency Staff,1207.46,0.00,COMMERCIAL SUPPLIER 
 25-01-2023,Adults,Matrix SCM Ltd,Agency Staff,1207.46,0.00,COMMERCIAL SUPPLIER 
 13-01-2023,Adults,Morepower Ltd t/a Aqs Homecare,Home Care - Private Contractors Payment,1209.01,0.00,COMMERCIAL SUPPLIER 
 13-01-2023,Adults,Morepower Ltd t/a Aqs Homecare,Home Care - Private Contractors Payment,1209.01,0.00,COMMERCIAL SUPPLIER 
 13-01-2023,Adults,Independent Community Support Ltd t/a Wingletye Lodge ,Supported Other Accommodation - Private Contractors Payment,1209.60,0.00,COMMERCIAL SUPPLIER 
 18-01-2023,Adults,Matrix SCM Ltd,Agency Staff,1209.60,0.00,COMMERCIAL SUPPLIER 
 25-01-2023,Adults,Matrix SCM Ltd,Agency Staff,1209.60,0.00,COMMERCIAL SUPPLIER 
 01-01-2023,Adults,Agracare Ltd t/a Home Instead Senior Care,Home Care - Private Contractors Payment,1212.00,0.00,COMMERCIAL SUPPLIER 
 17-01-2023,Adults,Lodge Group Care UK Ltd,Home Care - Private Contractors Payment,1214.58,0.00,COMMERCIAL SUPPLIER 
 17-01-2023,Adults,John Stanleys Care Agency Ltd,Home Care - Private Contractors Payment,1218.19,0.00,COMMERCIAL SUPPLIER 
 17-01-2023,Adults,Lodge Group Care UK Ltd,Home Care - Private Contractors Payment,1220.16,0.00,COMMERCIAL SUPPLIER 
 30-01-2023,Adults,Pleasant Home Healthcare Ltd,Home Care - Private Contractors Payment,1220.16,0.00,COMMERCIAL SUPPLIER 
 13-01-2023,Adults,Masumin Ltd t/s Abbeleigh House,Residential Care Income,1220.32,0.00,COMMERCIAL SUPPLIER 
 17-01-2023,Adults,John Stanleys Care Agency Ltd,Home Care - Private Contractors Payment,1223.44,0.00,COMMERCIAL SUPPLIER 
 23-01-2023,Adults,Prior Care Ltd_a,Home Care - Private Contractors Payment,1223.77,0.00,COMMERCIAL SUPPLIER 
 01-01-2023,Adults,Westminster Homecare Ltd_a,Home Care - Private Contractors Payment,1225.08,0.00,COMMERCIAL SUPPLIER 
 09-01-2023,Adults,Home Sweet Home Care Ltd,Home Care - Private Contractors Payment,1227.38,0.00,COMMERCIAL SUPPLIER 
 18-01-2023,Adults,Matrix SCM Ltd,Agency Staff,1228.32,0.00,COMMERCIAL SUPPLIER 
 25-01-2023,Adults,Matrix SCM Ltd,Agency Staff,1228.32,0.00,COMMERCIAL SUPPLIER 
 13-01-2023,Adults,Cera Care Operations Ltd,Home Care - Private Contractors Payment,1229.34,0.00,COMMERCIAL SUPPLIER 
 18-01-2023,Adults,Matrix SCM Ltd,Agency Staff,1235.52,0.00,COMMERCIAL SUPPLIER 
 25-01-2023,Adults,Matrix SCM Ltd,Agency Staff,1235.52,0.00,COMMERCIAL SUPPLIER 
 17-01-2023,Adults,John Stanleys Care Agency Ltd,Home Care - Private Contractors Payment,1236.89,0.00,COMMERCIAL SUPPLIER 
 13-01-2023,Adults,Morepower Ltd t/a Aqs Homecare,Home Care - Private Contractors Payment,1238.53,0.00,COMMERCIAL SUPPLIER 
 09-01-2023,Adults,Home Support Services (Havering & Essex) Ltd,Home Care - Private Contractors Payment,1239.18,0.00,COMMERCIAL SUPPLIER 
 02-01-2023,Adults,Crystalize Care Services Ltd,Home Care - Private Contractors Payment,1239.84,0.00,COMMERCIAL SUPPLIER 
 02-01-2023,Adults,Crystalize Care Services Ltd,Home Care - Private Contractors Payment,1239.84,0.00,COMMERCIAL SUPPLIER 
 02-01-2023,Adults,Outreach Support Services Ltd,Home Care - Private Contractors Payment,1239.84,0.00,COMMERCIAL SUPPLIER 
 02-01-2023,Adults,Outreach Support Services Ltd,Home Care - Private Contractors Payment,1239.84,0.00,COMMERCIAL SUPPLIER 
 02-01-2023,Adults,Outreach Support Services Ltd,Home Care - Private Contractors Payment,1239.84,0.00,COMMERCIAL SUPPLIER 
 03-01-2023,Adults,KJD Care Limited,Home Care - Private Contractors Payment,1239.84,0.00,INDIVIDUALS 
 03-01-2023,Adults,KJD Care Limited,Home Care - Private Contractors Payment,1239.84,0.00,INDIVIDUALS 
 03-01-2023,Adults,KJD Care Limited,Home Care - Private Contractors Payment,1239.84,0.00,INDIVIDUALS 
 03-01-2023,Adults,KJD Care Limited,Home Care - Private Contractors Payment,1239.84,0.00,INDIVIDUALS 
 03-01-2023,Adults,London Homecare Ltd,Home Care - Private Contractors Payment,1239.84,0.00,COMMERCIAL SUPPLIER 
 03-01-2023,Adults,London Homecare Ltd,Home Care - Private Contractors Payment,1239.84,0.00,COMMERCIAL SUPPLIER 
 03-01-2023,Adults,London Homecare Ltd,Home Care - Private Contractors Payment,1239.84,0.00,COMMERCIAL SUPPLIER 
 03-01-2023,Adults,London Homecare Ltd,Home Care - Private Contractors Payment,1239.84,0.00,COMMERCIAL SUPPLIER 
 03-01-2023,Adults,London Homecare Ltd,Home Care - Private Contractors Payment,1239.84,0.00,COMMERCIAL SUPPLIER 
 05-01-2023,Adults,Passion Tree Care Services Ltd,Home Care - Private Contractors Payment,1239.84,0.00,COMMERCIAL SUPPLIER 
 05-01-2023,Adults,Passion Tree Care Services Ltd,Home Care - Private Contractors Payment,1239.84,0.00,COMMERCIAL SUPPLIER 
 05-01-2023,Adults,Passion Tree Care Services Ltd,Home Care - Private Contractors Payment,1239.84,0.00,COMMERCIAL SUPPLIER 
 09-01-2023,Adults,Inna Care Ltd,Home Care - Private Contractors Payment,1239.84,0.00,COMMERCIAL SUPPLIER 
 09-01-2023,Adults,Inna Care Ltd,Home Care - Private Contractors Payment,1239.84,0.00,COMMERCIAL SUPPLIER 
 30-01-2023,Adults,Outreach Support Services Ltd,Home Care - Private Contractors Payment,1239.84,0.00,COMMERCIAL SUPPLIER 
 30-01-2023,Adults,Outreach Support Services Ltd,Home Care - Private Contractors Payment,1239.84,0.00,COMMERCIAL SUPPLIER 
 30-01-2023,Adults,Outreach Support Services Ltd,Home Care - Private Contractors Payment,1239.84,0.00,COMMERCIAL SUPPLIER 
 30-01-2023,Adults,London Homecare Ltd,Home Care - Private Contractors Payment,1239.84,0.00,COMMERCIAL SUPPLIER 
 30-01-2023,Adults,London Homecare Ltd,Home Care - Private Contractors Payment,1239.84,0.00,COMMERCIAL SUPPLIER 
 30-01-2023,Adults,London Homecare Ltd,Home Care - Private Contractors Payment,1239.84,0.00,COMMERCIAL SUPPLIER 
 30-01-2023,Adults,London Homecare Ltd,Home Care - Private Contractors Payment,1239.84,0.00,COMMERCIAL SUPPLIER 
 30-01-2023,Adults,London Homecare Ltd,Home Care - Private Contractors Payment,1239.84,0.00,COMMERCIAL SUPPLIER 
 31-01-2023,Adults,Crystalize Care Services Ltd,Home Care - Private Contractors Payment,1239.84,0.00,COMMERCIAL SUPPLIER 
 31-01-2023,Adults,Crystalize Care Services Ltd,Home Care - Private Contractors Payment,1239.84,0.00,COMMERCIAL SUPPLIER 
 13-01-2023,Adults,Morepower Ltd t/a Aqs Homecare,Home Care - Private Contractors Payment,1240.17,0.00,COMMERCIAL SUPPLIER 
 09-01-2023,Adults,Home Support Services (Havering & Essex) Ltd,Home Care - Private Contractors Payment,1240.82,0.00,COMMERCIAL SUPPLIER 
 17-01-2023,Adults,John Stanleys Care Agency Ltd,Home Care - Private Contractors Payment,1241.15,0.00,COMMERCIAL SUPPLIER 
 04-01-2023,Adults,Matrix SCM Ltd,Agency Staff,1241.28,0.00,COMMERCIAL SUPPLIER 
 11-01-2023,Adults,Matrix SCM Ltd,Agency Staff,1241.28,0.00,COMMERCIAL SUPPLIER 
 18-01-2023,Adults,Matrix SCM Ltd,Agency Staff,1241.28,0.00,COMMERCIAL SUPPLIER 
 18-01-2023,Adults,Matrix SCM Ltd,Agency Staff,1241.28,0.00,COMMERCIAL SUPPLIER 
 18-01-2023,Adults,Matrix SCM Ltd,Agency Staff,1241.28,0.00,COMMERCIAL SUPPLIER 
 18-01-2023,Adults,Matrix SCM Ltd,Agency Staff,1241.28,0.00,COMMERCIAL SUPPLIER 
 18-01-2023,Adults,Matrix SCM Ltd,Agency Staff,1241.28,0.00,COMMERCIAL SUPPLIER 
 18-01-2023,Adults,Matrix SCM Ltd,Agency Staff,1241.28,0.00,COMMERCIAL SUPPLIER 
 18-01-2023,Adults,Matrix SCM Ltd,Agency Staff,1241.28,0.00,COMMERCIAL SUPPLIER 
 18-01-2023,Adults,Matrix SCM Ltd,Agency Staff,1241.28,0.00,COMMERCIAL SUPPLIER 
 25-01-2023,Adults,Matrix SCM Ltd,Agency Staff,1241.28,0.00,COMMERCIAL SUPPLIER 
 25-01-2023,Adults,Matrix SCM Ltd,Agency Staff,1241.28,0.00,COMMERCIAL SUPPLIER 
 25-01-2023,Adults,Matrix SCM Ltd,Agency Staff,1241.28,0.00,COMMERCIAL SUPPLIER 
 25-01-2023,Adults,Matrix SCM Ltd,Agency Staff,1241.28,0.00,COMMERCIAL SUPPLIER 
 25-01-2023,Adults,Matrix SCM Ltd,Agency Staff,1241.28,0.00,COMMERCIAL SUPPLIER 
 25-01-2023,Adults,Matrix SCM Ltd,Agency Staff,1241.28,0.00,COMMERCIAL SUPPLIER 
 25-01-2023,Adults,Matrix SCM Ltd,Agency Staff,1241.28,0.00,COMMERCIAL SUPPLIER 
 25-01-2023,Adults,Matrix SCM Ltd,Agency Staff,1241.28,0.00,COMMERCIAL SUPPLIER 
 25-01-2023,Adults,Matrix SCM Ltd,Agency Staff,1241.28,0.00,COMMERCIAL SUPPLIER 
 13-01-2023,Adults,Hospiva Care & Associates Agency Ltd_a,Home Care - Private Contractors Payment,1242.14,0.00,COMMERCIAL SUPPLIER 
 13-01-2023,Adults,Hospiva Care & Associates Agency Ltd_a,Home Care - Private Contractors Payment,1242.14,0.00,COMMERCIAL SUPPLIER 
 09-01-2023,Adults,Home Support Services (Havering & Essex) Ltd,Home Care - Private Contractors Payment,1244.43,0.00,COMMERCIAL SUPPLIER 
 30-01-2023,Adults,Bluebird Care Havering,Home Care - Private Contractors Payment,1245.20,0.00,COMMERCIAL SUPPLIER 
 18-01-2023,Adults,Matrix SCM Ltd,Agency Staff,1245.33,0.00,COMMERCIAL SUPPLIER 
 31-01-2023,Adults,Cera Care Operations Ltd,Home Care - Private Contractors Payment,1245.42,0.00,COMMERCIAL SUPPLIER 
 10-01-2023,Adults,Care-Away Ltd T/A Care Support,Home Care - Private Contractors Payment,1248.00,0.00,COMMERCIAL SUPPLIER 
 17-01-2023,Adults,Lodge Group Care UK Ltd,Home Care - Private Contractors Payment,1248.70,0.00,COMMERCIAL SUPPLIER 
 13-01-2023,Adults,Morepower Ltd t/a Aqs Homecare,Home Care - Private Contractors Payment,1250.01,0.00,COMMERCIAL SUPPLIER 
 17-01-2023,Adults,John Stanleys Care Agency Ltd,Home Care - Private Contractors Payment,1251.65,0.00,COMMERCIAL SUPPLIER 
 23-01-2023,Adults,Prior Care Ltd_a,Home Care - Private Contractors Payment,1252.63,0.00,COMMERCIAL SUPPLIER 
 13-01-2023,Adults,GCH - Hillside Nursing Home,Nursing Homes - Private Contractors Payment,1253.57,0.00,COMMERCIAL SUPPLIER 
 06-01-2023,Adults,Beechcourt Care Centre - Bondcare,Nursing Homes - Private Contractors Payment,1254.00,0.00,COMMERCIAL SUPPLIER 
 25-01-2023,Adults,Matrix SCM Ltd,Agency Staff,1256.40,0.00,COMMERCIAL SUPPLIER 
 25-01-2023,Adults,Matrix SCM Ltd,Agency Staff,1256.40,0.00,COMMERCIAL SUPPLIER 
 25-01-2023,Adults,Matrix SCM Ltd,Agency Staff,1256.40,0.00,COMMERCIAL SUPPLIER 
 25-01-2023,Adults,Matrix SCM Ltd,Agency Staff,1256.40,0.00,COMMERCIAL SUPPLIER 
 25-01-2023,Adults,Matrix SCM Ltd,Agency Staff,1256.40,0.00,COMMERCIAL SUPPLIER 
 25-01-2023,Adults,Matrix SCM Ltd,Agency Staff,1256.40,0.00,COMMERCIAL SUPPLIER 
 25-01-2023,Adults,Matrix SCM Ltd,Agency Staff,1256.40,0.00,COMMERCIAL SUPPLIER 
 17-01-2023,Adults,Lodge Group Care UK Ltd,Home Care - Private Contractors Payment,1258.21,0.00,COMMERCIAL SUPPLIER 
 20-01-2023,Adults,Quality Healthcare Solutions Ltd t/a Kare Plus Romford,Home Care - Private Contractors Payment,1258.54,0.00,COMMERCIAL SUPPLIER 
 17-01-2023,Adults,Lodge Group Care UK Ltd,Home Care - Private Contractors Payment,1259.52,0.00,COMMERCIAL SUPPLIER 
 20-01-2023,Adults,Quality Healthcare Solutions Ltd t/a Kare Plus Romford,Home Care - Private Contractors Payment,1259.52,0.00,COMMERCIAL SUPPLIER 
 13-01-2023,Adults,Little Gaynes,Respite Care - Private Contractors Payment,1260.00,0.00,COMMERCIAL SUPPLIER 
 13-01-2023,Adults,Runwood Homes Plc - Woodbury Court,Residential Care Income,1260.04,0.00,COMMERCIAL SUPPLIER 
 18-01-2023,Adults,London Care Plc_a,Home Care - Private Contractors Payment,1260.50,0.00,COMMERCIAL SUPPLIER 
 13-01-2023,Adults,Morepower Ltd t/a Aqs Homecare,Home Care - Private Contractors Payment,1261.49,0.00,COMMERCIAL SUPPLIER 
 17-01-2023,Adults,Lodge Group Care UK Ltd,Home Care - Private Contractors Payment,1265.10,0.00,COMMERCIAL SUPPLIER 
 13-01-2023,Adults,Runwood Homes Plc - Woodbury Court,Residential Care Income,1269.04,0.00,COMMERCIAL SUPPLIER 
 13-01-2023,Adults,Runwood Homes Plc - Woodbury Court,Residential Care Income,1269.04,0.00,COMMERCIAL SUPPLIER 
 13-01-2023,Adults,Runwood Homes Plc - Woodbury Court,Residential Care Income,1269.04,0.00,COMMERCIAL SUPPLIER 
 13-01-2023,Adults,Runwood Homes Plc - Woodbury Court,Residential Care Income,1269.04,0.00,COMMERCIAL SUPPLIER 
 13-01-2023,Adults,Runwood Homes Plc - Woodbury Court,Residential Care Income,1269.04,0.00,COMMERCIAL SUPPLIER 
 13-01-2023,Adults,Runwood Homes Plc - Woodbury Court,Residential Care Income,1269.04,0.00,COMMERCIAL SUPPLIER 
 13-01-2023,Adults,Runwood Homes Plc - Woodbury Court,Residential Care Income,1269.04,0.00,COMMERCIAL SUPPLIER 
 13-01-2023,Adults,Runwood Homes Plc - Woodbury Court,Residential Care Income,1269.04,0.00,COMMERCIAL SUPPLIER 
 13-01-2023,Adults,Runwood Homes Plc - Woodbury Court,Residential Care Income,1269.04,0.00,COMMERCIAL SUPPLIER 
 18-01-2023,Adults,Matrix SCM Ltd,Agency Staff,1273.31,0.00,COMMERCIAL SUPPLIER 
 25-01-2023,Adults,Matrix SCM Ltd,Agency Staff,1273.32,0.00,COMMERCIAL SUPPLIER 
 13-01-2023,Adults,Hospiva Care & Associates Agency Ltd_a,Home Care - Private Contractors Payment,1273.95,0.00,COMMERCIAL SUPPLIER 
 11-01-2023,Adults,Matrix SCM Ltd,Agency Staff,1274.05,0.00,COMMERCIAL SUPPLIER 
 18-01-2023,Adults,Matrix SCM Ltd,Agency Staff,1274.05,0.00,COMMERCIAL SUPPLIER 
 25-01-2023,Adults,Matrix SCM Ltd,Agency Staff,1274.05,0.00,COMMERCIAL SUPPLIER 
 04-01-2023,Adults,Matrix SCM Ltd,Agency Staff,1275.84,0.00,COMMERCIAL SUPPLIER 
 13-01-2023,Adults,Hospiva Care & Associates Agency Ltd_a,Home Care - Private Contractors Payment,1277.56,0.00,COMMERCIAL SUPPLIER 
 03-01-2023,Adults,London Homecare Ltd,Home Care - Private Contractors Payment,1279.20,0.00,COMMERCIAL SUPPLIER 
 30-01-2023,Adults,London Homecare Ltd,Home Care - Private Contractors Payment,1279.20,0.00,COMMERCIAL SUPPLIER 
 17-01-2023,Adults,Lodge Group Care UK Ltd,Home Care - Private Contractors Payment,1280.84,0.00,COMMERCIAL SUPPLIER 
 18-01-2023,Adults,Matrix SCM Ltd,Agency Staff,1281.60,0.00,COMMERCIAL SUPPLIER 
 25-01-2023,Adults,Matrix SCM Ltd,Agency Staff,1281.60,0.00,COMMERCIAL SUPPLIER 
 18-01-2023,Adults,Matrix SCM Ltd,Agency Staff,1282.34,0.00,COMMERCIAL SUPPLIER 
 25-01-2023,Adults,Matrix SCM Ltd,Agency Staff,1282.34,0.00,COMMERCIAL SUPPLIER 
 13-01-2023,Adults,Morepower Ltd t/a Aqs Homecare,Home Care - Private Contractors Payment,1283.46,0.00,COMMERCIAL SUPPLIER 
 09-01-2023,Adults,Home Sweet Home Care Ltd,Home Care - Private Contractors Payment,1286.42,0.00,COMMERCIAL SUPPLIER 
 18-01-2023,Adults,Matrix SCM Ltd,Agency Staff,1286.60,0.00,COMMERCIAL SUPPLIER 
 25-01-2023,Adults,Matrix SCM Ltd,Agency Staff,1286.60,0.00,COMMERCIAL SUPPLIER 
 01-01-2023,Adults,Eastway Care Ltd_a,Daycare - Private Contractors Payment,1290.00,0.00,COMMERCIAL SUPPLIER 
 01-01-2023,Adults,Eastway Care Ltd_a,Daycare - Private Contractors Payment,1290.00,0.00,COMMERCIAL SUPPLIER 
 13-01-2023,Adults,Ebury Court_a,Residential Placements - Private Contractors Payment,1290.71,0.00,COMMERCIAL SUPPLIER 
 17-01-2023,Adults,Prism Medical UK,Purchase - Equipment Furniture And Materials,1291.30,0.00,CIS 
 23-01-2023,Adults,Prior Care Ltd_a,Home Care - Private Contractors Payment,1292.65,0.00,COMMERCIAL SUPPLIER 
 13-01-2023,Adults,Independant Community Support Ltd T/A Heaton Lodge,Supported Other Accommodation - Private Contractors Payment,1296.00,0.00,COMMERCIAL SUPPLIER 
 13-01-2023,Adults,Independant Community Support Ltd T/A Heaton Lodge,Supported Other Accommodation - Private Contractors Payment,1296.00,0.00,COMMERCIAL SUPPLIER 
 17-01-2023,Adults,Lodge Group Care UK Ltd,Home Care - Private Contractors Payment,1296.26,0.00,COMMERCIAL SUPPLIER 
 03-01-2023,Adults,KJD Care Limited,Home Care - Private Contractors Payment,1298.88,0.00,INDIVIDUALS 
 12-01-2023,Adults,Premier Carewaiting Ltd,Home Care - Private Contractors Payment,1298.88,0.00,COMMERCIAL SUPPLIER 
 12-01-2023,Adults,Premier Carewaiting Ltd,Home Care - Private Contractors Payment,1298.88,0.00,COMMERCIAL SUPPLIER 
 30-01-2023,Adults,Premier Carewaiting Ltd,Home Care - Private Contractors Payment,1298.88,0.00,COMMERCIAL SUPPLIER 
 30-01-2023,Adults,Premier Carewaiting Ltd,Home Care - Private Contractors Payment,1298.88,0.00,COMMERCIAL SUPPLIER 
 13-01-2023,Adults,Ranc Care Homes Ltd - Romford Care Centre,Respite Care - Private Contractors Payment,1300.00,0.00,COMMERCIAL SUPPLIER 
 13-01-2023,Adults,Ranc Care Homes Ltd - Romford Care Centre,Respite Care - Private Contractors Payment,1300.00,0.00,COMMERCIAL SUPPLIER 
 13-01-2023,Adults,Cera Care Operations Ltd,Home Care - Private Contractors Payment,1303.47,0.00,COMMERCIAL SUPPLIER 
 13-01-2023,Adults,Ashgate House Ltd_a,Residential Placements - Private Contractors Payment,1303.80,0.00,COMMERCIAL SUPPLIER 
 01-01-2023,Adults,Homestead Care Service,Home Care - Private Contractors Payment,1304.46,0.00,COMMERCIAL SUPPLIER 
 30-01-2023,Adults,Tapestry_a.,Daycare - Private Contractors Payment,1311.00,0.00,COMMERCIAL SUPPLIER 
 13-01-2023,Adults,Willows Care Home - Churchgate Healthcare (Willows) Ltd,Respite Care - Private Contractors Payment,1314.29,0.00,COMMERCIAL SUPPLIER 
 01-01-2023,Adults,Homestead Care Service,Home Care - Private Contractors Payment,1316.26,0.00,COMMERCIAL SUPPLIER 
 30-01-2023,Adults,London Homecare Ltd,Home Care - Private Contractors Payment,1318.56,0.00,COMMERCIAL SUPPLIER 
 13-01-2023,Adults,L & Q Living (SWIFT Payments),Supported Other Accommodation - Private Contractors Payment,1318.72,0.00,COMMERCIAL SUPPLIER 
 13-01-2023,Adults,Morepower Ltd t/a Aqs Homecare,Home Care - Private Contractors Payment,1319.54,0.00,COMMERCIAL SUPPLIER 
 31-01-2023,Adults,Cera Care Operations Ltd,Home Care - Private Contractors Payment,1319.54,0.00,COMMERCIAL SUPPLIER 
 09-01-2023,Adults,Home Support Services (Havering & Essex) Ltd,Home Care - Private Contractors Payment,1323.48,0.00,COMMERCIAL SUPPLIER 
 01-01-2023,Adults,Homestead Care Service,Home Care - Private Contractors Payment,1328.40,0.00,COMMERCIAL SUPPLIER 
 03-01-2023,Adults,London Homecare Ltd,Home Care - Private Contractors Payment,1328.40,0.00,COMMERCIAL SUPPLIER 
 16-01-2023,Adults,Bluebird Care Havering,Home Care - Private Contractors Payment,1333.00,0.00,COMMERCIAL SUPPLIER 
 09-01-2023,Adults,Home Sweet Home Care Ltd,Home Care - Private Contractors Payment,1338.24,0.00,COMMERCIAL SUPPLIER 
 17-01-2023,Adults,Lodge Group Care UK Ltd,Home Care - Private Contractors Payment,1339.22,0.00,COMMERCIAL SUPPLIER 
 20-01-2023,Adults,Quality Healthcare Solutions Ltd t/a Kare Plus Romford,Home Care - Private Contractors Payment,1339.88,0.00,COMMERCIAL SUPPLIER 
 13-01-2023,Adults,Shalom Community Support Services,Supported Other Accommodation - Private Contractors Payment,1344.00,0.00,COMMERCIAL SUPPLIER 
 13-01-2023,Adults,Infinite Healthcare Services Ltd.,Supported Other Accommodation - Private Contractors Payment,1345.86,0.00,COMMERCIAL SUPPLIER 
 18-01-2023,Adults,Matrix SCM Ltd,Agency Staff,1349.28,0.00,COMMERCIAL SUPPLIER 
 13-01-2023,Adults,2 Peel Way - Outlook Care,Supported Other Accommodation - Private Contractors Payment,1349.88,0.00,NON COMMERCIAL SUPPLIER 
 04-01-2023,Adults,Matrix SCM Ltd,Agency Staff,1350.00,0.00,COMMERCIAL SUPPLIER 
 25-01-2023,Adults,Matrix SCM Ltd,Agency Staff,1350.00,0.00,COMMERCIAL SUPPLIER 
 18-01-2023,Adults,Matrix SCM Ltd,Agency Staff,1350.02,0.00,COMMERCIAL SUPPLIER 
 19-01-2023,Adults,North East London NHS Foundation Trust_a,Payment To Health Authorities,1352.64,0.00,NHS BODIES 
 19-01-2023,Adults,North East London NHS Foundation Trust_a,Payment To Health Authorities,1352.64,0.00,NHS BODIES 
 19-01-2023,Adults,North East London NHS Foundation Trust_a,Payment To Health Authorities,1352.64,0.00,NHS BODIES 
 19-01-2023,Adults,North East London NHS Foundation Trust_a,Payment To Health Authorities,1352.64,0.00,NHS BODIES 
 19-01-2023,Adults,North East London NHS Foundation Trust_a,Payment To Health Authorities,1352.64,0.00,NHS BODIES 
 13-01-2023,Adults,Lukka Care Homes Ltd - Ravenscourt,Respite Care - Private Contractors Payment,1356.00,0.00,COMMERCIAL SUPPLIER 
 13-01-2023,Adults,Ranc Care Homes Ltd - Romford Care Centre,Respite Care - Private Contractors Payment,1356.00,0.00,COMMERCIAL SUPPLIER 
 19-01-2023,Adults,North East London NHS Foundation Trust_a,Payment To Health Authorities,1365.84,0.00,NHS BODIES 
 02-01-2023,Adults,Crystalize Care Services Ltd,Home Care - Private Contractors Payment,1377.60,0.00,COMMERCIAL SUPPLIER 
 03-01-2023,Adults,KJD Care Limited,Home Care - Private Contractors Payment,1377.60,0.00,INDIVIDUALS 
 05-01-2023,Adults,Passion Tree Care Services Ltd,Home Care - Private Contractors Payment,1377.60,0.00,COMMERCIAL SUPPLIER 
 31-01-2023,Adults,Crystalize Care Services Ltd,Home Care - Private Contractors Payment,1377.60,0.00,COMMERCIAL SUPPLIER 
 09-01-2023,Adults,All Therapy Solutions Ltd,Occupational Health,1380.00,0.00,COMMERCIAL SUPPLIER 
 30-01-2023,Adults,Eastway Care Ltd_a,Daycare - Private Contractors Payment,1380.00,0.00,COMMERCIAL SUPPLIER 
 18-01-2023,Adults,Matrix SCM Ltd,Agency Staff,1384.58,0.00,COMMERCIAL SUPPLIER 
 25-01-2023,Adults,Matrix SCM Ltd,Agency Staff,1384.58,0.00,COMMERCIAL SUPPLIER 
 17-01-2023,Adults,Lodge Group Care UK Ltd,Home Care - Private Contractors Payment,1385.47,0.00,COMMERCIAL SUPPLIER 
 13-01-2023,Adults,Masumin Ltd t/s Abbeleigh House,Residential Placements - Private Contractors Payment,1390.00,0.00,COMMERCIAL SUPPLIER 
 13-01-2023,Adults,Masumin Ltd t/s Abbeleigh House,Residential Placements - Private Contractors Payment,1390.00,0.00,COMMERCIAL SUPPLIER 
 13-01-2023,Adults,Lodge Lane Care Home Limited,Respite Care - Private Contractors Payment,1390.00,0.00,COMMERCIAL SUPPLIER 
 13-01-2023,Adults,Lodge Lane Care Home Limited,Respite Care - Private Contractors Payment,1390.00,0.00,COMMERCIAL SUPPLIER 
 13-01-2023,Adults,Lodge Lane Care Home Limited,Respite Care - Private Contractors Payment,1390.00,0.00,COMMERCIAL SUPPLIER 
 13-01-2023,Adults,Lodge Lane Care Home Limited,Respite Care - Private Contractors Payment,1390.00,0.00,COMMERCIAL SUPPLIER 
 13-01-2023,Adults,Lodge Lane Care Home Limited,Respite Care - Private Contractors Payment,1390.00,0.00,COMMERCIAL SUPPLIER 
 26-01-2023,Adults,Jaktol Day Centers,Daycare - Private Contractors Payment,1393.92,0.00,COMMERCIAL SUPPLIER 
 04-01-2023,Adults,Matrix SCM Ltd,Agency Staff,1395.73,0.00,COMMERCIAL SUPPLIER 
 18-01-2023,Adults,Matrix SCM Ltd,Agency Staff,1395.73,0.00,COMMERCIAL SUPPLIER 
 25-01-2023,Adults,Matrix SCM Ltd,Agency Staff,1395.73,0.00,COMMERCIAL SUPPLIER 
 03-01-2023,Adults,KJD Care Limited,Home Care - Private Contractors Payment,1397.28,0.00,INDIVIDUALS 
 03-01-2023,Adults,London Homecare Ltd,Home Care - Private Contractors Payment,1397.28,0.00,COMMERCIAL SUPPLIER 
 30-01-2023,Adults,London Homecare Ltd,Home Care - Private Contractors Payment,1397.28,0.00,COMMERCIAL SUPPLIER 
 06-01-2023,Adults,Care-Away Ltd T/A Care Support,Home Care - Private Contractors Payment,1397.76,0.00,COMMERCIAL SUPPLIER 
 17-01-2023,Adults,Lodge Group Care UK Ltd,Home Care - Private Contractors Payment,1406.46,0.00,COMMERCIAL SUPPLIER 
 18-01-2023,Adults,London Care Plc_a,Home Care - Private Contractors Payment,1411.71,0.00,COMMERCIAL SUPPLIER 
 02-01-2023,Adults,Crystalize Care Services Ltd,Home Care - Private Contractors Payment,1416.96,0.00,COMMERCIAL SUPPLIER 
 31-01-2023,Adults,Crystalize Care Services Ltd,Home Care - Private Contractors Payment,1416.96,0.00,COMMERCIAL SUPPLIER 
 17-01-2023,Adults,Lodge Group Care UK Ltd,Home Care - Private Contractors Payment,1425.82,0.00,COMMERCIAL SUPPLIER 
 18-01-2023,Adults,London Care Plc_a,Home Care - Private Contractors Payment,1426.80,0.00,COMMERCIAL SUPPLIER 
 18-01-2023,Adults,London Care Plc_a,Home Care - Private Contractors Payment,1428.77,0.00,COMMERCIAL SUPPLIER 
 17-01-2023,Adults,Lodge Group Care UK Ltd,Home Care - Private Contractors Payment,1430.08,0.00,COMMERCIAL SUPPLIER 
 18-01-2023,Adults,Matrix SCM Ltd,Agency Staff,1436.42,0.00,COMMERCIAL SUPPLIER 
 09-01-2023,Adults,London Borough of Barking & Dagenham_a,Daycare - Private Contractors Payment,1440.00,0.00,LOCAL AUTHORITY SERVICES 
 09-01-2023,Adults,London Borough of Barking & Dagenham_a,Daycare - Private Contractors Payment,1440.00,0.00,LOCAL AUTHORITY SERVICES 
 13-01-2023,Adults,Bettertogether Limited,Supported Other Accommodation - Private Contractors Payment,1440.00,0.00,NON COMMERCIAL SUPPLIER 
 17-01-2023,Adults,Lodge Group Care UK Ltd,Home Care - Private Contractors Payment,1440.25,0.00,COMMERCIAL SUPPLIER 
 18-01-2023,Adults,London Care Plc_a,Home Care - Private Contractors Payment,1444.51,0.00,COMMERCIAL SUPPLIER 
 17-01-2023,Adults,Lodge Group Care UK Ltd,Home Care - Private Contractors Payment,1449.76,0.00,COMMERCIAL SUPPLIER 
 13-01-2023,Adults,BUPA,Respite Care - Private Contractors Payment,1452.86,0.00,COMMERCIAL SUPPLIER 
 13-01-2023,Adults,Black Swan International Ltd - Drummonds,Residential Placements - Private Contractors Payment,1470.00,0.00,COMMERCIAL SUPPLIER 
 13-01-2023,Adults,Blueboard Care Services Ltd,Supported Other Accommodation - Private Contractors Payment,1478.40,0.00,COMMERCIAL SUPPLIER 
 13-01-2023,Adults,Blueboard Care Services Ltd,Supported Other Accommodation - Private Contractors Payment,1478.40,0.00,COMMERCIAL SUPPLIER 
 09-01-2023,Adults,Home Support Services (Havering & Essex) Ltd,Home Care - Private Contractors Payment,1478.95,0.00,COMMERCIAL SUPPLIER 
 13-01-2023,Adults,The Cedars,Supported Other Accommodation - Private Contractors Payment,1479.24,0.00,COMMERCIAL SUPPLIER 
 04-01-2023,Adults,Matrix SCM Ltd,Agency Staff,1482.64,0.00,COMMERCIAL SUPPLIER 
 13-01-2023,Adults,Ash Grove Residential Care Home,Residential Placements - Private Contractors Payment,1492.86,0.00,COMMERCIAL SUPPLIER 
 13-01-2023,Adults,Ebony Health Care Services Limited,Supported Other Accommodation - Private Contractors Payment,1496.24,0.00,COMMERCIAL SUPPLIER 
 06-01-2023,Adults,Care-Away Ltd T/A Care Support,Home Care - Private Contractors Payment,1497.60,0.00,COMMERCIAL SUPPLIER 
 12-01-2023,Adults,Osborne Partnership,Daycare - Private Contractors Payment,1500.00,0.00,COMMERCIAL SUPPLIER 
 31-01-2023,Adults,Cera Care Operations Ltd,Home Care - Private Contractors Payment,1500.27,0.00,COMMERCIAL SUPPLIER 
 13-01-2023,Adults,Ash Grove Residential Care Home,Residential Care Income,1508.76,0.00,COMMERCIAL SUPPLIER 
 05-01-2023,Adults,Care-Away Ltd T/A Care Support,Home Care - Private Contractors Payment,1514.24,0.00,COMMERCIAL SUPPLIER 
 18-01-2023,Adults,Matrix SCM Ltd,Agency Staff,1523.92,0.00,COMMERCIAL SUPPLIER 
 13-01-2023,Adults,The Cedars,Supported Other Accommodation - Private Contractors Payment,1531.00,0.00,COMMERCIAL SUPPLIER 
 01-01-2023,Adults,Westminster Homecare Ltd_a,Home Care - Private Contractors Payment,1532.09,0.00,COMMERCIAL SUPPLIER 
 01-01-2023,Adults,Westminster Homecare Ltd_a,Home Care - Private Contractors Payment,1534.71,0.00,COMMERCIAL SUPPLIER 
 13-01-2023,Adults,Affinia Healthcare Ltd_a,Supported Other Accommodation - Private Contractors Payment,1538.48,0.00,COMMERCIAL SUPPLIER 
 13-01-2023,Adults,Ladyville Lodge_a,Respite Care - Private Contractors Payment,1542.86,0.00,COMMERCIAL SUPPLIER 
 13-01-2023,Adults,Morepower Ltd t/a Aqs Homecare,Home Care - Private Contractors Payment,1543.24,0.00,COMMERCIAL SUPPLIER 
 13-01-2023,Adults,Fountains Care Centre - Bondcare,Nursing Homes - Private Contractors Payment,1549.71,0.00,COMMERCIAL SUPPLIER 
 01-01-2023,Adults,Eastway Care Ltd_a,Daycare - Private Contractors Payment,1550.00,0.00,COMMERCIAL SUPPLIER 
 05-01-2023,Adults,Passion Tree Care Services Ltd,Home Care - Private Contractors Payment,1554.72,0.00,COMMERCIAL SUPPLIER 
 13-01-2023,Adults,Outlook Care - 76 Neave Crescent,Supported Other Accommodation - Private Contractors Payment,1562.00,0.00,COMMERCIAL SUPPLIER 
 13-01-2023,Adults,Outlook Care - 76 Neave Crescent,Supported Other Accommodation - Private Contractors Payment,1562.00,0.00,COMMERCIAL SUPPLIER 
 13-01-2023,Adults,Outlook Care - 76 Neave Crescent,Supported Other Accommodation - Private Contractors Payment,1562.00,0.00,COMMERCIAL SUPPLIER 
 13-01-2023,Adults,Outlook Care - 76 Neave Crescent,Supported Other Accommodation - Private Contractors Payment,1562.00,0.00,COMMERCIAL SUPPLIER 
 13-01-2023,Adults,Outlook Care - 76 Neave Crescent,Supported Other Accommodation - Private Contractors Payment,1562.00,0.00,COMMERCIAL SUPPLIER 
 13-01-2023,Adults,Outlook Care - 76 Neave Crescent,Supported Other Accommodation - Private Contractors Payment,1562.00,0.00,COMMERCIAL SUPPLIER 
 13-01-2023,Adults,Outlook Care - 76 Neave Crescent,Supported Other Accommodation - Private Contractors Payment,1562.00,0.00,COMMERCIAL SUPPLIER 
 13-01-2023,Adults,Outlook Care - 76 Neave Crescent,Supported Other Accommodation - Private Contractors Payment,1562.00,0.00,COMMERCIAL SUPPLIER 
 04-01-2023,Adults,Matrix SCM Ltd,Agency Staff,1562.05,0.00,COMMERCIAL SUPPLIER 
 13-01-2023,Adults,Outlook Care - 86 Veronica Close,Residential Placements - Private Contractors Payment,1565.56,0.00,COMMERCIAL SUPPLIER 
 13-01-2023,Adults,Outlook Care - 76 Neave Crescent,Supported Other Accommodation - Private Contractors Payment,1566.60,0.00,COMMERCIAL SUPPLIER 
 13-01-2023,Adults,Outlook Care - 76 Neave Crescent,Supported Other Accommodation - Private Contractors Payment,1566.60,0.00,COMMERCIAL SUPPLIER 
 13-01-2023,Adults,Outlook Care - 4 Peel Way,Supported Other Accommodation - Private Contractors Payment,1570.80,0.00,COMMERCIAL SUPPLIER 
 09-01-2023,Adults,Home Sweet Home Care Ltd,Home Care - Private Contractors Payment,1571.78,0.00,COMMERCIAL SUPPLIER 
 05-01-2023,Adults,Care-Away Ltd T/A Care Support,Home Care - Private Contractors Payment,1580.80,0.00,COMMERCIAL SUPPLIER 
 13-01-2023,Adults,Pathways Care and Support Services Ltd,Supported Other Accommodation - Private Contractors Payment,1581.72,0.00,COMMERCIAL SUPPLIER 
 17-01-2023,Adults,Lodge Group Care UK Ltd,Home Care - Private Contractors Payment,1581.94,0.00,COMMERCIAL SUPPLIER 
 03-01-2023,Adults,Bluebird Care Havering,Home Care - Private Contractors Payment,1588.40,0.00,COMMERCIAL SUPPLIER 
 13-01-2023,Adults,Outlook Care - 76 Neave Crescent,Supported Other Accommodation - Private Contractors Payment,1597.92,0.00,COMMERCIAL SUPPLIER 
 13-01-2023,Adults,Outlook Care - 76 Neave Crescent,Supported Other Accommodation - Private Contractors Payment,1597.92,0.00,COMMERCIAL SUPPLIER 
 13-01-2023,Adults,Outlook Care - 76 Neave Crescent,Supported Other Accommodation - Private Contractors Payment,1597.92,0.00,COMMERCIAL SUPPLIER 
 13-01-2023,Adults,Outlook Care - 76 Neave Crescent,Supported Other Accommodation - Private Contractors Payment,1597.92,0.00,COMMERCIAL SUPPLIER 
 17-01-2023,Adults,Lodge Group Care UK Ltd,Home Care - Private Contractors Payment,1599.98,0.00,COMMERCIAL SUPPLIER 
 06-01-2023,Adults,Affinia Healthcare Ltd_a,Supported Other Accommodation - Private Contractors Payment,1604.40,0.00,COMMERCIAL SUPPLIER 
 13-01-2023,Adults,Affinia Healthcare Ltd_a,Supported Other Accommodation - Private Contractors Payment,1604.40,0.00,COMMERCIAL SUPPLIER 
 13-01-2023,Adults,Blessday Services Ltd,Supported Other Accommodation - Private Contractors Payment,1605.00,0.00,COMMERCIAL SUPPLIER 
 13-01-2023,Adults,Bettertogether Limited,Supported Other Accommodation - Private Contractors Payment,1612.00,0.00,NON COMMERCIAL SUPPLIER 
 13-01-2023,Adults,Bettertogether Limited,Supported Other Accommodation - Private Contractors Payment,1612.00,0.00,NON COMMERCIAL SUPPLIER 
 09-01-2023,Adults,Home Support Services (Havering & Essex) Ltd,Home Care - Private Contractors Payment,1615.73,0.00,COMMERCIAL SUPPLIER 
 13-01-2023,Adults,Ashking House Ltd,Residential Placements - Private Contractors Payment,1616.84,0.00,COMMERCIAL SUPPLIER 
 31-01-2023,Adults,Cera Care Operations Ltd,Home Care - Private Contractors Payment,1617.04,0.00,COMMERCIAL SUPPLIER 
 10-01-2023,Adults,Care-Away Ltd T/A Care Support,Home Care - Private Contractors Payment,1622.40,0.00,COMMERCIAL SUPPLIER 
 13-01-2023,Adults,The Riverside Group,Supported Other Accommodation - Private Contractors Payment,1623.12,0.00, 
 02-01-2023,Adults,Outreach Support Services Ltd,Home Care - Private Contractors Payment,1633.44,0.00,COMMERCIAL SUPPLIER 
 30-01-2023,Adults,Outreach Support Services Ltd,Home Care - Private Contractors Payment,1633.44,0.00,COMMERCIAL SUPPLIER 
 13-01-2023,Adults,S&A Care Services Ltd.,Supported Other Accommodation - Private Contractors Payment,1638.00,0.00,COMMERCIAL SUPPLIER 
 17-01-2023,Adults,John Stanleys Care Agency Ltd,Home Care - Private Contractors Payment,1640.33,0.00,COMMERCIAL SUPPLIER 
 31-01-2023,Adults,Home From Home Support Service Ltd ,Supported Other Accommodation - Private Contractors Payment,1642.80,0.00,COMMERCIAL SUPPLIER 
 13-01-2023,Adults,Affinia Healthcare Ltd_a,Supported Other Accommodation - Private Contractors Payment,1650.76,0.00,COMMERCIAL SUPPLIER 
 02-01-2023,Adults,Outreach Support Services Ltd,Home Care - Private Contractors Payment,1653.12,0.00,COMMERCIAL SUPPLIER 
 09-01-2023,Adults,Bloomscare Ltd,Home Care - Private Contractors Payment,1653.12,0.00,COMMERCIAL SUPPLIER 
 09-01-2023,Adults,Bloomscare Ltd,Home Care - Private Contractors Payment,1653.12,0.00,COMMERCIAL SUPPLIER 
 30-01-2023,Adults,Outreach Support Services Ltd,Home Care - Private Contractors Payment,1653.12,0.00,COMMERCIAL SUPPLIER 
 30-01-2023,Adults,Premier Carewaiting Ltd,Home Care - Private Contractors Payment,1653.12,0.00,COMMERCIAL SUPPLIER 
 31-01-2023,Adults,Bloomscare Ltd,Home Care - Private Contractors Payment,1653.12,0.00,COMMERCIAL SUPPLIER 
 31-01-2023,Adults,Bloomscare Ltd,Home Care - Private Contractors Payment,1653.12,0.00,COMMERCIAL SUPPLIER 
 13-01-2023,Adults,Hospiva Care & Associates Agency Ltd_a,Home Care - Private Contractors Payment,1665.91,0.00,COMMERCIAL SUPPLIER 
 13-01-2023,Adults,Cera Care Operations Ltd,Home Care - Private Contractors Payment,1673.13,0.00,COMMERCIAL SUPPLIER 
 13-01-2023,Adults,Outlook Care - 76 Neave Crescent,Supported Other Accommodation - Private Contractors Payment,1677.92,0.00,COMMERCIAL SUPPLIER 
 13-01-2023,Adults,Protecthand Care Ltd ,Supported Other Accommodation - Private Contractors Payment,1680.00,0.00,COMMERCIAL SUPPLIER 
 18-01-2023,Adults,Matrix SCM Ltd,Agency Staff,1686.60,0.00,COMMERCIAL SUPPLIER 
 25-01-2023,Adults,Matrix SCM Ltd,Agency Staff,1686.60,0.00,COMMERCIAL SUPPLIER 
 13-01-2023,Adults,2 Peel Way - Outlook Care,Supported Other Accommodation - Private Contractors Payment,1687.28,0.00,NON COMMERCIAL SUPPLIER 
 13-01-2023,Adults,Lodge Lane Care Home Limited,Residential Placements - Private Contractors Payment,1687.86,0.00,COMMERCIAL SUPPLIER 
 13-01-2023,Adults,Lodge Lane Care Home Limited,Residential Placements - Private Contractors Payment,1687.86,0.00,COMMERCIAL SUPPLIER 
 13-01-2023,Adults,Willows Care Home - Churchgate Healthcare (Willows) Ltd,Respite Care - Private Contractors Payment,1687.86,0.00,COMMERCIAL SUPPLIER 
 03-01-2023,Adults,IJB Healthcare Ltd,Home Care - Private Contractors Payment,1692.48,0.00,COMMERCIAL SUPPLIER 
 13-01-2023,Adults,Affinia Healthcare Ltd_a,Supported Other Accommodation - Private Contractors Payment,1704.20,0.00,COMMERCIAL SUPPLIER 
 13-01-2023,Adults,Ashgate House Ltd_a,Residential Placements - Private Contractors Payment,1710.72,0.00,COMMERCIAL SUPPLIER 
 13-01-2023,Adults,Ash Grove Residential Care Home,Respite Care - Private Contractors Payment,1714.29,0.00,COMMERCIAL SUPPLIER 
 13-01-2023,Adults,Outlook Care - 4 Peel Way,Supported Other Accommodation - Private Contractors Payment,1719.80,0.00,COMMERCIAL SUPPLIER 
 13-01-2023,Adults,Outlook Care - 76 Neave Crescent,Supported Other Accommodation - Private Contractors Payment,1719.88,0.00,COMMERCIAL SUPPLIER 
 13-01-2023,Adults,Outlook Care - 76 Neave Crescent,Supported Other Accommodation - Private Contractors Payment,1719.88,0.00,COMMERCIAL SUPPLIER 
 13-01-2023,Adults,Outlook Care - 76 Neave Crescent,Supported Other Accommodation - Private Contractors Payment,1719.88,0.00,COMMERCIAL SUPPLIER 
 13-01-2023,Adults,Outlook Care - 76 Neave Crescent,Supported Other Accommodation - Private Contractors Payment,1719.88,0.00,COMMERCIAL SUPPLIER 
 13-01-2023,Adults,Outlook Care - 76 Neave Crescent,Supported Other Accommodation - Private Contractors Payment,1719.88,0.00,COMMERCIAL SUPPLIER 
 01-01-2023,Adults,Eastway Care Ltd_a,Daycare - Private Contractors Payment,1720.00,0.00,COMMERCIAL SUPPLIER 
 01-01-2023,Adults,Eastway Care Ltd_a,Daycare - Private Contractors Payment,1720.00,0.00,COMMERCIAL SUPPLIER 
 13-01-2023,Adults,Vibrance ,Residential Placements - Private Contractors Payment,1720.76,0.00,COMMERCIAL SUPPLIER 
 13-01-2023,Adults,2 Peel Way - Outlook Care,Supported Other Accommodation - Private Contractors Payment,1721.00,0.00,NON COMMERCIAL SUPPLIER 
 13-01-2023,Adults,Fresh Tree Care Services,Supported Other Accommodation - Private Contractors Payment,1726.29,0.00,COMMERCIAL SUPPLIER 
 13-01-2023,Adults,Affinia Healthcare Ltd_a,Supported Other Accommodation - Private Contractors Payment,1731.28,0.00,COMMERCIAL SUPPLIER 
 13-01-2023,Adults,Morepower Ltd t/a Aqs Homecare,Home Care - Private Contractors Payment,1741.68,0.00,COMMERCIAL SUPPLIER 
 25-01-2023,Adults,Matrix SCM Ltd,Agency Staff,1744.00,0.00,COMMERCIAL SUPPLIER 
 13-01-2023,Adults,Affinia Healthcare Ltd_a,Supported Other Accommodation - Private Contractors Payment,1751.12,0.00,COMMERCIAL SUPPLIER 
 13-01-2023,Adults,Affinia Healthcare Ltd_a,Supported Other Accommodation - Private Contractors Payment,1751.12,0.00,COMMERCIAL SUPPLIER 
 13-01-2023,Adults,Affinia Healthcare Ltd_a,Supported Other Accommodation - Private Contractors Payment,1751.12,0.00,COMMERCIAL SUPPLIER 
 13-01-2023,Adults,Affinia Healthcare Ltd_a,Supported Other Accommodation - Private Contractors Payment,1752.48,0.00,COMMERCIAL SUPPLIER 
 02-01-2023,Adults,Outreach Support Services Ltd,Home Care - Private Contractors Payment,1758.48,0.00,COMMERCIAL SUPPLIER 
 02-01-2023,Adults,Outreach Support Services Ltd,Home Care - Private Contractors Payment,1758.48,0.00,COMMERCIAL SUPPLIER 
 30-01-2023,Adults,Outreach Support Services Ltd,Home Care - Private Contractors Payment,1758.48,0.00,COMMERCIAL SUPPLIER 
 30-01-2023,Adults,Outreach Support Services Ltd,Home Care - Private Contractors Payment,1758.48,0.00,COMMERCIAL SUPPLIER 
 13-01-2023,Adults,Abbottswood Lodge,Residential Placements - Private Contractors Payment,1763.76,0.00,COMMERCIAL SUPPLIER 
 17-01-2023,Adults,John Stanleys Care Agency Ltd,Home Care - Private Contractors Payment,1771.20,0.00,COMMERCIAL SUPPLIER 
 19-01-2023,Adults,John Stanleys Care Agency Ltd,Home Care - Private Contractors Payment,1774.27,0.00,COMMERCIAL SUPPLIER 
 13-01-2023,Adults,Bettertogether Limited,Supported Other Accommodation - Private Contractors Payment,1776.00,0.00,NON COMMERCIAL SUPPLIER 
 13-01-2023,Adults,Lodge Lane Care Home Limited,Respite Care - Private Contractors Payment,1787.14,0.00,COMMERCIAL SUPPLIER 
 02-01-2023,Adults,Pleasant Home Healthcare Ltd,Home Care - Private Contractors Payment,1790.88,0.00,COMMERCIAL SUPPLIER 
 03-01-2023,Adults,KJD Care Limited,Home Care - Private Contractors Payment,1790.88,0.00,INDIVIDUALS 
 13-01-2023,Adults,Outlook Care - 4 Peel Way,Supported Other Accommodation - Private Contractors Payment,1796.08,0.00,COMMERCIAL SUPPLIER 
 13-01-2023,Adults,Outlook Care - 4 Peel Way,Supported Other Accommodation - Private Contractors Payment,1796.08,0.00,COMMERCIAL SUPPLIER 
 13-01-2023,Adults,GCH - Hillside Nursing Home,Respite Care - Private Contractors Payment,1800.00,0.00,COMMERCIAL SUPPLIER 
 13-01-2023,Adults,GCH - Hillside Nursing Home,Nursing Homes - Private Contractors Payment,1800.00,0.00,COMMERCIAL SUPPLIER 
 13-01-2023,Adults,Castle Care UK Ltd,Nursing Homes - Private Contractors Payment,1801.39,0.00,COMMERCIAL SUPPLIER 
 13-01-2023,Adults,Kadmiel Projects Ltd,Supported Other Accommodation - Private Contractors Payment,1803.36,0.00,COMMERCIAL SUPPLIER 
 13-01-2023,Adults,Kadmiel Projects Ltd,Supported Other Accommodation - Private Contractors Payment,1812.88,0.00,COMMERCIAL SUPPLIER 
 31-01-2023,Adults,Cera Care Operations Ltd,Home Care - Private Contractors Payment,1816.14,0.00,COMMERCIAL SUPPLIER 
 13-01-2023,Adults,Affinia Healthcare Ltd_a,Supported Other Accommodation - Private Contractors Payment,1817.80,0.00,COMMERCIAL SUPPLIER 
 13-01-2023,Adults,Cera Care Operations Ltd,Home Care - Private Contractors Payment,1825.98,0.00,COMMERCIAL SUPPLIER 
 13-01-2023,Adults,Ash Grove Residential Care Home,Residential Placements - Private Contractors Payment,1828.57,0.00,COMMERCIAL SUPPLIER 
 13-01-2023,Adults,Forward Support Ltd ,Residential Placements - Private Contractors Payment,1830.00,0.00,COMMERCIAL SUPPLIER 
 13-01-2023,Adults,Bettertogether Limited,Supported Other Accommodation - Private Contractors Payment,1832.00,0.00,NON COMMERCIAL SUPPLIER 
 13-01-2023,Adults,Bettertogether Limited,Supported Other Accommodation - Private Contractors Payment,1832.00,0.00,NON COMMERCIAL SUPPLIER 
 13-01-2023,Adults,Bettertogether Limited,Supported Other Accommodation - Private Contractors Payment,1832.00,0.00,NON COMMERCIAL SUPPLIER 
 13-01-2023,Adults,Bettertogether Limited,Supported Other Accommodation - Private Contractors Payment,1832.00,0.00,NON COMMERCIAL SUPPLIER 
 13-01-2023,Adults,Bettertogether Limited,Supported Other Accommodation - Private Contractors Payment,1832.00,0.00,NON COMMERCIAL SUPPLIER 
 13-01-2023,Adults,Bettertogether Limited,Supported Other Accommodation - Private Contractors Payment,1832.00,0.00,NON COMMERCIAL SUPPLIER 
 13-01-2023,Adults,Bettertogether Limited,Supported Other Accommodation - Private Contractors Payment,1832.00,0.00,NON COMMERCIAL SUPPLIER 
 03-01-2023,Adults,KJD Care Limited,Home Care - Private Contractors Payment,1849.92,0.00,INDIVIDUALS 
 18-01-2023,Adults,Matrix SCM Ltd,Agency Staff,1853.00,0.00,COMMERCIAL SUPPLIER 
 30-01-2023,Adults,Agracare Ltd t/a Home Instead Senior Care,Home Care - Private Contractors Payment,1858.00,0.00,COMMERCIAL SUPPLIER 
 06-01-2023,Adults,Care-Away Ltd T/A Care Support,Home Care - Private Contractors Payment,1863.68,0.00,COMMERCIAL SUPPLIER 
 30-01-2023,Adults,Pleasant Home Healthcare Ltd,Home Care - Private Contractors Payment,1889.28,0.00,COMMERCIAL SUPPLIER 
 13-01-2023,Adults,Maison Moti Ltd,Supported Other Accommodation - Private Contractors Payment,1890.00,0.00,COMMERCIAL SUPPLIER 
 13-01-2023,Adults,Affinia Healthcare Ltd_a,Supported Other Accommodation - Private Contractors Payment,1901.04,0.00,COMMERCIAL SUPPLIER 
 13-01-2023,Adults,S & S Support Service Ltd   ,Supported Other Accommodation - Private Contractors Payment,1904.00,0.00,COMMERCIAL SUPPLIER 
 05-01-2023,Adults,Care-Away Ltd T/A Care Support,Home Care - Private Contractors Payment,1913.60,0.00,COMMERCIAL SUPPLIER 
 09-01-2023,Adults,Home Support Services (Havering & Essex) Ltd,Home Care - Private Contractors Payment,1914.86,0.00,COMMERCIAL SUPPLIER 
 01-01-2023,Adults,Eastway Care Ltd_a,Daycare - Private Contractors Payment,1925.00,0.00,COMMERCIAL SUPPLIER 
 02-01-2023,Adults,Outreach Support Services Ltd,Home Care - Private Contractors Payment,1928.64,0.00,COMMERCIAL SUPPLIER 
 09-01-2023,Adults,Inna Care Ltd,Home Care - Private Contractors Payment,1928.64,0.00,COMMERCIAL SUPPLIER 
 30-01-2023,Adults,Outreach Support Services Ltd,Home Care - Private Contractors Payment,1928.64,0.00,COMMERCIAL SUPPLIER 
 13-01-2023,Adults,Ashgate House Ltd_a,Residential Placements - Private Contractors Payment,1932.96,0.00,COMMERCIAL SUPPLIER 
 19-01-2023,Adults,Thurrock Lifestyle Solutions CIC,Daycare - Private Contractors Payment,1936.00,0.00,COMMERCIAL SUPPLIER 
 13-01-2023,Adults,Endsleigh Care Ltd,Residential Placements - Private Contractors Payment,1940.84,0.00,COMMERCIAL SUPPLIER 
 03-01-2023,Adults,KJD Care Limited,Home Care - Private Contractors Payment,1948.32,0.00,INDIVIDUALS 
 05-01-2023,Adults,Prestige Care & Support Ltd,Home Care - Private Contractors Payment,1965.05,0.00,COMMERCIAL SUPPLIER 
 13-01-2023,Adults,Affinia Healthcare Ltd_a,Supported Other Accommodation - Private Contractors Payment,1987.72,0.00,COMMERCIAL SUPPLIER 
 13-01-2023,Adults,Blueboard Care Services Ltd,Supported Other Accommodation - Private Contractors Payment,1999.20,0.00,COMMERCIAL SUPPLIER 
 03-01-2023,Adults,KJD Care Limited,Home Care - Private Contractors Payment,2006.64,0.00,INDIVIDUALS 
 13-01-2023,Adults,Alexander Court Care Centre - Bondcare,Residential Placements - Private Contractors Payment,2016.00,0.00,COMMERCIAL SUPPLIER 
 13-01-2023,Adults,S&A Care Services Ltd.,Supported Other Accommodation - Private Contractors Payment,2016.00,0.00,COMMERCIAL SUPPLIER 
 01-01-2023,Adults,Marlow,Residential Placements - Private Contractors Payment,2018.48,0.00,COMMERCIAL SUPPLIER 
 13-01-2023,Adults,Gims Care Solution Ltd_a,Supported Other Accommodation - Private Contractors Payment,2022.05,0.00,NON COMMERCIAL SUPPLIER 
 13-01-2023,Adults,Adjuvo Care Essex Ltd ,Supported Other Accommodation - Private Contractors Payment,2033.72,0.00,COMMERCIAL SUPPLIER 
 13-01-2023,Adults,DMP Healthcare (Heatherbrook) Ltd,Nursing Homes - Private Contractors Payment,2034.00,0.00,NON COMMERCIAL SUPPLIER 
 13-01-2023,Adults,Black Swan International Ltd - Drummonds,Residential Placements - Private Contractors Payment,2044.00,0.00,COMMERCIAL SUPPLIER 
 02-01-2023,Adults,Outreach Support Services Ltd,Home Care - Private Contractors Payment,2046.72,0.00,COMMERCIAL SUPPLIER 
 02-01-2023,Adults,Outreach Support Services Ltd,Home Care - Private Contractors Payment,2046.72,0.00,COMMERCIAL SUPPLIER 
 02-01-2023,Adults,Outreach Support Services Ltd,Home Care - Private Contractors Payment,2046.72,0.00,COMMERCIAL SUPPLIER 
 02-01-2023,Adults,Outreach Support Services Ltd,Home Care - Private Contractors Payment,2046.72,0.00,COMMERCIAL SUPPLIER 
 30-01-2023,Adults,Outreach Support Services Ltd,Home Care - Private Contractors Payment,2046.72,0.00,COMMERCIAL SUPPLIER 
 30-01-2023,Adults,Outreach Support Services Ltd,Home Care - Private Contractors Payment,2046.72,0.00,COMMERCIAL SUPPLIER 
 30-01-2023,Adults,Outreach Support Services Ltd,Home Care - Private Contractors Payment,2046.72,0.00,COMMERCIAL SUPPLIER 
 30-01-2023,Adults,Outreach Support Services Ltd,Home Care - Private Contractors Payment,2046.72,0.00,COMMERCIAL SUPPLIER 
 24-01-2023,Adults,Trinity London Care Ltd,Daycare - Private Contractors Payment,2050.00,0.00,COMMERCIAL SUPPLIER 
 24-01-2023,Adults,Trinity London Care Ltd,Daycare - Private Contractors Payment,2050.00,0.00,COMMERCIAL SUPPLIER 
 24-01-2023,Adults,Trinity London Care Ltd,Daycare - Private Contractors Payment,2050.00,0.00,COMMERCIAL SUPPLIER 
 13-01-2023,Adults,Affinia Healthcare Ltd_a,Supported Other Accommodation - Private Contractors Payment,2053.68,0.00,COMMERCIAL SUPPLIER 
 13-01-2023,Adults,Bettertogether Limited,Supported Other Accommodation - Private Contractors Payment,2056.00,0.00,NON COMMERCIAL SUPPLIER 
 13-01-2023,Adults,Bettertogether Limited,Supported Other Accommodation - Private Contractors Payment,2056.00,0.00,NON COMMERCIAL SUPPLIER 
 13-01-2023,Adults,Bettertogether Limited,Supported Other Accommodation - Private Contractors Payment,2056.00,0.00,NON COMMERCIAL SUPPLIER 
 13-01-2023,Adults,Gemstone Properties Ltd,Residential Placements - Private Contractors Payment,2078.44,0.00,COMMERCIAL SUPPLIER 
 13-01-2023,Adults,Hillsview Care Services Ltd,Residential Placements - Private Contractors Payment,2079.00,0.00,COMMERCIAL SUPPLIER 
 10-01-2023,Adults,Care-Away Ltd T/A Care Support,Home Care - Private Contractors Payment,2096.64,0.00,COMMERCIAL SUPPLIER 
 13-01-2023,Adults,GCH - Hillside Nursing Home,Respite Care - Private Contractors Payment,2100.00,0.00,COMMERCIAL SUPPLIER 
 13-01-2023,Adults,Cygnet (OE) Ltd ,Residential Placements - Private Contractors Payment,2100.00,0.00,COMMERCIAL SUPPLIER 
 13-01-2023,Adults,Alpine Resources UK Ltd,Supported Other Accommodation - Private Contractors Payment,2100.00,0.00,COMMERCIAL SUPPLIER 
 13-01-2023,Adults,Castle Care UK Ltd,Nursing Homes - Private Contractors Payment,2101.62,0.00,COMMERCIAL SUPPLIER 
 13-01-2023,Adults,Outreach Support Services Ltd,Supported Other Accommodation - Private Contractors Payment,2121.00,0.00,COMMERCIAL SUPPLIER 
 13-01-2023,Adults,Fountains Care Centre - Bondcare,Nursing Homes - Private Contractors Payment,2130.86,0.00,COMMERCIAL SUPPLIER 
 01-01-2023,Adults,Eastway Care Ltd_a,Daycare - Private Contractors Payment,2150.00,0.00,COMMERCIAL SUPPLIER 
 01-01-2023,Adults,Eastway Care Ltd_a,Daycare - Private Contractors Payment,2150.00,0.00,COMMERCIAL SUPPLIER 
 01-01-2023,Adults,Eastway Care Ltd_a,Daycare - Private Contractors Payment,2150.00,0.00,COMMERCIAL SUPPLIER 
 12-01-2023,Adults,Matrix SCM Ltd,Consultancy Fees,2159.52,0.00,COMMERCIAL SUPPLIER 
 09-01-2023,Adults,London Borough of Barking & Dagenham_a,Daycare - Private Contractors Payment,2160.00,0.00,LOCAL AUTHORITY SERVICES 
 09-01-2023,Adults,London Borough of Barking & Dagenham_a,Daycare - Private Contractors Payment,2160.00,0.00,LOCAL AUTHORITY SERVICES 
 13-01-2023,Adults,Lodge Lane Care Home Limited,Residential Placements - Private Contractors Payment,2184.29,0.00,COMMERCIAL SUPPLIER 
 13-01-2023,Adults,One Tree Estates Ltd t/a Ashbrook Nursing Home,Nursing Homes - Private Contractors Payment,2185.71,0.00,COMMERCIAL SUPPLIER 
 13-01-2023,Adults,Fresh Tree Care Services,Supported Other Accommodation - Private Contractors Payment,2197.00,0.00,COMMERCIAL SUPPLIER 
 13-01-2023,Adults,Ladyville Lodge_a,Respite Care - Private Contractors Payment,2200.00,0.00,COMMERCIAL SUPPLIER 
 13-01-2023,Adults,Ladyville Lodge_a,Respite Care - Private Contractors Payment,2200.00,0.00,COMMERCIAL SUPPLIER 
 13-01-2023,Adults,Ladyville Lodge_a,Respite Care - Private Contractors Payment,2200.00,0.00,COMMERCIAL SUPPLIER 
 09-01-2023,Adults,Inna Care Ltd,Home Care - Private Contractors Payment,2204.16,0.00,COMMERCIAL SUPPLIER 
 09-01-2023,Adults,Inna Care Ltd,Home Care - Private Contractors Payment,2204.16,0.00,COMMERCIAL SUPPLIER 
 27-01-2023,Adults,Gims Care Solution Ltd_a,Home Care - Private Contractors Payment,2204.16,0.00,NON COMMERCIAL SUPPLIER 
 13-01-2023,Adults,Cygnet Health Care,Residential Placements - Private Contractors Payment,2205.00,0.00,COMMERCIAL SUPPLIER 
 03-01-2023,Adults,KJD Care Limited,Home Care - Private Contractors Payment,2214.33,0.00,INDIVIDUALS 
 06-01-2023,Adults,Affinia Healthcare Ltd_a,Supported Other Accommodation - Private Contractors Payment,2225.00,0.00,COMMERCIAL SUPPLIER 
 13-01-2023,Adults,Affinia Healthcare Ltd_a,Supported Other Accommodation - Private Contractors Payment,2225.00,0.00,COMMERCIAL SUPPLIER 
 13-01-2023,Adults,Bettertogether Limited,Supported Other Accommodation - Private Contractors Payment,2236.00,0.00,NON COMMERCIAL SUPPLIER 
 26-01-2023,Adults,Jaktol Day Centers,Daycare - Private Contractors Payment,2239.68,0.00,COMMERCIAL SUPPLIER 
 10-01-2023,Adults,Romford Private Hire Ltd,Client Transport,2240.00,0.00,COMMERCIAL SUPPLIER 
 13-01-2023,Adults,Outlook Care_a,Supported Other Accommodation - Private Contractors Payment,2253.44,0.00,COMMERCIAL SUPPLIER 
 13-01-2023,Adults,Faris Lodge,Supported Other Accommodation - Private Contractors Payment,2267.72,0.00,COMMERCIAL SUPPLIER 
 13-01-2023,Adults,Ashgate House Ltd_a,Residential Placements - Private Contractors Payment,2280.96,0.00,COMMERCIAL SUPPLIER 
 13-01-2023,Adults,Ashgate House Ltd_a,Residential Placements - Private Contractors Payment,2280.96,0.00,COMMERCIAL SUPPLIER 
 13-01-2023,Adults,Ashgate House Ltd_a,Residential Placements - Private Contractors Payment,2280.96,0.00,COMMERCIAL SUPPLIER 
 03-01-2023,Adults,London Homecare Ltd,Home Care - Private Contractors Payment,2282.88,0.00,COMMERCIAL SUPPLIER 
 30-01-2023,Adults,London Homecare Ltd,Home Care - Private Contractors Payment,2282.88,0.00,COMMERCIAL SUPPLIER 
 13-01-2023,Adults,Dudbrook Hall Residential Home,Residential Placements - Private Contractors Payment,2283.57,0.00,COMMERCIAL SUPPLIER 
 13-01-2023,Adults,Pathways Care Group Ltd,Residential Placements - Private Contractors Payment,2285.56,0.00,COMMERCIAL SUPPLIER 
 13-01-2023,Adults,GCH - Hillside Nursing Home,Respite Care - Private Contractors Payment,2300.00,0.00,COMMERCIAL SUPPLIER 
 13-01-2023,Adults,DMP Healthcare (Cherry Orchard) Ltd,Residential Placements - Private Contractors Payment,2300.12,0.00,COMMERCIAL SUPPLIER 
 13-01-2023,Adults,Livability - John Grooms Court,Residential Placements - Private Contractors Payment,2311.28,0.00,COMMERCIAL SUPPLIER 
 13-01-2023,Adults,Livability - John Grooms Court,Residential Placements - Private Contractors Payment,2311.28,0.00,COMMERCIAL SUPPLIER 
 13-01-2023,Adults,Bupa Care Homes - Hutton Village,Nursing Homes - Private Contractors Payment,2324.57,0.00,COMMERCIAL SUPPLIER 
 13-01-2023,Adults,Bupa Care Homes - Hutton Village,Nursing Homes - Private Contractors Payment,2324.57,0.00,COMMERCIAL SUPPLIER 
 10-01-2023,Adults,Care-Away Ltd T/A Care Support,Home Care - Private Contractors Payment,2329.60,0.00,COMMERCIAL SUPPLIER 
 13-01-2023,Adults,Kadmiel Projects Ltd,Supported Other Accommodation - Private Contractors Payment,2342.08,0.00,COMMERCIAL SUPPLIER 
 13-01-2023,Adults,2 Peel Way - Outlook Care,Supported Other Accommodation - Private Contractors Payment,2344.96,0.00,NON COMMERCIAL SUPPLIER 
 13-01-2023,Adults,Masumin Ltd t/s Abbeleigh House,Residential Care Income,2346.76,0.00,COMMERCIAL SUPPLIER 
 13-01-2023,Adults,Fresh Tree Care Services,Supported Other Accommodation - Private Contractors Payment,2352.00,0.00,COMMERCIAL SUPPLIER 
 13-01-2023,Adults,Fresh Tree Care Services,Supported Other Accommodation - Private Contractors Payment,2352.00,0.00,COMMERCIAL SUPPLIER 
